Workbook

Sheet Model Assumptions
A1: ='1.1 General'!$A$1 -> AURIZON NETWORK - UT4 "COAL SYSTEM AGGREGATE" MODEL
A3: Disclaimer
C5: By opening this file, you acknowledge that you have read and agreed to the content outlined below and the Model Assumptions:
C7: This model has been prepared by Aurizon Network Pty Ltd (Aurizon Network) specifically for the purpose of calculating the 2013DAU Allowable Revenue proposal, set out in Aurizon Network 2013 Access Undertaking Explanatory material, Volume 3: Maximum Allowable Revenue and Reference Tariffs. This model also illustrates average revenue per tonne (i.e. $ per net tonne). The model is for the 2013DAU period only (i.e. the 4 years from 2013/14 to 2016/17). It does not contain information specific to individual access holders or other confidential information, and accordingly some variables have been hard-coded. The model has been prepared to reflect Aurizon Network's proposal in relation to the 2013DAU. The actual outcome of the 2013DAU process, specifically the calculation of the Allowable Revenue for the 4 years from 2013/14 to 2016/17, will be decided by the Queensland Competition Authority in accordance with applicable legislation. This model includes data which may represent forward-looking statements which are not historical facts. Forward-looking statements are based on the current beliefs, assumptions, expectations, estimates and projections of Aurizon Network. These statements are not guarantees or predictions of future performance, and involve both known and unknown risks, uncertainties and other factors, many of which are beyond Aurizon Network's control. As a result, actual results or developments may differ materially from those expressed in the forward-looking statements contained in this model. Aurizon Network is not under any obligation to update these forward-looking statements to reflect events or circumstances that arise after publication. Past performance is not an indication of future performance. The model remains the property of Aurizon Network and must not be used or relied upon for any other purpose than the one described above, and subject to the limitations and qualifications described above.
A9: =MID(CELL("FILENAME",A1:A1),(FIND("]",CELL("FILENAME",A1:A1))+1),(LEN(CELL("FILENAME",A1:A1))-FIND("]",CELL("FILENAME",A1:A1))+1)) -> Model Assumptions
B11: 1 | C11: All figures are in Nominal, End of Year dollars, unless otherwise stated.
B12: =ROW($A12)-ROW($A$11)+1 -> 2 | C12: All financial values are in units of 1,000, unless otherwise stated.
B13: 3 | C13: Allowable revenue calculations for Non-Electric and Electric assets have been separated. The methodology remains the same for both.
B14: =ROW($A14)-ROW($A$11)+1 -> 4 | C14: Capital Expenditure is written into the RAB upon commissioning, not 'as incurred'.
B15: 5 | C15: UT4 Capital Indicator is expressed in "start of year" terms and are assumed to be written into the RAB at the beginning of the financial year, i.e. 1 July.
B16: 6 | C16: For pricing purposes, Depreciation is NOT recovered on UT4 Capital Indicator in the year of commissioning.
B17: 7 | C17: For pricing purposes, a full year Return on Capital is recovered on UT4 Capital Indicator in the year of commissioning.
B18: 8 | C18: UT4 revenue is smoothed by calculating the 2013/14 value that when escalated, will achieve the same NPV as the unsmoothed allowable revenue stream.
B19: 9 | C19: In addition to assumption 6 above, WIRP smoothed revenue is also adjusted to reflect the Contracted Volume Ramp-Up profile.
B20: 10 | C20: Tax calculations and smoothing adjustments have been hard-coded to reflect the outcomes of the "Customer Sensitive" version of the UT4 model.
B21: 11 | C21: Cross System Revenue allocations are factored in to the 'smoothing adjustment' because they require disclosure of customer specific information.
B22: 12 | C22: This model reflects the April 2013 UT4 Submission, and may vary from the final approved form. Some minor variances may exist due to rounding.
B23: 13 | C23: This model estimates the impact of the Electrification DAAU. However, the final form has not yet been finalised or approved.
B24: 14 | C24: All Asset Base data and revenue calculations include the value of AFD (rebatable) assets.
B25: 15 | C25: Pass through costs recovered via the EC (Electric Energy) and QCA Levy charges are EXCLUDED from the model.
A27: Variances to the UT4 Submission
B29: Two errors have been identified in the 2013 Draft Access Undertaking submission documents. Please note that this has no financial impact and is solely a 'presentation' error.
B31: 1 | C31: UT4 Submission; Volume 3, Page 20; Table 1: The data in this table incorrectly assigns all cross system net tonnes to the Goonyella System, instead of Goonyella and Blackwater. The 'Net Tonnes' table outlined in '3.3 Pricing and Tariffs' is the correct version.
B32: =ROW($A32)-ROW($A$31)+1 -> 2 | C32: UT4 Submission; Volume 3, Page 39; Table 15: The UT3 RAB roll-forward of the GAPE System displayed in Table 15 incorrectly excludes some GAPE capital expenditure. The GAPE Asset Base outlined in worksheet '1.2 UT3 RAB Rollforward' is the correct version (capital values are part of the 2011/12 and 2012/13 capital expenditure claims and subject to QCA approval).

Sheet 1. Inputs >

Sheet 1.1 General
A1: AURIZON NETWORK - UT4 "COAL SYSTEM AGGREGATE" MODEL
A3: =MID(CELL("FILENAME",A1:A1),(FIND("]",CELL("FILENAME",A1:A1))+1),(LEN(CELL("FILENAME",A1:A1))-FIND("]",CELL("FILENAME",A1:A1))+1)) -> 1.1 General
C5: GENERAL MODEL INPUTS
C7: MODEL START DATE | F7: 2013-07-01 | G7: 2013/14
C8: PERIOD TO MODEL | D8: Years | F8: 4
C10: FINANCIAL YEAR | F10: =$G$7 -> 2013/14 | G10: =LEFT(F$10,4)+1&"/"&RIGHT(F$10,2)+1 -> 2014/15 | H10: =LEFT(G$10,4)+1&"/"&RIGHT(G$10,2)+1 -> 2015/16 | I10: =LEFT(H$10,4)+1&"/"&RIGHT(H$10,2)+1 -> 2016/17 | M10: Legend:
C11: YEAR NUMBER | F11: 1 | G11: =F11+1 -> 2 | H11: =G11+1 -> 3 | I11: 4 | M11: HARD CODED
C12: CPI | D12: % | F12: =VLOOKUP(F$10,CPI_TABLE,2,FALSE) -> 0.025 | G12: =VLOOKUP(G$10,CPI_TABLE,2,FALSE) -> 0.025 | H12: =VLOOKUP(H$10,CPI_TABLE,2,FALSE) -> 0.025 | I12: =VLOOKUP(I$10,CPI_TABLE,2,FALSE) -> 0.025 | M12: CALCULATION
C13: Cumulative Inflation Index (CPI end Period) | D13: % | E13: 1 | F13: =$E$13*(1+F$12) -> 1.025 | G13: =F$13*(1+G$12) -> 1.050625 | H13: =G$13*(1+H$12) -> 1.076890625 | I13: =H$13*(1+I$12) -> 1.103812891 | M13: LINKED CELL
C15: WACC PARAMETERS
C16: Equity | D16: % | F16: =1-F17 -> 0.45
C17: Debt | D17: % | F17: 0.55
C18: NOMINAL VANILLA WACC | F18: =F16*F19+F17*F20 -> 0.0817606325
C19: Return on Equity | D19: Nominal Post Tax | F19: 0.1015369
C20: Return on Debt | D20: Nominal Pre Tax | F20: 0.06558005
C21: Gamma | D21: % | F21: 0.25
C22: Tax Rate | D22: % | F22: 0.3
C24: NPV ADJUSTMENTS FROM UT3
C25: [End of Year Dollars]
C27: NON-ELECTRIC | F27: TOTAL | G27: Capital Carryover | H27: UT3 Ballast Cost Adjustment
B28: =C28&$C$27 -> BLACKWATERNON-ELECTRIC | C28: BLACKWATER | D28: $000 | F28: =SUM(G28:I28) -> 9087.877 | G28: -9122.703 | H28: 18210.58
B29: =C29&$C$27 -> GAPENON-ELECTRIC | C29: GAPE | D29: $000 | F29: =SUM(G29:I29) -> -13211.637 | G29: -13211.637 | H29: 0
B30: =C30&$C$27 -> GOONYELLANON-ELECTRIC | C30: GOONYELLA | D30: $000 | F30: -25211.485 | G30: -45771.68 | H30: 20560.195
B31: =C31&$C$27 -> MOURANON-ELECTRIC | C31: MOURA | D31: $000 | F31: -791.534 | G31: -3060.44 | H31: 2268.906
B32: =C32&$C$27 -> NEWLANDSNON-ELECTRIC | C32: NEWLANDS | D32: $000 | F32: 2084.258 | G32: -231.63 | H32: 2315.888
C34: ELECTRIC | F34: TOTAL
B35: =C35&$C$34 -> BLACKWATERELECTRIC | C35: BLACKWATER | D35: $000 | F35: =SUM(G35:I35) -> -26659.54408 | G35: -26659.54408
B36: =C36&$C$34 -> GAPEELECTRIC | C36: GAPE | D36: $000 | F36: =SUM(G36:I36) -> 0 | G36: 0
B37: =C37&$C$34 -> GOONYELLAELECTRIC | C37: GOONYELLA | D37: $000 | F37: -12589.345 | G37: -12589.345
B38: =C38&$C$34 -> MOURAELECTRIC | C38: MOURA | D38: $000 | F38: 0 | G38: 0
B39: =C39&$C$34 -> NEWLANDSELECTRIC | C39: NEWLANDS | D39: $000 | F39: 0 | G39: 0
C41: TAX LOSS CARRIED FORWARD FROM UT3
B42: =COLUMN(F44)-COLUMN(B44)+1 -> 5 | C42: [End of Year Dollars]
C44: NON-ELECTRIC | F44: =F$10 -> 2013/14
B45: =C45&$C$44 -> BLACKWATERNON-ELECTRIC | C45: BLACKWATER | D45: $000
B46: =C46&$C$44 -> GAPENON-ELECTRIC | C46: GAPE | D46: $000
B47: =C47&$C$44 -> GOONYELLANON-ELECTRIC | C47: GOONYELLA | D47: $000
B48: =C48&$C$44 -> MOURANON-ELECTRIC | C48: MOURA | D48: $000
B49: =C49&$C$44 -> NEWLANDSNON-ELECTRIC | C49: NEWLANDS | D49: $000
C51: ELECTRIC | F51: =F$10 -> 2013/14
B52: =C52&$C$51 -> BLACKWATERELECTRIC | C52: BLACKWATER | D52: $000
B53: =C53&$C$51 -> GAPEELECTRIC | C53: GAPE | D53: $000
B54: =C54&$C$51 -> GOONYELLAELECTRIC | C54: GOONYELLA | D54: $000
B55: =C55&$C$51 -> MOURAELECTRIC | C55: MOURA | D55: $000
B56: =C56&$C$51 -> NEWLANDSELECTRIC | C56: NEWLANDS | D56: $000

Sheet 1.2 UT3 RAB Rollforward
A1: ='1.1 General'!$A$1 -> AURIZON NETWORK - UT4 "COAL SYSTEM AGGREGATE" MODEL
A3: =MID(CELL("FILENAME",A1:A1),(FIND("]",CELL("FILENAME",A1:A1))+1),(LEN(CELL("FILENAME",A1:A1))-FIND("]",CELL("FILENAME",A1:A1))+1)) -> 1.2 UT3 RAB Rollforward
C5: QCA Approved | D5: QCA Approved | E5: Submitted to QCA; awaiting approval | F5: Forecast | R5: UT4 OPENING ASSET VALUE | T5: VARIANCE TO 2012/13 CLOSING VALUE | V5: VARIANCE DUE TO:
C7: ROLL-FORWARD OF ASSET BASE DURING UT3 ($000) | H7: VALUE OF NON-COAL & DEFERRED ASSETS (EXCLUDED FOR PRICING PURPOSES) | M7: VALUE OF RAB FOR PRICING DURING UT3 ($000) | R7: ($000) | T7: ($000)
B9: Blackwater | C9: 2009/10 | D9: 2010/11 | E9: 2011/12 | F9: 2012/13 | H9: 2009/10 | I9: 2010/11 | J9: 2011/12 | K9: 2012/13 | M9: 2009/10 | N9: 2010/11 | O9: 2011/12 | P9: 2012/13 | R9: 2013/14
B10: Opening Asset Value | C10: 1494426.708 | D10: 1532390.723 | E10: 1522514.588 | F10: 1675287.074 | H10: -23348.5359 | I10: -23123.72048 | J10: -23001.00101 | K10: -22194.48697 | M10: =SUM(C10,H10) -> 1471078.172 | N10: =SUM(D10,I10) -> 1509267.003 | O10: 1499513.587 | P10: 1653092.587 | R10: =SUM('2.1 Blackwater'!$F$15,'2.1 Blackwater'!$F$35) -> 1677082.469 | T10: =R10-P14 -> 1214.56155 | V10: <= UT3 Equity Raising Costs, added to UT4 Opening Asset Value
B11: PLUS Capex | C11: 63162.09564 | D11: 10217.50997 | E11: 223391.773 | F11: 74732.54091 | H11: 0 | I11: 0 | J11: 0 | K11: 0 | M11: =SUM(C11,H11) -> 63162.09564 | N11: 10217.50997 | O11: 223391.773 | P11: 74732.54091
B12: PLUS Inflation | C12: 48845.60128 | D12: 58965.98759 | E12: 15088.11226 | F12: 42810.56698 | H12: -747.4793217 | I12: -886.8657603 | J12: -212.3938171 | K12: -554.8621744 | M12: 48098.12196 | N12: 58079.12183 | O12: 14875.71845 | P12: 42255.70481
B13: LESS Depreciation | C13: -74043.68118 | D13: -79059.63347 | E13: -85707.3992 | F13: -95257.30534 | H13: 972.2947404 | I13: 1009.585232 | J13: 1018.907855 | K13: 1044.380552 | M13: -73071.38644 | N13: -78050.04824 | O13: -84688.49135 | P13: -94212.92479
B14: Closing Asset Value | C14: =SUM(C10:C13) -> 1532390.723 | D14: =SUM(D10:D13) -> 1522514.588 | E14: =SUM(E10:E13) -> 1675287.074 | F14: =SUM(F10:F13) -> 1697572.876 | H14: =SUM(H10:H13) -> -23123.72048 | I14: =SUM(I10:I13) -> -23001.00101 | J14: =SUM(J10:J13) -> -22194.48697 | K14: =SUM(K10:K13) -> -21704.9686 | M14: =SUM(M10:M13) -> 1509267.003 | N14: =SUM(N10:N13) -> 1499513.587 | O14: =SUM(O10:O13) -> 1653092.587 | P14: =SUM(P10:P13) -> 1675867.908
B16: GAPE | C16: 2009/10 | D16: 2010/11 | E16: 2011/12 | F16: 2012/13 | H16: 2009/10 | I16: 2010/11 | J16: 2011/12 | K16: 2012/13 | M16: 2009/10 | N16: 2010/11 | O16: 2011/12 | P16: 2012/13 | R16: 2013/14
B17: Opening Asset Value | C17: 0 | D17: 0 | E17: 0 | F17: 986028.7987 | H17: 0 | I17: 0 | J17: 0 | K17: -181734.0235 | M17: =SUM(C17,H17) -> 0 | N17: =SUM(D17,I17) -> 0 | O17: =SUM(E17,J17) -> 0 | P17: =SUM(F17,K17) -> 804294.7753 | R17: =SUM('2.2 GAPE'!$F$15,'2.2 GAPE'!$F$35) -> 1098431.344 | T17: =R17-P21 -> 207915.6731 | V17: <= Deferred capital expenditure from 2011/12 and 2012/13 and UT3 Equity Raising Costs, added to UT4 Opening Asset Value
B18: PLUS Capex | C18: 0 | D18: 0 | E18: 965875.9133 | F18: 69983.44446 | H18: 0 | I18: 0 | J18: -165269.0904 | K18: -4681.157488 | M18: =SUM(C18,H18) -> 0 | N18: 0 | O18: 800606.8229 | P18: 65302.28697
B19: PLUS Inflation | C19: 0 | D19: 0 | E19: 20152.88544 | F19: 39490.22142 | H19: 0 | I19: 0 | J19: -16464.93313 | K19: -18571.6124 | M19: 0 | N19: 0 | O19: 3687.952317 | P19: 20918.60902
B20: LESS Depreciation | C20: 0 | D20: 0 | E20: 0 | F20: 0 | H20: 0 | I20: 0 | J20: 0 | K20: 0 | M20: 0 | N20: 0 | O20: 0 | P20: 0
B21: Closing Asset Value | C21: =SUM(C17:C20) -> 0 | D21: =SUM(D17:D20) -> 0 | E21: =SUM(E17:E20) -> 986028.7987 | F21: =SUM(F17:F20) -> 1095502.465 | H21: =SUM(H17:H20) -> 0 | I21: =SUM(I17:I20) -> 0 | J21: =SUM(J17:J20) -> -181734.0235 | K21: =SUM(K17:K20) -> -204986.7934 | M21: =SUM(M17:M20) -> 0 | N21: =SUM(N17:N20) -> 0 | O21: =SUM(O17:O20) -> 804294.7753 | P21: =SUM(P17:P20) -> 890515.6712
B23: Goonyella | C23: 2009/10 | D23: 2010/11 | E23: 2011/12 | F23: 2012/13 | H23: 2009/10 | I23: 2010/11 | J23: 2011/12 | K23: 2012/13 | M23: 2009/10 | N23: 2010/11 | O23: 2011/12 | P23: 2012/13 | R23: 2013/14
B24: Opening Asset Value | C24: 1333457.806 | D24: 1528181.269 | E24: 1616419.368 | F24: 1587913.738 | H24: 0 | I24: 0 | J24: 0 | K24: 0 | M24: =SUM(C24,H24) -> 1333457.806 | N24: =SUM(D24,I24) -> 1528181.269 | O24: =SUM(E24,J24) -> 1616419.368 | P24: =SUM(F24,K24) -> 1587913.738 | R24: =SUM('2.3 Goonyella'!$F$15,'2.3 Goonyella'!$F$35) -> 1612733.099 | T24: =R24-P28 -> 1427.056859 | V24: <= UT3 Equity Raising Costs, added to UT4 Opening Asset Value
B25: PLUS Capex | C25: 216099.5179 | D25: 107018.6944 | E25: 41102.266 | F25: 72282.00538 | H25: 0 | I25: 0 | J25: 0 | K25: 0 | M25: =SUM(C25,H25) -> 216099.5179 | N25: 107018.6944 | O25: 41102.266 | P25: 72282.00538
B26: PLUS Inflation | C26: 46121.12914 | D26: 60643.38809 | E26: 15115.5327 | F26: 40595.79099 | H26: 0 | I26: 0 | J26: 0 | K26: 0 | M26: 46121.12914 | N26: 60643.38809 | O26: 15115.5327 | P26: 40595.79099
B27: LESS Depreciation | C27: -67497.18441 | D27: -79423.98283 | E27: -84723.42891 | F27: -89485.49282 | H27: 0 | I27: 0 | J27: 0 | K27: 0 | M27: -67497.18441 | N27: -79423.98283 | O27: -84723.42891 | P27: -89485.49282
B28: Closing Asset Value | C28: =SUM(C24:C27) -> 1528181.269 | D28: =SUM(D24:D27) -> 1616419.368 | E28: =SUM(E24:E27) -> 1587913.738 | F28: =SUM(F24:F27) -> 1611306.042 | H28: =SUM(H24:H27) -> 0 | I28: =SUM(I24:I27) -> 0 | J28: =SUM(J24:J27) -> 0 | K28: =SUM(K24:K27) -> 0 | M28: =SUM(M24:M27) -> 1528181.269 | N28: =SUM(N24:N27) -> 1616419.368 | O28: =SUM(O24:O27) -> 1587913.738 | P28: =SUM(P24:P27) -> 1611306.042
B30: Moura | C30: 2009/10 | D30: 2010/11 | E30: 2011/12 | F30: 2012/13 | H30: 2009/10 | I30: 2010/11 | J30: 2011/12 | K30: 2012/13 | M30: 2009/10 | N30: 2010/11 | O30: 2011/12 | P30: 2012/13 | R30: 2013/14
B31: Opening Asset Value | C31: 253911.2265 | D31: 255442.307 | E31: 256683.8303 | F31: 251547.8097 | H31: 0 | I31: 0 | J31: 0 | K31: 0 | M31: =SUM(C31,H31) -> 253911.2265 | N31: =SUM(D31,I31) -> 255442.307 | O31: =SUM(E31,J31) -> 256683.8303 | P31: =SUM(F31,K31) -> 251547.8097 | R31: =SUM('2.4 Moura'!$F$15,'2.4 Moura'!$F$35) -> 250389.8296 | T31: =R31-P35 -> 22.93747533 | V31: <= UT3 Equity Raising Costs, added to UT4 Opening Asset Value
B32: PLUS Capex | C32: 2200.35419 | D32: 686.9228182 | E32: 1894.448 | F32: 2235.430088 | H32: 0 | I32: 0 | J32: 0 | K32: 0 | M32: =SUM(C32,H32) -> 2200.35419 | N32: 686.9228182 | O32: 1894.448 | P32: 2235.430088
B33: PLUS Inflation | C33: 8163.649888 | D33: 9810.046537 | E33: 2378.973884 | F33: 6316.465626 | H33: 0 | I33: 0 | J33: 0 | K33: 0 | M33: 8163.649888 | N33: 9810.046537 | O33: 2378.973884 | P33: 6316.465626
B34: LESS Depreciation | C34: -8832.923532 | D34: -9255.446076 | E34: -9409.442453 | F34: -9732.813371 | H34: 0 | I34: 0 | J34: 0 | K34: 0 | M34: -8832.923532 | N34: -9255.446076 | O34: -9409.442453 | P34: -9732.813371
B35: Closing Asset Value | C35: =SUM(C31:C34) -> 255442.307 | D35: =SUM(D31:D34) -> 256683.8303 | E35: =SUM(E31:E34) -> 251547.8097 | F35: =SUM(F31:F34) -> 250366.8921 | H35: =SUM(H31:H34) -> 0 | I35: =SUM(I31:I34) -> 0 | J35: =SUM(J31:J34) -> 0 | K35: =SUM(K31:K34) -> 0 | M35: =SUM(M31:M34) -> 255442.307 | N35: =SUM(N31:N34) -> 256683.8303 | O35: =SUM(O31:O34) -> 251547.8097 | P35: =SUM(P31:P34) -> 250366.8921
B37: Newlands | C37: 2009/10 | D37: 2010/11 | E37: 2011/12 | F37: 2012/13 | H37: 2009/10 | I37: 2010/11 | J37: 2011/12 | K37: 2012/13 | M37: 2009/10 | N37: 2010/11 | O37: 2011/12 | P37: 2012/13 | R37: 2013/14
B38: Opening Asset Value | C38: 165276.6429 | D38: 164203.4484 | E38: 164644.7341 | F38: 238277.3366 | H38: 0 | I38: 0 | J38: 0 | K38: -38379.1862 | M38: =SUM(C38,H38) -> 165276.6429 | N38: =SUM(D38,I38) -> 164203.4484 | O38: =SUM(E38,J38) -> 164644.7341 | P38: =SUM(F38,K38) -> 199898.1503 | R38: =SUM('2.5 Newlands'!$F$15,'2.5 Newlands'!$F$35) -> 202960.8107 | T38: =R38-P42 -> 171.5897082 | V38: <= UT3 Equity Raising Costs, added to UT4 Opening Asset Value
B39: PLUS Capex | C39: 750.0002295 | D39: 1600.140056 | E39: 77102.06771 | F39: 9282.608646 | H39: 0 | I39: 0 | J39: -34902.06771 | K39: -1347.668759 | M39: =SUM(C39,H39) -> 750.0002295 | N39: 1600.140056 | O39: 42200 | P39: 7934.939888
B40: PLUS Inflation | C40: 5303.072109 | D40: 6328.103426 | E40: 5191.858426 | F40: 9053.816146 | H40: 0 | I40: 0 | J40: -3477.118495 | K40: -3957.787925 | M40: 5303.072109 | N40: 6328.103426 | O40: 1714.73993 | P40: 5096.02822
B41: LESS Depreciation | C41: -7126.266847 | D41: -7486.957783 | E41: -8661.323656 | F41: -10139.89743 | H41: 0 | I41: 0 | J41: 0 | K41: 0 | M41: -7126.266847 | N41: -7486.957783 | O41: -8661.323656 | P41: -10139.89743
B42: Closing Asset Value | C42: =SUM(C38:C41) -> 164203.4484 | D42: =SUM(D38:D41) -> 164644.7341 | E42: =SUM(E38:E41) -> 238277.3366 | F42: =SUM(F38:F41) -> 246473.8639 | H42: =SUM(H38:H41) -> 0 | I42: =SUM(I38:I41) -> 0 | J42: =SUM(J38:J41) -> -38379.1862 | K42: =SUM(K38:K41) -> -43684.64289 | M42: =SUM(M38:M41) -> 164203.4484 | N42: =SUM(N38:N41) -> 164644.7341 | O42: =SUM(O38:O41) -> 199898.1503 | P42: =SUM(P38:P41) -> 202789.221
B44: TOTAL | C44: 2009/10 | D44: 2010/11 | E44: 2011/12 | F44: 2012/13 | H44: 2009/10 | I44: 2010/11 | J44: 2011/12 | K44: 2012/13 | M44: 2009/10 | N44: 2010/11 | O44: 2011/12 | P44: 2012/13 | R44: 2013/14
B45: Opening Asset Value | C45: =SUM(C10,C17,C24,C31,C38) -> 3247072.383 | D45: =SUM(D10,D17,D24,D31,D38) -> 3480217.747 | E45: 3560262.52 | F45: 4739054.757 | H45: =SUM(H10,H17,H24,H31,H38) -> -23348.5359 | I45: =SUM(I10,I17,I24,I31,I38) -> -23123.72048 | J45: -23001.00101 | K45: -242307.6967 | M45: =SUM(M10,M17,M24,M31,M38) -> 3223723.847 | N45: =SUM(N10,N17,N24,N31,N38) -> 3457094.027 | O45: 3537261.519 | P45: 4496747.06 | R45: =SUM(R10,R17,R24,R31,R38) -> 4841597.552 | T45: =R45-P49 -> 210751.8187 | V45: =IF(T45=SUM(T10,T17,T24,T31,T38),"<= OK","CHECK") -> <= OK
B46: PLUS Capex | C46: =SUM(C11,C18,C25,C32,C39) -> 282211.968 | D46: 119523.2673 | E46: 1309366.468 | F46: 228516.0295 | H46: =SUM(H11,H18,H25,H32,H39) -> 0 | I46: 0 | J46: -200171.1581 | K46: -6028.826247 | M46: =SUM(M11,M18,M25,M32,M39) -> 282211.968 | N46: 119523.2673 | O46: 1109195.31 | P46: 222487.2032
B47: PLUS Inflation | C47: 108433.4524 | D47: 135747.5256 | E47: 57927.36271 | F47: 138266.8612 | H47: =SUM(H12,H19,H26,H33,H40) -> -747.4793217 | I47: -886.8657603 | J47: -20154.44544 | K47: -23084.2625 | M47: =SUM(M12,M19,M26,M33,M40) -> 107685.9731 | N47: 134860.6599 | O47: 37772.91728 | P47: 115182.5987
B48: LESS Depreciation | C48: -157500.056 | D48: -175226.0202 | E48: -188501.5942 | F48: -204615.509 | H48: =SUM(H13,H20,H27,H34,H41) -> 972.2947404 | I48: 1009.585232 | J48: 1018.907855 | K48: 1044.380552 | M48: =SUM(M13,M20,M27,M34,M41) -> -156527.7612 | N48: -174216.4349 | O48: -187482.6864 | P48: -203571.1284
B49: Closing Asset Value | C49: =SUM(C45:C48) -> 3480217.747 | D49: =SUM(D45:D48) -> 3560262.52 | E49: =SUM(E45:E48) -> 4739054.757 | F49: =SUM(F45:F48) -> 4901222.138 | H49: =SUM(H45:H48) -> -23123.72048 | I49: =SUM(I45:I48) -> -23001.00101 | J49: =SUM(J45:J48) -> -242307.6967 | K49: =SUM(K45:K48) -> -270376.4049 | M49: =SUM(M45:M48) -> 3457094.027 | N49: =SUM(N45:N48) -> 3537261.519 | O49: =SUM(O45:O48) -> 4496747.06 | P49: =SUM(P45:P48) -> 4630845.734

Sheet 2. Allowable Revenue >

Sheet 2.1 Blackwater
A1: ='1.1 General'!$A$1 -> AURIZON NETWORK - UT4 "COAL SYSTEM AGGREGATE" MODEL
A3: =MID(CELL("FILENAME",A1:A1),(FIND("]",CELL("FILENAME",A1:A1))+1),(LEN(CELL("FILENAME",A1:A1))-FIND("]",CELL("FILENAME",A1:A1))+1)) -> 2.1 Blackwater
C5: Period Start | F5: =MODEL_START -> 2013-07-01 | G5: =F6+1 -> 2014-07-01 | H5: =G6+1 -> 2015-07-01 | I5: 2016-07-01
B6: BY FINANCIAL YEAR | C6: Period End | F6: =EOMONTH(F5,11) -> 2014-06-30 | G6: 2015-06-30 | H6: 2016-06-30 | I6: 2017-06-30
C7: Financial Year | F7: =YEAR(F$5)&"/"&RIGHT(YEAR(F$6),2) -> 2013/14 | G7: =YEAR(G$5)&"/"&RIGHT(YEAR(G$6),2) -> 2014/15 | H7: 2015/16 | I7: 2016/17
B9: BLACKWATER | F9: 1 | G9: =F9+1 -> 2 | H9: =G9+1 -> 3 | I9: 4
B11: CPI | F11: ='1.1 General'!F$12 -> 0.025 | G11: ='1.1 General'!G$12 -> 0.025 | H11: ='1.1 General'!H$12 -> 0.025 | I11: ='1.1 General'!I$12 -> 0.025
B12: CUMULATIVE INFLATION INDEX | E12: ='1.1 General'!E$13 -> 1 | F12: ='1.1 General'!F$13 -> 1.025 | G12: ='1.1 General'!G$13 -> 1.050625 | H12: ='1.1 General'!H$13 -> 1.076890625 | I12: ='1.1 General'!I$13 -> 1.103812891
B14: NON-ELECTRIC | F14: =IF(SUM(F$15:F$18)<>0,1,0) -> 1 | G14: =IF(SUM(G$15:G$18)<>0,1,0) -> 1 | H14: 1 | I14: 1
B15: Opening | C15: $000's | F15: 1389902.051 | G15: 1443378.891 | H15: 2182271.069 | I15: 2193440.974
B16: PLUS Capex | C16: $000's | F16: 93977.80959 | G16: 766799.1578 | H16: 73297.78072 | I16: 52265.34985
B17: PLUS Inflation | C17: $000's | F17: 37096.99651 | G17: 55254.45123 | H17: 56389.22125 | I17: 56142.65808
B18: LESS Depreciation | C18: $000's | F18: 77597.96565 | G18: 83161.43082 | H18: 118517.0979 | I18: 124799.5611
B19: Closing | C19: $000's | F19: =F15+F16+F17-F18 -> 1443378.891 | G19: =G15+G16+G17-G18 -> 2182271.069 | H19: 2193440.974 | I19: 2177049.42
B21: NET DEPRECIATION (Depreciation - Inflation)
B22: Existing RAB | C22: $000's | F22: =(F18-F17)-F23 -> 42850.41438 | G22: =(G18-G17)-G23 -> 45535.72247 | H22: 48363.61524 | I22: 51566.58439
B23: Capex | C23: $000's | F23: -2349.44524 | G23: -17628.74287 | H23: 13764.26136 | I23: 17090.31859
B25: TAX DEPRECIATION
B26: Existing RAB | C26: $000's | F26: 24892.06472 | G26: 22969.72789 | H26: 20429.50386 | I26: 18581.48601
B27: Capex | C27: $000's | F27: 19906.19767 | G27: 47770.72112 | H27: 59128.5766 | I27: 53439.85887
B29: OPERATING AND MAINTENANCE
B30: Maintenance Costs | C30: $000's | F30: 92386.99793 | G30: 104834.1021 | H30: 117532.7392 | I30: 120584.1235
B31: Operating Costs | C31: $000's | F31: 40708.46088 | G31: 43495.52583 | H31: 48110.274 | I31: 50895.32726
B32: Total (Excluding Tax) | C32: $000's | F32: =SUM(F30:F31) -> 133095.4588 | G32: =SUM(G30:G31) -> 148329.6279 | H32: 165643.0132 | I32: 171479.4508
B34: ELECTRIC | F34: =IF(SUM(F$35:F$38)<>0,1,0) -> 1 | G34: =IF(SUM(G$35:G$38)<>0,1,0) -> 1 | H34: 1 | I34: 1
B35: Opening | C35: $000's | F35: 287180.4183 | G35: 273612.9592 | H35: 566232.3273 | I35: 569481.4354
B36: PLUS Capex | C36: $000's | F36: 3586.347512 | G36: 303354.3329 | H36: 22794.83595 | I36: 19152.42401
B37: PLUS Inflation | C37: $000's | F37: 7269.169146 | G37: 14424.1823 | H37: 14725.67908 | I37: 14715.84648
B38: LESS Depreciation | C38: $000's | F38: 24422.97584 | G38: 25159.14712 | H38: 34271.40695 | I38: 20875.37923
B39: Closing | C39: $000's | F39: =F35+F36+F37-F38 -> 273612.9592 | G39: =G35+G36+G37-G38 -> 566232.3273 | H39: 569481.4354 | I39: 582474.3266
B41: NET DEPRECIATION (Depreciation - Inflation)
B42: Existing RAB | C42: $000's | F42: =(F38-F37)-F43 -> 17243.46538 | G42: =(G38-G37)-G43 -> 18285.12641 | H42: 17227.65295 | I42: 3195.210947
B43: Capex | C43: $000's | F43: -89.6586878 | G43: -7550.1616 | H43: 2318.074918 | I43: 2964.3218
B45: TAX DEPRECIATION
B46: Existing RAB | C46: $000's | F46: 2581.61276 | G46: 2501.69985 | H46: 1747.47118 | I46: 1468.35117
B47: Capex | C47: $000's | F47: 7225.473937 | G47: 14436.06196 | H47: 21034.57206 | I47: 21598.86754
B49: OPERATING AND MAINTENANCE
B50: Maintenance Costs | C50: $000's | F50: 3721.373869 | G50: 3895.19787 | H50: 4052.182137 | I50: 4218.293023
B51: Operating Costs | C51: $000's | F51: 37842.221 | G51: 39005.59638 | H51: 40825.25153 | I51: 41801.48679
B52: Total (Excluding Tax) | C52: $000's | F52: =SUM(F50:F51) -> 41563.59486 | G52: 42900.79425 | H52: 44877.43367 | I52: 46019.77981
A54: ANNUAL BUILDING BLOCKS ($000, NOMINAL)
B56: NON-ELECTRIC
B58: RAB | F58: =F$15 -> 1389902.051 | G58: =G$15 -> 1443378.891 | H58: 2182271.069 | I58: 2193440.974
B59: - Equity | C59: ='1.1 General'!$F$16 -> 0.45 | F59: =$C59*F$58 -> 625455.9228 | G59: =$C59*G$58 -> 649520.501 | H59: 982021.9812 | I59: 987048.4381
B60: - Debt | C60: ='1.1 General'!$F$17 -> 0.55 | F60: =$C60*F$58 -> 764446.1279 | G60: 793858.3902 | H60: 1200249.088 | I60: 1206392.535
B62: CAPEX | F62: =F$16 -> 93977.80959 | G62: =G$16 -> 766799.1578 | H62: 73297.78072 | I62: 52265.34985
B63: - Equity | C63: ='1.1 General'!$F$16 -> 0.45 | F63: =$C63*F$62 -> 42290.01432 | G63: =$C63*G$62 -> 345059.621 | H63: 32984.00132 | I63: 23519.40743
B64: - Debt | C64: ='1.1 General'!$F$17 -> 0.55 | F64: =$C64*F$62 -> 51687.79527 | G64: 421739.5368 | H64: 40313.77939 | I64: 28745.94242
B66: REVENUE BUILDING BLOCKS
B68: Return on Asset - RAB
B69: - Return on Equity | C69: ='1.1 General'!$F$19 -> 0.1015369 | F69: =$C69*F59 -> 63506.85549 | G69: 65950.29816 | H69: 99711.46771 | I69: 100221.8386
B70: - Return on Debt | C70: ='1.1 General'!$F$20 -> 0.06558005 | F70: =$C70*F60 -> 50132.41529 | G70: 52061.27292 | H70: 78712.39521 | I70: 79115.28279
C71: ='1.1 General'!$F$18 -> 0.0817606325 | F71: =SUM(F69:F70) -> 113639.2708 | G71: 118011.5711 | H71: 178423.8629 | I71: 179337.1213
B73: Return on Asset - CAPEX
B74: - Return on Equity | C74: ='1.1 General'!$F$19 -> 0.1015369 | F74: =$C74*F63 -> 4293.996955 | G74: =$C74*G63 -> 35036.28423 | H74: 3349.093244 | I74: 2388.087721
B75: - Return on Debt | C75: ='1.1 General'!$F$20 -> 0.06558005 | F75: =$C75*F64 -> 3389.688198 | G75: =$C75*G64 -> 27657.69991 | H75: 2643.779668 | I75: 1885.160341
C76: ='1.1 General'!$F$18 -> 0.0817606325 | F76: =SUM(F74:F75) -> 7683.685153 | G76: =SUM(G74:G75) -> 62693.98414 | H76: 5992.872912 | I76: 4273.248062
B78: Return of Asset (regulatory depreciation) | F78: =F$18 -> 77597.96565 | G78: =G$18 -> 83161.43082 | H78: 118517.0979 | I78: 124799.5611
B79: Less Inflation | F79: =-F$17 -> -37096.99651 | G79: -55254.45123 | H79: -56389.22125 | I79: -56142.65808
B81: Free Cash | F81: =SUM(F71,F76,F78,F79) -> 161823.9251 | G81: =SUM(G71,G76,G78,G79) -> 208612.5348 | H81: 246544.6124 | I81: 252267.2724
B83: Operating and Maintenance (O&M) Expenditure | F83: =F$32 -> 133095.4588 | G83: =G$32 -> 148329.6279 | H83: 165643.0132 | I83: 171479.4508
B85: Tax Payable | F85: =F101 -> 24582.02291 | G85: =G101 -> 24336.56659 | H85: 31353.98233 | I85: 38436.36808
B86: Less Value of Imputation Credits | C86: ='1.1 General'!$F$21 -> 0.25 | F86: =$C$86*-F85 -> -6145.505729 | G86: =$C$86*-G85 -> -6084.141648 | H86: -7838.495581 | I86: -9609.092019
B88: Annual Building Block Revenue Requirement | F88: =SUM(F81:F87) -> 313355.9011 | G88: 375194.5877 | H88: 435703.1124 | I88: 452573.9992
B90: TAX EXPENSES
B91: - O&M | F91: =F83 -> 133095.4588 | G91: =G83 -> 148329.6279 | H91: 165643.0132 | I91: 171479.4508
B92: - Tax Depreciation | F92: =F26+F27 -> 44798.26239 | G92: =G26+G27 -> 70740.44902 | H92: 79558.08045 | I92: 72021.34488
B93: - Interest | F93: =F70+F75 -> 53522.10349 | G93: =G70+G75 -> 79718.97283 | H93: 81356.17488 | I93: 81000.44313
B94: Total Tax Expenses | F94: =SUM(F91:F93) -> 231415.8247 | G94: =SUM(G91:G93) -> 298789.0498 | H94: 326557.2686 | I94: 324501.2388
B96: TAX CALCULATION
B97: Corporate Tax Rate | F97: ='1.1 General'!$F$22 -> 0.3 | G97: ='1.1 General'!$F$22 -> 0.3 | H97: ='1.1 General'!$F$22 -> 0.3 | I97: ='1.1 General'!$F$22 -> 0.3
B98: Taxable Income | F98: =F99+E100 -> 81940.07638 | G98: =G99+F100 -> 76405.53792 | H98: 109145.8438 | I98: 128072.7604
B99: - Pre-tax Income | F99: =F88-F94 -> 81940.07638 | G99: =G88-G94 -> 76405.53792 | H99: 109145.8438 | I99: 128072.7604
B100: - Tax Loss Carried Forward | E100: =VLOOKUP($B$9&$B$56,'1.1 General'!$B$44:$F$56,'1.1 General'!$B$42,FALSE) -> 0 | F100: =IF(F98<0,F98,0) -> 0 | G100: =IF(G98<0,G98,0) -> 0 | H100: 0 | I100: 0
B101: Tax Payable | C101: ='1.1 General'!$F$22 -> 0.3 | F101: 24582.02291 | G101: 24336.56659 | H101: 31353.98233 | I101: 38436.36808
B102: Value of Imputation Credits | C102: ='1.1 General'!$F$21 -> 0.25 | F102: =$C$102*F101 -> 6145.505729 | G102: =$C$102*G101 -> 6084.141648 | H102: 7838.495581 | I102: 9609.092019
B105: ELECTRIC
B107: RAB | F107: =F$35 -> 287180.4183 | G107: =G$35 -> 273612.9592 | H107: 566232.3273 | I107: 569481.4354
B108: - Equity | C108: ='1.1 General'!$F$16 -> 0.45 | F108: =$C108*F$107 -> 129231.1883 | G108: 123125.8316 | H108: 254804.5473 | I108: 256266.6459
B109: - Debt | C109: ='1.1 General'!$F$17 -> 0.55 | F109: 157949.2301 | G109: 150487.1275 | H109: 311427.78 | I109: 313214.7894
B111: CAPEX | F111: =F$36 -> 3586.347512 | G111: =G$36 -> 303354.3329 | H111: 22794.83595 | I111: 19152.42401
B112: - Equity | C112: ='1.1 General'!$F$16 -> 0.45 | F112: =$C112*F$111 -> 1613.85638 | G112: 136509.4498 | H112: 10257.67618 | I112: 8618.590803
B113: - Debt | C113: ='1.1 General'!$F$17 -> 0.55 | F113: 1972.491132 | G113: 166844.8831 | H113: 12537.15977 | I113: 10533.8332
B115: REVENUE BUILDING BLOCKS
B117: Return on Asset - RAB
B118: - Return on Equity | C118: ='1.1 General'!$F$19 -> 0.1015369 | F118: =$C118*F108 -> 13121.73424 | G118: 12501.81525 | H118: 25872.06384 | I118: 26020.5208
B119: - Return on Debt | C119: ='1.1 General'!$F$20 -> 0.06558005 | F119: =$C119*F109 -> 10358.31841 | G119: 9868.953348 | H119: 20423.44938 | I119: 20540.64155
C120: ='1.1 General'!$F$18 -> 0.0817606325 | F120: =SUM(F118:F119) -> 23480.05265 | G120: 22370.7686 | H120: 46295.51322 | I120: 46561.16235
B122: Return on Asset - CAPEX
B123: - Return on Equity | C123: ='1.1 General'!$F$19 -> 0.1015369 | F123: =$C123*F112 -> 163.8659739 | G123: =$C123*G112 -> 13860.74636 | H123: 1041.53264 | I123: 875.1049925
B124: - Return on Debt | C124: ='1.1 General'!$F$20 -> 0.06558005 | F124: =$C124*F113 -> 129.356067 | G124: =$C124*G113 -> 10941.69578 | H124: 822.1875648 | I124: 690.8093082
C125: ='1.1 General'!$F$18 -> 0.0817606325 | F125: =SUM(F123:F124) -> 293.222041 | G125: =SUM(G123:G124) -> 24802.44213 | H125: =SUM(H123:H124) -> 1863.720205 | I125: =SUM(I123:I124) -> 1565.914301
B127: Return of Asset (regulatory depreciation) | F127: =F$38 -> 24422.97584 | G127: 25159.14712 | H127: 34271.40695 | I127: 20875.37923
B128: Less Inflation | F128: =-F$37 -> -7269.169146 | G128: =-G$37 -> -14424.1823 | H128: -14725.67908 | I128: -14715.84648
B130: Free Cash | F130: =SUM(F120,F125,F127,F128) -> 40927.08138 | G130: =SUM(G120,G125,G127,G128) -> 57908.17555 | H130: 67704.96129 | I130: 54286.6094
B132: Operating and Maintenance (O&M) Expenditure | F132: =F$52 -> 41563.59486 | G132: =G$52 -> 42900.79425 | H132: 44877.43367 | I132: 46019.77981
B134: Tax Payable | F134: =F150 -> 7986.704598 | G134: =G150 -> 8430.457581 | H134: 9271.016297 | I134: 3659.790696
B135: Less Value of Imputation Credits | C135: ='1.1 General'!$F$21 -> 0.25 | F135: =$C$135*-F134 -> -1996.67615 | G135: =$C$135*-G134 -> -2107.614395 | H135: =$C$135*-H134 -> -2317.754074 | I135: =$C$135*-I134 -> -914.9476741
B137: Annual Building Block Revenue Requirement | F137: =SUM(F130:F136) -> 88480.7047 | G137: 107131.813 | H137: 119535.6572 | I137: 103051.2322
B139: TAX EXPENSES
B140: - O&M | F140: =F132 -> 41563.59486 | G140: =G132 -> 42900.79425 | H140: 44877.43367 | I140: 46019.77981
B141: - Tax Depreciation | F141: =F46+F47 -> 9807.086697 | G141: =G46+G47 -> 16937.76181 | H141: =H46+H47 -> 22782.04324 | I141: =I46+I47 -> 23067.21871
B142: - Interest | F142: =F119+F124 -> 10487.67447 | G142: =G119+G124 -> 20810.64912 | H142: 21245.63695 | I142: 21231.45086
B143: Total Tax Expenses | F143: =SUM(F140:F142) -> 61858.35604 | G143: =SUM(G140:G142) -> 80649.20518 | H143: 88905.11386 | I143: 90318.44938
B145: TAX CALCULATION
B146: Corporate Tax Rate | F146: ='1.1 General'!$F$22 -> 0.3 | G146: ='1.1 General'!$F$22 -> 0.3 | H146: ='1.1 General'!$F$22 -> 0.3 | I146: ='1.1 General'!$F$22 -> 0.3
B147: Taxable Income | F147: =F148+E149 -> 26622.34866 | G147: 26482.6078 | H147: 30630.54333 | I147: 12732.78285
B148: - Pre-tax Income | F148: =F137-F143 -> 26622.34866 | G148: =G137-G143 -> 26482.6078 | H148: 30630.54333 | I148: 12732.78285
B149: - Tax Loss Carried Forward | E149: =VLOOKUP($B$9&$B$105,'1.1 General'!$B$44:$F$56,'1.1 General'!$B$42,FALSE) -> 0 | F149: =IF(F147<0,F147,0) -> 0 | G149: =IF(G147<0,G147,0) -> 0 | H149: 0 | I149: 0
B150: Tax Payable | C150: ='1.1 General'!$F$22 -> 0.3 | F150: 7986.704598 | G150: 8430.457581 | H150: 9271.016297 | I150: 3659.790696
B151: Value of Imputation Credits | C151: ='1.1 General'!$F$21 -> 0.25 | F151: =$C$151*F150 -> 1996.67615 | G151: =$C$151*G150 -> 2107.614395 | H151: =$C$151*H150 -> 2317.754074 | I151: =$C$151*I150 -> 914.9476741
B154: BLACKWATER Building Blocks
B156: Non-Electric
B157: Return on Capital | F157: =SUM(F71,F76) -> 121322.9559 | G157: =SUM(G71,G76) -> 180705.5552 | H157: =SUM(H71,H76) -> 184416.7358 | I157: =SUM(I71,I76) -> 183610.3694
B158: Less Inflation | F158: =F79 -> -37096.99651 | G158: =G79 -> -55254.45123 | H158: =H79 -> -56389.22125 | I158: =I79 -> -56142.65808
B159: Plus Depreciation | F159: =F78 -> 77597.96565 | G159: =G78 -> 83161.43082 | H159: =H78 -> 118517.0979 | I159: =I78 -> 124799.5611
B160: Maintenance costs | F160: =F30 -> 92386.99793 | G160: 104834.1021 | H160: 117532.7392 | I160: 120584.1235
B161: Operating Costs | F161: 40708.46088 | G161: 43495.52583 | H161: 48110.274 | I161: 50895.32726
B162: Gamma adjusted Tax | F162: =F85+F86 -> 18436.51719 | G162: =G85+G86 -> 18252.42494 | H162: =H85+H86 -> 23515.48674 | I162: =I85+I86 -> 28827.27606
B163: Total | F163: =SUM(F157:F162) -> 313355.9011 | G163: =SUM(G157:G162) -> 375194.5877 | H163: 435703.1124 | I163: 452573.9992
B165: Electric
B166: Return on Capital | F166: =F120+F125 -> 23773.27469 | G166: =G120+G125 -> 47173.21073 | H166: =H120+H125 -> 48159.23342 | I166: =I120+I125 -> 48127.07665
B167: Less Inflation | F167: =F128 -> -7269.169146 | G167: =G128 -> -14424.1823 | H167: =H128 -> -14725.67908 | I167: =I128 -> -14715.84648
B168: Plus Depreciation | F168: =F127 -> 24422.97584 | G168: =G127 -> 25159.14712 | H168: =H127 -> 34271.40695 | I168: =I127 -> 20875.37923
B169: Maintenance costs | F169: =F50 -> 3721.373869 | G169: =G50 -> 3895.19787 | H169: =H50 -> 4052.182137 | I169: =I50 -> 4218.293023
B170: Operating Costs
B171: Electric Connection Costs | F171: =F51 -> 37842.221 | G171: =G51 -> 39005.59638 | H171: =H51 -> 40825.25153 | I171: =I51 -> 41801.48679
B172: Gamma adjusted Tax | F172: =F134+F135 -> 5990.028449 | G172: =G134+G135 -> 6322.843186 | H172: =H134+H135 -> 6953.262223 | I172: =I134+I135 -> 2744.843022
B173: Total | F173: =SUM(F166:F172) -> 88480.7047 | G173: =SUM(G166:G172) -> 107131.813 | H173: =SUM(H166:H172) -> 119535.6572 | I173: =SUM(I166:I172) -> 103051.2322
B175: =CONCATENATE("TOTAL "&$B$9) -> TOTAL BLACKWATER
B176: Return on Capital | F176: =F157+F166 -> 145096.2306 | G176: =G157+G166 -> 227878.766 | H176: 232575.9693 | I176: 231737.4461
B177: Less Inflation | F177: =F158+F167 -> -44366.16566 | G177: =G158+G167 -> -69678.63353 | H177: -71114.90033 | I177: -70858.50457
B178: Plus Depreciation | F178: 102020.9415 | G178: =G159+G168 -> 108320.5779 | H178: 152788.5048 | I178: 145674.9403
B179: Maintenance costs | F179: 96108.3718 | G179: =G160+G169 -> 108729.3 | H179: 121584.9214 | I179: 124802.4165
B180: Operating Costs | F180: 40708.46088 | G180: =G161+G170 -> 43495.52583 | H180: 48110.274 | I180: 50895.32726
B181: Electric Connection Costs | F181: =F171 -> 37842.221 | G181: =G171 -> 39005.59638 | H181: 40825.25153 | I181: 41801.48679
B182: Gamma adjusted Tax | F182: =F162+F172 -> 24426.54563 | G182: =G162+G172 -> 24575.26813 | H182: =H162+H172 -> 30468.74897 | I182: =I162+I172 -> 31572.11908
B183: Total | F183: =SUM(F176:F182) -> 401836.6058 | G183: =SUM(G176:G182) -> 482326.4007 | H183: =SUM(H176:H182) -> 555238.7696 | I183: =SUM(I176:I182) -> 555625.2314

Sheet 2.2 GAPE
A1: ='1.1 General'!$A$1 -> AURIZON NETWORK - UT4 "COAL SYSTEM AGGREGATE" MODEL
A3: =MID(CELL("FILENAME",A1:A1),(FIND("]",CELL("FILENAME",A1:A1))+1),(LEN(CELL("FILENAME",A1:A1))-FIND("]",CELL("FILENAME",A1:A1))+1)) -> 2.2 GAPE
C5: Period Start | F5: =MODEL_START -> 2013-07-01 | G5: =F6+1 -> 2014-07-01 | H5: =G6+1 -> 2015-07-01 | I5: 2016-07-01
B6: BY FINANCIAL YEAR | C6: Period End | F6: =EOMONTH(F5,11) -> 2014-06-30 | G6: 2015-06-30 | H6: 2016-06-30 | I6: 2017-06-30
C7: Financial Year | F7: =YEAR(F$5)&"/"&RIGHT(YEAR(F$6),2) -> 2013/14 | G7: =YEAR(G$5)&"/"&RIGHT(YEAR(G$6),2) -> 2014/15 | H7: 2015/16 | I7: 2016/17
B9: GAPE | F9: 1 | G9: =F9+1 -> 2 | H9: =G9+1 -> 3 | I9: 4
B11: CPI | F11: ='1.1 General'!F$12 -> 0.025 | G11: ='1.1 General'!G$12 -> 0.025 | H11: ='1.1 General'!H$12 -> 0.025 | I11: ='1.1 General'!I$12 -> 0.025
B12: CUMULATIVE INFLATION INDEX | E12: ='1.1 General'!E$13 -> 1 | F12: ='1.1 General'!F$13 -> 1.025 | G12: ='1.1 General'!G$13 -> 1.050625 | H12: ='1.1 General'!H$13 -> 1.076890625 | I12: ='1.1 General'!I$13 -> 1.103812891
B14: NON-ELECTRIC | F14: =IF(SUM(F$15:F$18)<>0,1,0) -> 1 | G14: =IF(SUM(G$15:G$18)<>0,1,0) -> 1 | H14: 1 | I14: 1
B15: Opening | C15: $000's | F15: 1096688.393 | G15: 1097171.345 | H15: 1077664.216 | I15: 1056496
B16: PLUS Capex | C16: $000's | F16: 17689.83417 | G16: 0 | H16: 0 | I16: 0
B17: PLUS Inflation | C17: $000's | F17: 27859.45568 | G17: 27429.28362 | H17: 26941.60541 | I17: 26412.39999
B18: LESS Depreciation | C18: $000's | F18: 45066.33816 | G18: 46936.4119 | H18: 48109.8222 | I18: 49312.56775
B19: Closing | C19: $000's | F19: =F15+F16+F17-F18 -> 1097171.345 | G19: =G15+G16+G17-G18 -> 1077664.216 | H19: 1056496 | I19: 1033595.832
B21: NET DEPRECIATION (Depreciation - Inflation)
B22: Existing RAB | C22: $000's | F22: =(F18-F17)-F23 -> 17649.12834 | G22: =(G18-G17)-G23 -> 19217.015 | H22: 20852.26529 | I22: 22557.26746
B23: Capex | C23: $000's | F23: -442.2458543 | G23: 290.1132804 | H23: 315.9514944 | I23: 342.9002984
B25: TAX DEPRECIATION
B26: Existing RAB | C26: $000's | F26: 0 | G26: 0 | H26: 0 | I26: 0
B27: Capex | C27: $000's | F27: 59492.24878 | G27: 54938.33009 | H27: 50395.38462 | I27: 46040.40477
B29: OPERATING AND MAINTENANCE
B30: Maintenance Costs | C30: $000's | F30: 18132.27341 | G30: 22112.49303 | H30: 23248.99988 | I30: 24516.5333
B31: Operating Costs | C31: $000's | F31: 12779.78948 | G31: 14171.65303 | H31: 15506.21708 | I31: 16134.39262
B32: Total (Excluding Tax) | C32: $000's | F32: =SUM(F30:F31) -> 30912.06289 | G32: =SUM(G30:G31) -> 36284.14606 | H32: 38755.21695 | I32: 40650.92592
B34: ELECTRIC | F34: =IF(SUM(F$35:F$38)<>0,1,0) -> 1 | G34: =IF(SUM(G$35:G$38)<>0,1,0) -> 1 | H34: 1 | I34: 1
B35: Opening | C35: $000's | F35: 1742.95145 | G35: 3883.215269 | H35: 3818.153923 | I35: 3747.4125 | K35: <= Based on an assumed asset class split. To be updated when 2011/12 & 2012/13 Capital Claims approved.
B36: PLUS Capex | C36: $000's | F36: 2115.269309 | G36: 0 | H36: 0 | I36: 0
B37: PLUS Inflation | C37: $000's | F37: 96.45551898 | G37: 97.08038172 | H37: 95.45384807 | I37: 93.68531251
B38: LESS Depreciation | C38: $000's | F38: 71.46100946 | G38: 162.1417274 | H38: 166.1952706 | I38: 170.3501524
B39: Closing | C39: $000's | F39: =F35+F36+F37-F38 -> 3883.215269 | G39: =G35+G36+G37-G38 -> 3818.153923 | H39: 3747.4125 | I39: 3670.747661
B41: NET DEPRECIATION (Depreciation - Inflation)
B42: Existing RAB | C42: $000's | F42: =(F38-F37)-F43 -> 27.88722321 | G42: =(G38-G37)-G43 -> 30.37092902 | H42: 32.96139062 | I42: 35.66239346
B43: Capex | C43: $000's | F43: -52.88173272 | G43: 34.69041666 | H43: 37.7800319 | I43: 41.00244638
B45: TAX DEPRECIATION
B46: Existing RAB | C46: $000's | F46: 0 | G46: 0 | H46: 0 | I46: 0
B47: Capex | C47: $000's | F47: 366.3330996 | G47: 394.0530321 | H47: 369.1891144 | I47: 344.1076718
B49: OPERATING AND MAINTENANCE
B50: Maintenance Costs | C50: $000's | F50: 0 | G50: 0 | H50: 0 | I50: 0
B51: Operating Costs | C51: $000's | F51: 0 | G51: 0 | H51: 0 | I51: 0
B52: Total (Excluding Tax) | C52: $000's | F52: =SUM(F50:F51) -> 0 | G52: 0 | H52: 0 | I52: 0
A54: ANNUAL BUILDING BLOCKS ($000, NOMINAL)
B56: NON-ELECTRIC
B58: RAB | F58: =F$15 -> 1096688.393 | G58: =G$15 -> 1097171.345 | H58: 1077664.216 | I58: 1056496
B59: - Equity | C59: ='1.1 General'!$F$16 -> 0.45 | F59: =$C59*F$58 -> 493509.7768 | G59: =$C59*G$58 -> 493727.1051 | H59: 484948.8973 | I59: 475423.1998
B60: - Debt | C60: ='1.1 General'!$F$17 -> 0.55 | F60: =$C60*F$58 -> 603178.6161 | G60: 603444.2395 | H60: 592715.319 | I60: 581072.7997
B62: CAPEX | F62: =F$16 -> 17689.83417 | G62: =G$16 -> 0 | H62: 0 | I62: 0
B63: - Equity | C63: ='1.1 General'!$F$16 -> 0.45 | F63: =$C63*F$62 -> 7960.425377 | G63: =$C63*G$62 -> 0 | H63: 0 | I63: 0
B64: - Debt | C64: ='1.1 General'!$F$17 -> 0.55 | F64: =$C64*F$62 -> 9729.408794 | G64: 0 | H64: 0 | I64: 0
B66: REVENUE BUILDING BLOCKS
B68: Return on Asset - RAB
B69: - Return on Equity | C69: ='1.1 General'!$F$19 -> 0.1015369 | F69: =$C69*F59 -> 50109.45286 | G69: 50131.5197 | H69: 49240.2077 | I69: 48272.9979
B70: - Return on Debt | C70: ='1.1 General'!$F$20 -> 0.06558005 | F70: 39556.4838 | G70: 39573.9034 | H70: 38870.30025 | I70: 38106.78326
C71: ='1.1 General'!$F$18 -> 0.0817606325 | F71: =SUM(F69:F70) -> 89665.93666 | G71: 89705.4231 | H71: 88110.50795 | I71: 86379.78116
B73: Return on Asset - CAPEX
B74: - Return on Equity | C74: ='1.1 General'!$F$19 -> 0.1015369 | F74: =$C74*F63 -> 808.2769154 | G74: =$C74*G63 -> 0 | H74: 0 | I74: 0
B75: - Return on Debt | C75: ='1.1 General'!$F$20 -> 0.06558005 | F75: =$C75*F64 -> 638.0551152 | G75: =$C75*G64 -> 0 | H75: 0 | I75: 0
C76: ='1.1 General'!$F$18 -> 0.0817606325 | F76: =SUM(F74:F75) -> 1446.332031 | G76: =SUM(G74:G75) -> 0 | H76: 0 | I76: 0
B78: Return of Asset (regulatory depreciation) | F78: =F$18 -> 45066.33816 | G78: =G$18 -> 46936.4119 | H78: 48109.8222 | I78: 49312.56775
B79: Less Inflation | F79: =-F$17 -> -27859.45568 | G79: -27429.28362 | H79: -26941.60541 | I79: -26412.39999
B81: Free Cash | F81: =SUM(F71,F76,F78,F79) -> 108319.1512 | G81: =SUM(G71,G76,G78,G79) -> 109212.5514 | H81: 109278.7247 | I81: 109279.9489
B83: Operating and Maintenance (O&M) Expenditure | F83: =F$32 -> 30912.06289 | G83: =G$32 -> 36284.14606 | H83: 38755.21695 | I83: 40650.92592
B85: Tax Payable | F85: =F101 -> 3375.802678 | G85: =G101 -> 5656.203013 | H85: 7746.983174 | I85: 9728.810666
B86: Less Value of Imputation Credits | C86: ='1.1 General'!$F$21 -> 0.25 | F86: =$C$86*-F85 -> -843.9506696 | G86: =$C$86*-G85 -> -1414.050753 | H86: -1936.745794 | I86: -2432.202666
B88: Annual Building Block Revenue Requirement | F88: =SUM(F81:F87) -> 141763.0661 | G88: 149738.8497 | H88: 153844.1791 | I88: 157227.4828
B90: TAX EXPENSES
B91: - O&M | F91: =F83 -> 30912.06289 | G91: =G83 -> 36284.14606 | H91: 38755.21695 | I91: 40650.92592
B92: - Tax Depreciation | F92: =F26+F27 -> 59492.24878 | G92: =G26+G27 -> 54938.33009 | H92: 50395.38462 | I92: 46040.40477
B93: - Interest | F93: =F70+F75 -> 40194.53892 | G93: =G70+G75 -> 39573.9034 | H93: 38870.30025 | I93: 38106.78326
B94: Total Tax Expenses | F94: =SUM(F91:F93) -> 130598.8506 | G94: =SUM(G91:G93) -> 130796.3796 | H94: 128020.9018 | I94: 124798.1139
B96: TAX CALCULATION
B97: Corporate Tax Rate | F97: ='1.1 General'!$F$22 -> 0.3 | G97: ='1.1 General'!$F$22 -> 0.3 | H97: ='1.1 General'!$F$22 -> 0.3 | I97: ='1.1 General'!$F$22 -> 0.3
B98: Taxable Income | F98: =F99+E100 -> 11164.21549 | G98: =G99+F100 -> 18942.47015 | H98: 25823.27725 | I98: 32429.36889
B99: - Pre-tax Income | F99: =F88-F94 -> 11164.21549 | G99: =G88-G94 -> 18942.47015 | H99: 25823.27725 | I99: 32429.36889
B100: - Tax Loss Carried Forward | E100: =VLOOKUP($B$9&$B$56,'1.1 General'!$B$44:$F$56,'1.1 General'!$B$42,FALSE) -> 0 | F100: =IF(F98<0,F98,0) -> 0 | G100: =IF(G98<0,G98,0) -> 0 | H100: 0 | I100: 0
B101: Tax Payable | C101: ='1.1 General'!$F$22 -> 0.3 | F101: 3375.802678 | G101: 5656.203013 | H101: 7746.983174 | I101: 9728.810666
B102: Value of Imputation Credits | C102: ='1.1 General'!$F$21 -> 0.25 | F102: =$C$102*F101 -> 843.9506696 | G102: =$C$102*G101 -> 1414.050753 | H102: 1936.745794 | I102: 2432.202666
B105: ELECTRIC | K105: <= Based on an assumed asset class split. To be updated when 2011/12 & 2012/13 Capital Claims approved.
B107: RAB | F107: =F$35 -> 1742.95145 | G107: =G$35 -> 3883.215269 | H107: 3818.153923 | I107: 3747.4125
B108: - Equity | C108: ='1.1 General'!$F$16 -> 0.45 | F108: =$C108*F$107 -> 784.3281527 | G108: 1747.446871 | H108: 1718.169265 | I108: 1686.335625
B109: - Debt | C109: ='1.1 General'!$F$17 -> 0.55 | F109: 958.6232977 | G109: 2135.768398 | H109: 2099.984658 | I109: 2061.076875
B111: CAPEX | F111: =F$36 -> 2115.269309 | G111: =G$36 -> 0 | H111: 0 | I111: 0
B112: - Equity | C112: ='1.1 General'!$F$16 -> 0.45 | F112: =$C112*F$111 -> 951.8711889 | G112: 0 | H112: 0 | I112: 0
B113: - Debt | C113: ='1.1 General'!$F$17 -> 0.55 | F113: 1163.39812 | G113: 0 | H113: 0 | I113: 0
B115: REVENUE BUILDING BLOCKS
B117: Return on Asset - RAB
B118: - Return on Equity | C118: ='1.1 General'!$F$19 -> 0.1015369 | F118: =$C118*F108 -> 79.6382492 | G118: 177.4303382 | H118: 174.4575809 | I118: 171.2252917
B119: - Return on Debt | C119: ='1.1 General'!$F$20 -> 0.06558005 | F119: 62.86656379 | G119: 140.0637983 | H119: 137.7170988 | I119: 135.1655245
C120: ='1.1 General'!$F$18 -> 0.0817606325 | F120: =SUM(F118:F119) -> 142.504813 | G120: 317.4941365 | H120: 312.1746797 | I120: 306.3908163
B122: Return on Asset - CAPEX
B123: - Return on Equity | C123: ='1.1 General'!$F$19 -> 0.1015369 | F123: =$C123*F112 -> 96.65004972 | G123: =$C123*G112 -> 0 | H123: 0 | I123: 0
B124: - Return on Debt | C124: ='1.1 General'!$F$20 -> 0.06558005 | F124: =$C124*F113 -> 76.29570687 | G124: =$C124*G113 -> 0 | H124: 0 | I124: 0
C125: ='1.1 General'!$F$18 -> 0.0817606325 | F125: =SUM(F123:F124) -> 172.9457566 | G125: =SUM(G123:G124) -> 0 | H125: 0 | I125: 0
B127: Return of Asset (regulatory depreciation) | F127: =F$38 -> 71.46100946 | G127: 162.1417274 | H127: 166.1952706 | I127: 170.3501524
B128: Less Inflation | F128: =-F$37 -> -96.45551898 | G128: =-G$37 -> -97.08038172 | H128: -95.45384807 | I128: -93.68531251
B130: Free Cash | F130: =SUM(F120,F125,F127,F128) -> 290.4560601 | G130: =SUM(G120,G125,G127,G128) -> 382.5554822 | H130: 382.9161022 | I130: 383.0556561
B132: Operating and Maintenance (O&M) Expenditure | F132: =F$52 -> 0 | G132: =G$52 -> 0 | H132: 0 | I132: 0
B134: Tax Payable | F134: =F150 -> 2.907032676 | G134: =G150 -> 6.726018338 | H134: 10.08709614 | I134: 13.32963433
B135: Less Value of Imputation Credits | C135: ='1.1 General'!$F$21 -> 0.25 | F135: =$C$135*-F134 -> -0.7267581691 | G135: =$C$135*-G134 -> -1.681504585 | H135: =$C$135*-H134 -> -2.521774035 | I135: =$C$135*-I134 -> -3.332408583
B137: Annual Building Block Revenue Requirement | F137: =SUM(F130:F136) -> 292.6363346 | G137: 387.5999959 | H137: 390.4814243 | I137: 393.0528819
B139: TAX EXPENSES
B140: - O&M | F140: =F132 -> 0 | G140: =G132 -> 0 | H140: 0 | I140: 0
B141: - Tax Depreciation | F141: =F46+F47 -> 366.3330996 | G141: =G46+G47 -> 394.0530321 | H141: =H46+H47 -> 369.1891144 | I141: =I46+I47 -> 344.1076718
B142: - Interest | F142: =F119+F124 -> 139.1622707 | G142: =G119+G124 -> 140.0637983 | H142: 137.7170988 | I142: 135.1655245
B143: Total Tax Expenses | F143: =SUM(F140:F142) -> 505.4953703 | G143: =SUM(G140:G142) -> 534.1168304 | H143: 506.9062133 | I143: 479.2731963
B145: TAX CALCULATION
B146: Corporate Tax Rate | F146: ='1.1 General'!$F$22 -> 0.3 | G146: ='1.1 General'!$F$22 -> 0.3 | H146: ='1.1 General'!$F$22 -> 0.3 | I146: ='1.1 General'!$F$22 -> 0.3
B147: Taxable Income | F147: =F148+E149 -> -212.8590357 | G147: -359.3758701 | H147: -475.8006591 | I147: -562.0209735
B148: - Pre-tax Income | F148: =F137-F143 -> -212.8590357 | G148: =G137-G143 -> -146.5168344 | H148: -116.4247889 | I148: -86.22031445
B149: - Tax Loss Carried Forward | E149: =VLOOKUP($B$9&$B$105,'1.1 General'!$B$44:$F$56,'1.1 General'!$B$42,FALSE) -> 0 | F149: =IF(F147<0,F147,0) -> -212.8590357 | G149: =IF(G147<0,G147,0) -> -359.3758701 | H149: -475.8006591 | I149: -562.0209735
B150: Tax Payable | C150: ='1.1 General'!$F$22 -> 0.3 | F150: 2.907032676 | G150: 6.726018338 | H150: 10.08709614 | I150: 13.32963433 | K150: <= Negative 'Taxable Income' and positive 'Tax Payable' is a result of aggregating separately priced traffics (GAPE allocations reflect the GAPE DAAU).
B151: Value of Imputation Credits | C151: ='1.1 General'!$F$21 -> 0.25 | F151: =$C$151*F150 -> 0.7267581691 | G151: =$C$151*G150 -> 1.681504585 | H151: =$C$151*H150 -> 2.521774035 | I151: =$C$151*I150 -> 3.332408583
B154: GAPE Building Blocks
B156: Non-Electric
B157: Return on Capital | F157: =SUM(F71,F76) -> 91112.26869 | G157: =SUM(G71,G76) -> 89705.4231 | H157: =SUM(H71,H76) -> 88110.50795 | I157: =SUM(I71,I76) -> 86379.78116
B158: Less Inflation | F158: =F79 -> -27859.45568 | G158: =G79 -> -27429.28362 | H158: =H79 -> -26941.60541 | I158: =I79 -> -26412.39999
B159: Plus Depreciation | F159: =F78 -> 45066.33816 | G159: =G78 -> 46936.4119 | H159: =H78 -> 48109.8222 | I159: =I78 -> 49312.56775
B160: Maintenance costs | F160: =F30 -> 18132.27341 | G160: 22112.49303 | H160: 23248.99988 | I160: 24516.5333
B161: Operating Costs | F161: 12779.78948 | G161: 14171.65303 | H161: 15506.21708 | I161: 16134.39262
B162: Gamma adjusted Tax | F162: =F85+F86 -> 2531.852009 | G162: =G85+G86 -> 4242.15226 | H162: =H85+H86 -> 5810.237381 | I162: =I85+I86 -> 7296.607999
B163: Total | F163: =SUM(F157:F162) -> 141763.0661 | G163: =SUM(G157:G162) -> 149738.8497 | H163: 153844.1791 | I163: 157227.4828
B165: Electric
B166: Return on Capital | F166: =F120+F125 -> 315.4505696 | G166: =G120+G125 -> 317.4941365 | H166: =H120+H125 -> 312.1746797 | I166: =I120+I125 -> 306.3908163
B167: Less Inflation | F167: =F128 -> -96.45551898 | G167: =G128 -> -97.08038172 | H167: =H128 -> -95.45384807 | I167: =I128 -> -93.68531251
B168: Plus Depreciation | F168: =F127 -> 71.46100946 | G168: =G127 -> 162.1417274 | H168: =H127 -> 166.1952706 | I168: =I127 -> 170.3501524
B169: Maintenance costs | F169: =F50 -> 0 | G169: =G50 -> 0 | H169: =H50 -> 0 | I169: =I50 -> 0
B170: Operating Costs
B171: Electric Connection Costs | F171: =F51 -> 0 | G171: =G51 -> 0 | H171: =H51 -> 0 | I171: =I51 -> 0
B172: Gamma adjusted Tax | F172: =F134+F135 -> 2.180274507 | G172: =G134+G135 -> 5.044513754 | H172: =H134+H135 -> 7.565322104 | I172: =I134+I135 -> 9.997225749
B173: Total | F173: =SUM(F166:F172) -> 292.6363346 | G173: =SUM(G166:G172) -> 387.5999959 | H173: =SUM(H166:H172) -> 390.4814243 | I173: =SUM(I166:I172) -> 393.0528819
B175: =CONCATENATE("TOTAL "&$B$9) -> TOTAL GAPE
B176: Return on Capital | F176: =F157+F166 -> 91427.71926 | G176: =G157+G166 -> 90022.91723 | H176: 88422.68263 | I176: 86686.17197
B177: Less Inflation | F177: =F158+F167 -> -27955.9112 | G177: =G158+G167 -> -27526.364 | H177: -27037.05926 | I177: -26506.0853
B178: Plus Depreciation | F178: 45137.79917 | G178: =G159+G168 -> 47098.55363 | H178: 48276.01747 | I178: 49482.9179
B179: Maintenance costs | F179: 18132.27341 | G179: =G160+G169 -> 22112.49303 | H179: 23248.99988 | I179: 24516.5333
B180: Operating Costs | F180: 12779.78948 | G180: =G161+G170 -> 14171.65303 | H180: 15506.21708 | I180: 16134.39262
B181: Electric Connection Costs | F181: =F171 -> 0 | G181: =G171 -> 0 | H181: 0 | I181: 0
B182: Gamma adjusted Tax | F182: =F162+F172 -> 2534.032283 | G182: =G162+G172 -> 4247.196774 | H182: =H162+H172 -> 5817.802703 | I182: =I162+I172 -> 7306.605225
B183: Total | F183: =SUM(F176:F182) -> 142055.7024 | G183: =SUM(G176:G182) -> 150126.4497 | H183: =SUM(H176:H182) -> 154234.6605 | I183: =SUM(I176:I182) -> 157620.5357

Sheet 2.3 Goonyella
A1: ='1.1 General'!$A$1 -> AURIZON NETWORK - UT4 "COAL SYSTEM AGGREGATE" MODEL
A3: =MID(CELL("FILENAME",A1:A1),(FIND("]",CELL("FILENAME",A1:A1))+1),(LEN(CELL("FILENAME",A1:A1))-FIND("]",CELL("FILENAME",A1:A1))+1)) -> 2.3 Goonyella
C5: Period Start | F5: =MODEL_START -> 2013-07-01 | G5: =F6+1 -> 2014-07-01 | H5: =G6+1 -> 2015-07-01 | I5: 2016-07-01
B6: BY FINANCIAL YEAR | C6: Period End | F6: =EOMONTH(F5,11) -> 2014-06-30 | G6: 2015-06-30 | H6: 2016-06-30 | I6: 2017-06-30
C7: Financial Year | F7: =YEAR(F$5)&"/"&RIGHT(YEAR(F$6),2) -> 2013/14 | G7: =YEAR(G$5)&"/"&RIGHT(YEAR(G$6),2) -> 2014/15 | H7: 2015/16 | I7: 2016/17
B9: GOONYELLA | F9: 1 | G9: =F9+1 -> 2 | H9: =G9+1 -> 3 | I9: 4
B11: CPI | F11: ='1.1 General'!F$12 -> 0.025 | G11: ='1.1 General'!G$12 -> 0.025 | H11: ='1.1 General'!H$12 -> 0.025 | I11: ='1.1 General'!I$12 -> 0.025
B12: CUMULATIVE INFLATION INDEX | E12: ='1.1 General'!E$13 -> 1 | F12: ='1.1 General'!F$13 -> 1.025 | G12: ='1.1 General'!G$13 -> 1.050625 | H12: ='1.1 General'!H$13 -> 1.076890625 | I12: ='1.1 General'!I$13 -> 1.103812891
B14: NON-ELECTRIC | F14: =IF(SUM(F$15:F$18)<>0,1,0) -> 1 | G14: =IF(SUM(G$15:G$18)<>0,1,0) -> 1 | H14: 1 | I14: 1
B15: Opening | C15: $000's | F15: 1384957.694 | G15: 1532089.463 | H15: 1535641.327 | I15: 1552297.732
B16: PLUS Capex | C16: $000's | F16: 186495.2121 | G16: 51993.37221 | H16: 67643.53811 | I16: 48342.56421
B17: PLUS Inflation | C17: $000's | F17: 39286.32266 | G17: 39602.07088 | H17: 40082.12163 | I17: 40016.0074
B18: LESS Depreciation | C18: $000's | F18: 78649.76616 | G18: 88043.57903 | H18: 91069.25507 | I18: 95327.45048
B19: Closing | C19: $000's | F19: =F15+F16+F17-F18 -> 1532089.463 | G19: =G15+G16+G17-G18 -> 1535641.327 | H19: 1552297.732 | I19: 1545328.853
B21: NET DEPRECIATION (Depreciation - Inflation)
B22: Existing RAB | C22: $000's | F22: =(F18-F17)-F23 -> 44025.8238 | G22: =(G18-G17)-G23 -> 46682.82098 | H22: 48403.56698 | I22: 50524.20231
B23: Capex | C23: $000's | F23: -4662.380303 | G23: 1758.687173 | H23: 2583.56646 | I23: 4787.240768
B25: TAX DEPRECIATION
B26: Existing RAB | C26: $000's | F26: 29997.58429 | G26: 27198.62509 | H26: 25414.25189 | I26: 23513.82661
B27: Capex | C27: $000's | F27: 25727.60683 | G27: 37014.12066 | H27: 33422.18168 | I27: 30589.16253
B29: OPERATING AND MAINTENANCE
B30: Maintenance Costs | C30: $000's | F30: 89670.13806 | G30: 99891.40224 | H30: 104058.1435 | I30: 113143.6108
B31: Operating Costs | C31: $000's | F31: 66399.36915 | G31: 68258.02545 | H31: 71807.99103 | I31: 73009.65522
B32: Total (Excluding Tax) | C32: $000's | F32: =SUM(F30:F31) -> 156069.5072 | G32: =SUM(G30:G31) -> 168149.4277 | H32: 175866.1345 | I32: 186153.266
B34: ELECTRIC | F34: =IF(SUM(F$35:F$38)<>0,1,0) -> 1 | G34: =IF(SUM(G$35:G$38)<>0,1,0) -> 1 | H34: 1 | I34: 1
B35: Opening | C35: $000's | F35: 227775.4041 | G35: 217581.7649 | H35: 260620.334 | I35: 275790.4095
B36: PLUS Capex | C36: $000's | F36: 4707.452719 | G36: 57588.14442 | H36: 32331.79699 | I36: 21152.27551
B37: PLUS Inflation | C37: $000's | F37: 5812.071421 | G37: 6879.247734 | H37: 7323.803274 | I37: 7423.567126
B38: LESS Depreciation | C38: $000's | F38: 20713.16332 | G38: 21428.8231 | H38: 24485.52469 | I38: 26574.55821
B39: Closing | C39: $000's | F39: =F35+F36+F37-F38 -> 217581.7649 | G39: =G35+G36+G37-G38 -> 260620.334 | H39: 275790.4095 | I39: 277791.694
B41: NET DEPRECIATION (Depreciation - Inflation)
B42: Existing RAB | C42: $000's | F42: =(F38-F37)-F43 -> 15018.77822 | G42: =(G38-G37)-G43 -> 15912.07676 | H42: 16840.65349 | I42: 17805.714
B43: Capex | C43: $000's | F43: -117.686318 | G43: -1362.501386 | H43: 321.0679317 | I43: 1345.27708
B45: TAX DEPRECIATION
B46: Existing RAB | C46: $000's | F46: 7401.65367 | G46: 7074.52531 | H46: 6755.39174 | I46: 6463.6169
B47: Capex | C47: $000's | F47: 503.6591818 | G47: 3096.138752 | H47: 3444.583725 | I47: 5743.800211
B49: OPERATING AND MAINTENANCE
B50: Maintenance Costs | C50: $000's | F50: 6509.974823 | G50: 6799.015714 | H50: 7067.968907 | I50: 7352.646119
B51: Operating Costs | C51: $000's | F51: 30501.49624 | G51: 35444.28248 | H51: 40427.7687 | I51: 41141.05314
B52: Total (Excluding Tax) | C52: $000's | F52: =SUM(F50:F51) -> 37011.47106 | G52: 42243.2982 | H52: 47495.73761 | I52: 48493.69925
A54: ANNUAL BUILDING BLOCKS ($000, NOMINAL)
B56: NON-ELECTRIC
B58: RAB | F58: =F$15 -> 1384957.694 | G58: =G$15 -> 1532089.463 | H58: 1535641.327 | I58: 1552297.732
B59: - Equity | C59: ='1.1 General'!$F$16 -> 0.45 | F59: =$C59*F$58 -> 623230.9625 | G59: =$C59*G$58 -> 689440.2584 | H59: 691038.5972 | I59: 698533.9793
B60: - Debt | C60: ='1.1 General'!$F$17 -> 0.55 | F60: =$C60*F$58 -> 761726.7319 | G60: 842649.2047 | H60: 844602.7299 | I60: 853763.7525
B62: CAPEX | F62: =F$16 -> 186495.2121 | G62: =G$16 -> 51993.37221 | H62: 67643.53811 | I62: 48342.56421
B63: - Equity | C63: ='1.1 General'!$F$16 -> 0.45 | F63: =$C63*F$62 -> 83922.84545 | G63: =$C63*G$62 -> 23397.0175 | H63: 30439.59215 | I63: 21754.15389
B64: - Debt | C64: ='1.1 General'!$F$17 -> 0.55 | F64: =$C64*F$62 -> 102572.3667 | G64: 28596.35472 | H64: 37203.94596 | I64: 26588.41032
B66: REVENUE BUILDING BLOCKS
B68: Return on Asset - RAB
B69: - Return on Equity | C69: ='1.1 General'!$F$19 -> 0.1015369 | F69: =$C69*F59 -> 63280.93991 | G69: 70003.62657 | H69: 70165.91694 | I69: 70926.9748
B70: - Return on Debt | C70: ='1.1 General'!$F$20 -> 0.06558005 | F70: 49954.07717 | G70: 55260.97697 | H70: 55389.08926 | I70: 55989.86957
C71: ='1.1 General'!$F$18 -> 0.0817606325 | F71: =SUM(F69:F70) -> 113235.0171 | G71: 125264.6035 | H71: 125555.0062 | I71: 126916.8444
B73: Return on Asset - CAPEX
B74: - Return on Equity | C74: ='1.1 General'!$F$19 -> 0.1015369 | F74: =$C74*F63 -> 8521.265566 | G74: =$C74*G63 -> 2375.660626 | H74: 3090.741824 | I74: 2208.849349
B75: - Return on Debt | C75: ='1.1 General'!$F$20 -> 0.06558005 | F75: =$C75*F64 -> 6726.700934 | G75: =$C75*G64 -> 1875.350372 | H75: 2439.836636 | I75: 1743.669278
C76: ='1.1 General'!$F$18 -> 0.0817606325 | F76: =SUM(F74:F75) -> 15247.9665 | G76: =SUM(G74:G75) -> 4251.010998 | H76: 5530.57846 | I76: 3952.518627
B78: Return of Asset (regulatory depreciation) | F78: =F$18 -> 78649.76616 | G78: =G$18 -> 88043.57903 | H78: 91069.25507 | I78: 95327.45048
B79: Less Inflation | F79: =-F$17 -> -39286.32266 | G79: -39602.07088 | H79: -40082.12163 | I79: -40016.0074
B81: Free Cash | F81: =SUM(F71,F76,F78,F79) -> 167846.4271 | G81: =SUM(G71,G76,G78,G79) -> 177957.1227 | H81: 182072.7181 | I81: 186180.8061
B83: Operating and Maintenance (O&M) Expenditure | F83: =F$32 -> 156069.5072 | G83: =G$32 -> 168149.4277 | H83: 175866.1345 | I83: 186153.266
B85: Tax Payable | F85: =F101 -> 21705.27834 | G85: =G101 -> 22104.7692 | H85: 25464.44927 | I85: 28882.60359
B86: Less Value of Imputation Credits | C86: ='1.1 General'!$F$21 -> 0.25 | F86: =$C$86*-F85 -> -5426.319586 | G86: =$C$86*-G85 -> -5526.1923 | H86: -6366.112318 | I86: -7220.650898
B88: Annual Building Block Revenue Requirement | F88: =SUM(F81:F87) -> 340194.893 | G88: 362685.1273 | H88: 377037.1896 | I88: 393996.0248
B90: TAX EXPENSES
B91: - O&M | F91: =F83 -> 156069.5072 | G91: =G83 -> 168149.4277 | H91: 175866.1345 | I91: 186153.266
B92: - Tax Depreciation | F92: =F26+F27 -> 55725.19112 | G92: =G26+G27 -> 64212.74575 | H92: 58836.43357 | I92: 54102.98915
B93: - Interest | F93: =F70+F75 -> 56680.7781 | G93: =G70+G75 -> 57136.32735 | H93: 57828.92589 | I93: 57733.53885
B94: Total Tax Expenses | F94: =SUM(F91:F93) -> 268475.4764 | G94: =SUM(G91:G93) -> 289498.5008 | H94: 292531.494 | I94: 297989.794
B96: TAX CALCULATION
B97: Corporate Tax Rate | F97: ='1.1 General'!$F$22 -> 0.3 | G97: ='1.1 General'!$F$22 -> 0.3 | H97: ='1.1 General'!$F$22 -> 0.3 | I97: ='1.1 General'!$F$22 -> 0.3
B98: Taxable Income | F98: =F99+E100 -> 71719.41661 | G98: =G99+F100 -> 73186.62649 | H98: 84505.69559 | I98: 96006.23078
B99: - Pre-tax Income | F99: =F88-F94 -> 71719.41661 | G99: =G88-G94 -> 73186.62649 | H99: 84505.69559 | I99: 96006.23078
B100: - Tax Loss Carried Forward | E100: =VLOOKUP($B$9&$B$56,'1.1 General'!$B$44:$F$56,'1.1 General'!$B$42,FALSE) -> 0 | F100: =IF(F98<0,F98,0) -> 0 | G100: =IF(G98<0,G98,0) -> 0 | H100: 0 | I100: 0
B101: Tax Payable | C101: ='1.1 General'!$F$22 -> 0.3 | F101: 21705.27834 | G101: 22104.7692 | H101: 25464.44927 | I101: 28882.60359
B102: Value of Imputation Credits | C102: ='1.1 General'!$F$21 -> 0.25 | F102: =$C$102*F101 -> 5426.319586 | G102: =$C$102*G101 -> 5526.1923 | H102: 6366.112318 | I102: 7220.650898
B105: ELECTRIC
B107: RAB | F107: =F$35 -> 227775.4041 | G107: =G$35 -> 217581.7649 | H107: 260620.334 | I107: 275790.4095
B108: - Equity | C108: ='1.1 General'!$F$16 -> 0.45 | F108: =$C108*F$107 -> 102498.9318 | G108: 97911.79422 | H108: 117279.1503 | I108: 124105.6843
B109: - Debt | C109: ='1.1 General'!$F$17 -> 0.55 | F109: 125276.4723 | G109: 119669.9707 | H109: 143341.1837 | I109: 151684.7253
B111: CAPEX | F111: =F$36 -> 4707.452719 | G111: =G$36 -> 57588.14442 | H111: 32331.79699 | I111: 21152.27551
B112: - Equity | C112: ='1.1 General'!$F$16 -> 0.45 | F112: =$C112*F$111 -> 2118.353724 | G112: 25914.66499 | H112: 14549.30865 | I112: 9518.52398
B113: - Debt | C113: ='1.1 General'!$F$17 -> 0.55 | F113: 2589.098995 | G113: 31673.47943 | H113: 17782.48835 | I113: 11633.75153
B115: REVENUE BUILDING BLOCKS
B117: Return on Asset - RAB
B118: - Return on Equity | C118: ='1.1 General'!$F$19 -> 0.1015369 | F118: =$C118*F108 -> 10407.42379 | G118: 9941.660058 | H118: 11908.16135 | I118: 12601.30646
B119: - Return on Debt | C119: ='1.1 General'!$F$20 -> 0.06558005 | F119: 8215.637315 | G119: 7847.962663 | H119: 9400.321993 | I119: 9947.491866
C120: ='1.1 General'!$F$18 -> 0.0817606325 | F120: =SUM(F118:F119) -> 18623.06111 | G120: 17789.62272 | H120: 21308.48335 | I120: 22548.79832
B122: Return on Asset - CAPEX
B123: - Return on Equity | C123: ='1.1 General'!$F$19 -> 0.1015369 | F123: =$C123*F112 -> 215.0910702 | G123: =$C123*G112 -> 2631.294747 | H123: 1477.291697 | I123: 966.4814175
B124: - Return on Debt | C124: ='1.1 General'!$F$20 -> 0.06558005 | F124: =$C124*F113 -> 169.7932416 | G124: =$C124*G113 -> 2077.148365 | H124: 1166.176475 | I124: 762.9420071
C125: ='1.1 General'!$F$18 -> 0.0817606325 | F125: =SUM(F123:F124) -> 384.8843118 | G125: =SUM(G123:G124) -> 4708.443112 | H125: 2643.468172 | I125: 1729.423425
B127: Return of Asset (regulatory depreciation) | F127: =F$38 -> 20713.16332 | G127: 21428.8231 | H127: 24485.52469 | I127: 26574.55821
B128: Less Inflation | F128: =-F$37 -> -5812.071421 | G128: =-G$37 -> -6879.247734 | H128: -7323.803274 | I128: -7423.567126
B130: Free Cash | F130: =SUM(F120,F125,F127,F128) -> 33909.03732 | G130: =SUM(G120,G125,G127,G128) -> 37047.6412 | H130: 41113.67294 | I130: 43429.21283
B132: Operating and Maintenance (O&M) Expenditure | F132: =F$52 -> 37011.47106 | G132: =G$52 -> 42243.2982 | H132: 47495.73761 | I132: 48493.69925
B134: Tax Payable | F134: =F150 -> 6882.369078 | G134: =G150 -> 6618.546931 | H134: 7927.238518 | I134: 7985.469842
B135: Less Value of Imputation Credits | C135: ='1.1 General'!$F$21 -> 0.25 | F135: =$C$135*-F134 -> -1720.592269 | G135: =$C$135*-G134 -> -1654.636733 | H135: =$C$135*-H134 -> -1981.80963 | I135: =$C$135*-I134 -> -1996.36746
B137: Annual Building Block Revenue Requirement | F137: =SUM(F130:F136) -> 76082.28519 | G137: 84254.8496 | H137: 94554.83943 | I137: 97912.01447
B139: TAX EXPENSES
B140: - O&M | F140: =F132 -> 37011.47106 | G140: =G132 -> 42243.2982 | H140: 47495.73761 | I140: 48493.69925
B141: - Tax Depreciation | F141: =F46+F47 -> 7905.312852 | G141: =G46+G47 -> 10170.66406 | H141: =H46+H47 -> 10199.97546 | I141: =I46+I47 -> 12207.41711
B142: - Interest | F142: =F119+F124 -> 8385.430556 | G142: =G119+G124 -> 9925.111027 | H142: 10566.49847 | I142: 10710.43387
B143: Total Tax Expenses | F143: =SUM(F140:F142) -> 53302.21447 | G143: =SUM(G140:G142) -> 62339.07328 | H143: 68262.21154 | I143: 71411.55024
B145: TAX CALCULATION
B146: Corporate Tax Rate | F146: ='1.1 General'!$F$22 -> 0.3 | G146: ='1.1 General'!$F$22 -> 0.3 | H146: ='1.1 General'!$F$22 -> 0.3 | I146: ='1.1 General'!$F$22 -> 0.3
B147: Taxable Income | F147: =F148+E149 -> 22780.07072 | G147: 21915.77631 | H147: 26292.62789 | I147: 26500.46423
B148: - Pre-tax Income | F148: =F137-F143 -> 22780.07072 | G148: =G137-G143 -> 21915.77631 | H148: 26292.62789 | I148: 26500.46423
B149: - Tax Loss Carried Forward | E149: =VLOOKUP($B$9&$B$105,'1.1 General'!$B$44:$F$56,'1.1 General'!$B$42,FALSE) -> 0 | F149: =IF(F147<0,F147,0) -> 0 | G149: =IF(G147<0,G147,0) -> 0 | H149: 0 | I149: 0
B150: Tax Payable | C150: ='1.1 General'!$F$22 -> 0.3 | F150: 6882.369078 | G150: 6618.546931 | H150: 7927.238518 | I150: 7985.469842
B151: Value of Imputation Credits | C151: ='1.1 General'!$F$21 -> 0.25 | F151: =$C$151*F150 -> 1720.592269 | G151: =$C$151*G150 -> 1654.636733 | H151: =$C$151*H150 -> 1981.80963 | I151: =$C$151*I150 -> 1996.36746
B154: GOONYELLA Building Blocks
B156: Non-Electric
B157: Return on Capital | F157: =SUM(F71,F76) -> 128482.9836 | G157: =SUM(G71,G76) -> 129515.6145 | H157: =SUM(H71,H76) -> 131085.5847 | I157: =SUM(I71,I76) -> 130869.363
B158: Less Inflation | F158: =F79 -> -39286.32266 | G158: =G79 -> -39602.07088 | H158: =H79 -> -40082.12163 | I158: =I79 -> -40016.0074
B159: Plus Depreciation | F159: =F78 -> 78649.76616 | G159: =G78 -> 88043.57903 | H159: =H78 -> 91069.25507 | I159: =I78 -> 95327.45048
B160: Maintenance costs | F160: =F30 -> 89670.13806 | G160: 99891.40224 | H160: 104058.1435 | I160: 113143.6108
B161: Operating Costs | F161: 66399.36915 | G161: 68258.02545 | H161: 71807.99103 | I161: 73009.65522
B162: Gamma adjusted Tax | F162: =F85+F86 -> 16278.95876 | G162: =G85+G86 -> 16578.5769 | H162: =H85+H86 -> 19098.33695 | I162: =I85+I86 -> 21661.9527
B163: Total | F163: =SUM(F157:F162) -> 340194.893 | G163: =SUM(G157:G162) -> 362685.1273 | H163: 377037.1896 | I163: 393996.0248
B165: Electric
B166: Return on Capital | F166: =F120+F125 -> 19007.94542 | G166: =G120+G125 -> 22498.06583 | H166: =H120+H125 -> 23951.95152 | I166: =I120+I125 -> 24278.22175
B167: Less Inflation | F167: =F128 -> -5812.071421 | G167: =G128 -> -6879.247734 | H167: =H128 -> -7323.803274 | I167: =I128 -> -7423.567126
B168: Plus Depreciation | F168: =F127 -> 20713.16332 | G168: =G127 -> 21428.8231 | H168: =H127 -> 24485.52469 | I168: =I127 -> 26574.55821
B169: Maintenance costs | F169: =F50 -> 6509.974823 | G169: =G50 -> 6799.015714 | H169: =H50 -> 7067.968907 | I169: =I50 -> 7352.646119
B170: Operating Costs
B171: Electric Connection Costs | F171: =F51 -> 30501.49624 | G171: =G51 -> 35444.28248 | H171: =H51 -> 40427.7687 | I171: =I51 -> 41141.05314
B172: Gamma adjusted Tax | F172: =F134+F135 -> 5161.776808 | G172: =G134+G135 -> 4963.910198 | H172: =H134+H135 -> 5945.428889 | I172: =I134+I135 -> 5989.102381
B173: Total | F173: =SUM(F166:F172) -> 76082.28519 | G173: =SUM(G166:G172) -> 84254.8496 | H173: =SUM(H166:H172) -> 94554.83943 | I173: =SUM(I166:I172) -> 97912.01447
B175: =CONCATENATE("TOTAL "&$B$9) -> TOTAL GOONYELLA
B176: Return on Capital | F176: =F157+F166 -> 147490.929 | G176: =G157+G166 -> 152013.6804 | H176: 155037.5362 | I176: 155147.5847
B177: Less Inflation | F177: =F158+F167 -> -45098.39408 | G177: =G158+G167 -> -46481.31861 | H177: -47405.9249 | I177: -47439.57453
B178: Plus Depreciation | F178: 99362.92948 | G178: =G159+G168 -> 109472.4021 | H178: 115554.7798 | I178: 121902.0087
B179: Maintenance costs | F179: 96180.11288 | G179: =G160+G169 -> 106690.418 | H179: 111126.1124 | I179: 120496.2569
B180: Operating Costs | F180: 66399.36915 | G180: =G161+G170 -> 68258.02545 | H180: 71807.99103 | I180: 73009.65522
B181: Electric Connection Costs | F181: =F171 -> 30501.49624 | G181: =G171 -> 35444.28248 | H181: 40427.7687 | I181: 41141.05314
B182: Gamma adjusted Tax | F182: =F162+F172 -> 21440.73557 | G182: =G162+G172 -> 21542.4871 | H182: =H162+H172 -> 25043.76584 | I182: =I162+I172 -> 27651.05508
B183: Total | F183: =SUM(F176:F182) -> 416277.1782 | G183: =SUM(G176:G182) -> 446939.9769 | H183: =SUM(H176:H182) -> 471592.029 | I183: =SUM(I176:I182) -> 491908.0393

Sheet 2.4 Moura
A1: ='1.1 General'!$A$1 -> AURIZON NETWORK - UT4 "COAL SYSTEM AGGREGATE" MODEL
A3: =MID(CELL("FILENAME",A1:A1),(FIND("]",CELL("FILENAME",A1:A1))+1),(LEN(CELL("FILENAME",A1:A1))-FIND("]",CELL("FILENAME",A1:A1))+1)) -> 2.4 Moura
C5: Period Start | F5: =MODEL_START -> 2013-07-01 | G5: =F6+1 -> 2014-07-01 | H5: =G6+1 -> 2015-07-01 | I5: 2016-07-01
B6: BY FINANCIAL YEAR | C6: Period End | F6: =EOMONTH(F5,11) -> 2014-06-30 | G6: 2015-06-30 | H6: 2016-06-30 | I6: 2017-06-30
C7: Financial Year | F7: =YEAR(F$5)&"/"&RIGHT(YEAR(F$6),2) -> 2013/14 | G7: =YEAR(G$5)&"/"&RIGHT(YEAR(G$6),2) -> 2014/15 | H7: 2015/16 | I7: 2016/17
B9: MOURA | F9: 1 | G9: =F9+1 -> 2 | H9: =G9+1 -> 3 | I9: 4
B11: CPI | F11: ='1.1 General'!F$12 -> 0.025 | G11: ='1.1 General'!G$12 -> 0.025 | H11: ='1.1 General'!H$12 -> 0.025 | I11: ='1.1 General'!I$12 -> 0.025
B12: CUMULATIVE INFLATION INDEX | E12: ='1.1 General'!E$13 -> 1 | F12: ='1.1 General'!F$13 -> 1.025 | G12: ='1.1 General'!G$13 -> 1.050625 | H12: ='1.1 General'!H$13 -> 1.076890625 | I12: ='1.1 General'!I$13 -> 1.103812891
B14: NON-ELECTRIC | F14: =IF(SUM(F$15:F$18)<>0,1,0) -> 1 | G14: =IF(SUM(G$15:G$18)<>0,1,0) -> 1 | H14: 1 | I14: 1
B15: Opening | C15: $000's | F15: 250389.8296 | G15: 257369.4209 | H15: 314247.7717 | I15: 317960.2403
B16: PLUS Capex | C16: $000's | F16: 12349.58011 | G16: 61634.69751 | H16: 11300.82976 | I16: 8076.323377
B17: PLUS Inflation | C17: $000's | F17: 6568.485242 | G17: 7975.102961 | H17: 8138.715037 | I17: 8150.914093
B18: LESS Depreciation | C18: $000's | F18: 11938.47399 | G18: 12731.44968 | H18: 15727.07617 | I18: 16636.4676
B19: Closing | C19: $000's | F19: =F15+F16+F17-F18 -> 257369.4209 | G19: =G15+G16+G17-G18 -> 314247.7717 | H19: 317960.2403 | I19: 317551.0102
B21: NET DEPRECIATION (Depreciation - Inflation)
B22: Existing RAB | C22: $000's | F22: =(F18-F17)-F23 -> 5678.728248 | G22: =(G18-G17)-G23 -> 6094.681045 | H22: 6531.576691 | I22: 7007.290789
B23: Capex | C23: $000's | F23: -308.7395027 | G23: -1338.334324 | H23: 1056.784438 | I23: 1478.262722
B25: TAX DEPRECIATION
B26: Existing RAB | C26: $000's | F26: 2708.852637 | G26: 2634.150319 | H26: 2569.172675 | I26: 2006.565913
B27: Capex | C27: $000's | F27: 1834.492738 | G27: 8332.982294 | H27: 15294.99306 | I27: 14031.99191
B29: OPERATING AND MAINTENANCE
B30: Maintenance Costs | C30: $000's | F30: 13411.60304 | G30: 14676.85939 | H30: 13363.43932 | I30: 14488.77706
B31: Operating Costs | C31: $000's | F31: 8276.242935 | G31: 8470.915895 | H31: 8124.549864 | I31: 8549.619946
B32: Total (Excluding Tax) | C32: $000's | F32: =SUM(F30:F31) -> 21687.84598 | G32: =SUM(G30:G31) -> 23147.77528 | H32: 21487.98918 | I32: 23038.39701
B34: ELECTRIC | F34: =IF(SUM(F$35:F$38)<>0,1,0) -> 0 | G34: =IF(SUM(G$35:G$38)<>0,1,0) -> 0 | H34: 0 | I34: 0
B35: Opening | C35: $000's | F35: 0 | G35: 0 | H35: 0 | I35: 0
B36: PLUS Capex | C36: $000's | F36: 0 | G36: 0 | H36: 0 | I36: 0
B37: PLUS Inflation | C37: $000's | F37: 0 | G37: 0 | H37: 0 | I37: 0
B38: LESS Depreciation | C38: $000's | F38: 0 | G38: 0 | H38: 0 | I38: 0
B39: Closing | C39: $000's | F39: =F35+F36+F37-F38 -> 0 | G39: =G35+G36+G37-G38 -> 0 | H39: 0 | I39: 0
B41: NET DEPRECIATION (Depreciation - Inflation)
B42: Existing RAB | C42: $000's | F42: =(F38-F37)-F43 -> 0 | G42: =(G38-G37)-G43 -> 0 | H42: 0 | I42: 0
B43: Capex | C43: $000's | F43: 0 | G43: 0 | H43: 0 | I43: 0
B45: TAX DEPRECIATION
B46: Existing RAB | C46: $000's | F46: 0 | G46: 0 | H46: 0 | I46: 0
B47: Capex | C47: $000's | F47: 0 | G47: 0 | H47: 0 | I47: 0
B49: OPERATING AND MAINTENANCE
B50: Maintenance Costs | C50: $000's | F50: 0 | G50: 0 | H50: 0 | I50: 0
B51: Operating Costs | C51: $000's | F51: 0 | G51: 0 | H51: 0 | I51: 0
B52: Total (Excluding Tax) | C52: $000's | F52: =SUM(F50:F51) -> 0 | G52: 0 | H52: 0 | I52: 0
A54: ANNUAL BUILDING BLOCKS ($000, NOMINAL)
B56: NON-ELECTRIC
B58: RAB | F58: =F$15 -> 250389.8296 | G58: =G$15 -> 257369.4209 | H58: 314247.7717 | I58: 317960.2403
B59: - Equity | C59: ='1.1 General'!$F$16 -> 0.45 | F59: =$C59*F$58 -> 112675.4233 | G59: =$C59*G$58 -> 115816.2394 | H59: 141411.4973 | I59: 143082.1082
B60: - Debt | C60: ='1.1 General'!$F$17 -> 0.55 | F60: =$C60*F$58 -> 137714.4063 | G60: 141553.1815 | H60: 172836.2744 | I60: 174878.1322
B62: CAPEX | F62: =F$16 -> 12349.58011 | G62: =G$16 -> 61634.69751 | H62: 11300.82976 | I62: 8076.323377
B63: - Equity | C63: ='1.1 General'!$F$16 -> 0.45 | F63: =$C63*F$62 -> 5557.311049 | G63: =$C63*G$62 -> 27735.61388 | H63: 5085.37339 | I63: 3634.345519
B64: - Debt | C64: ='1.1 General'!$F$17 -> 0.55 | F64: =$C64*F$62 -> 6792.269059 | G64: 33899.08363 | H64: 6215.456366 | I64: 4441.977857
B66: REVENUE BUILDING BLOCKS
B68: Return on Asset - RAB
B69: - Return on Equity | C69: ='1.1 General'!$F$19 -> 0.1015369 | F69: =$C69*F59 -> 11440.71319 | G69: 11759.62192 | H69: 14358.48506 | I69: 14528.11371
B70: - Return on Debt | C70: ='1.1 General'!$F$20 -> 0.06558005 | F70: 9031.317648 | G70: 9283.064721 | H70: 11334.61152 | I70: 11468.51665
C71: ='1.1 General'!$F$18 -> 0.0817606325 | F71: =SUM(F69:F70) -> 20472.03084 | G71: 21042.68664 | H71: 25693.09658 | I71: 25996.63036
B73: Return on Asset - CAPEX
B74: - Return on Equity | C74: ='1.1 General'!$F$19 -> 0.1015369 | F74: =$C74*F63 -> 564.2721362 | G74: =$C74*G63 -> 2816.188253 | H74: 516.3530494 | I74: 369.0201776
B75: - Return on Debt | C75: ='1.1 General'!$F$20 -> 0.06558005 | F75: =$C75*F64 -> 445.4373445 | G75: =$C75*G64 -> 2223.103599 | H75: 407.6099392 | I75: 291.30513
C76: ='1.1 General'!$F$18 -> 0.0817606325 | F76: =SUM(F74:F75) -> 1009.709481 | G76: =SUM(G74:G75) -> 5039.291852 | H76: 923.9629886 | I76: 660.3253075
B78: Return of Asset (regulatory depreciation) | F78: =F$18 -> 11938.47399 | G78: =G$18 -> 12731.44968 | H78: 15727.07617 | I78: 16636.4676
B79: Less Inflation | F79: =-F$17 -> -6568.485242 | G79: -7975.102961 | H79: -8138.715037 | I79: -8150.914093
B81: Free Cash | F81: =SUM(F71,F76,F78,F79) -> 26851.72906 | G81: =SUM(G71,G76,G78,G79) -> 30838.32521 | H81: 34205.42069 | I81: 35142.50918
B83: Operating and Maintenance (O&M) Expenditure | F83: =F$32 -> 21687.84598 | G83: =G$32 -> 23147.77528 | H83: 21487.98918 | I83: 23038.39701
B85: Tax Payable | F85: =F101 -> 4967.082075 | G85: =G101 -> 4935.538853 | H85: 5395.246039 | I85: 6056.065412
B86: Less Value of Imputation Credits | C86: ='1.1 General'!$F$21 -> 0.25 | F86: =$C$86*-F85 -> -1241.770519 | G86: =$C$86*-G85 -> -1233.884713 | H86: -1348.81151 | I86: -1514.016353
B88: Annual Building Block Revenue Requirement | F88: =SUM(F81:F87) -> 52264.8866 | G88: 57687.75464 | H88: 59739.84441 | I88: 62722.95525
B90: TAX EXPENSES
B91: - O&M | F91: =F83 -> 21687.84598 | G91: =G83 -> 23147.77528 | H91: 21487.98918 | I91: 23038.39701
B92: - Tax Depreciation | F92: =F26+F27 -> 4543.345375 | G92: =G26+G27 -> 10967.13261 | H92: 17864.16573 | I92: 16038.55782
B93: - Interest | F93: =F70+F75 -> 9476.754993 | G93: =G70+G75 -> 11506.16832 | H93: 11742.22146 | I93: 11759.82178
B94: Total Tax Expenses | F94: =SUM(F91:F93) -> 35707.94634 | G94: =SUM(G91:G93) -> 45621.07622 | H94: 51094.37637 | I94: 50836.77661
B96: TAX CALCULATION
B97: Corporate Tax Rate | F97: ='1.1 General'!$F$22 -> 0.3 | G97: ='1.1 General'!$F$22 -> 0.3 | H97: ='1.1 General'!$F$22 -> 0.3 | I97: ='1.1 General'!$F$22 -> 0.3
B98: Taxable Income | F98: =F99+E100 -> 16556.94025 | G98: =G99+F100 -> 12066.67842 | H98: 8645.468035 | I98: 11886.17863
B99: - Pre-tax Income | F99: =F88-F94 -> 16556.94025 | G99: =G88-G94 -> 12066.67842 | H99: 8645.468035 | I99: 11886.17863
B100: - Tax Loss Carried Forward | E100: =VLOOKUP($B$9&$B$56,'1.1 General'!$B$44:$F$56,'1.1 General'!$B$42,FALSE) -> 0 | F100: =IF(F98<0,F98,0) -> 0 | G100: =IF(G98<0,G98,0) -> 0 | H100: 0 | I100: 0
B101: Tax Payable | C101: ='1.1 General'!$F$22 -> 0.3 | F101: 4967.082075 | G101: 4935.538853 | H101: 5395.246039 | I101: 6056.065412
B102: Value of Imputation Credits | C102: ='1.1 General'!$F$21 -> 0.25 | F102: =$C$102*F101 -> 1241.770519 | G102: =$C$102*G101 -> 1233.884713 | H102: 1348.81151 | I102: 1514.016353
B105: ELECTRIC
B107: RAB | F107: =F$35 -> 0 | G107: =G$35 -> 0 | H107: 0 | I107: 0
B108: - Equity | C108: ='1.1 General'!$F$16 -> 0.45 | F108: =$C108*F$107 -> 0 | G108: 0 | H108: 0 | I108: 0
B109: - Debt | C109: ='1.1 General'!$F$17 -> 0.55 | F109: 0 | G109: 0 | H109: 0 | I109: 0
B111: CAPEX | F111: =F$36 -> 0 | G111: =G$36 -> 0 | H111: 0 | I111: 0
B112: - Equity | C112: ='1.1 General'!$F$16 -> 0.45 | F112: =$C112*F$111 -> 0 | G112: 0 | H112: 0 | I112: 0
B113: - Debt | C113: ='1.1 General'!$F$17 -> 0.55 | F113: 0 | G113: 0 | H113: 0 | I113: 0
B115: REVENUE BUILDING BLOCKS
B117: Return on Asset - RAB
B118: - Return on Equity | C118: ='1.1 General'!$F$19 -> 0.1015369 | F118: =$C118*F108 -> 0 | G118: 0 | H118: 0 | I118: 0
B119: - Return on Debt | C119: ='1.1 General'!$F$20 -> 0.06558005 | F119: 0 | G119: 0 | H119: 0 | I119: 0
C120: ='1.1 General'!$F$18 -> 0.0817606325 | F120: =SUM(F118:F119) -> 0 | G120: 0 | H120: 0 | I120: 0
B122: Return on Asset - CAPEX
B123: - Return on Equity | C123: ='1.1 General'!$F$19 -> 0.1015369 | F123: =$C123*F112 -> 0 | G123: =$C123*G112 -> 0 | H123: 0 | I123: 0
B124: - Return on Debt | C124: ='1.1 General'!$F$20 -> 0.06558005 | F124: =$C124*F113 -> 0 | G124: =$C124*G113 -> 0 | H124: 0 | I124: 0
C125: ='1.1 General'!$F$18 -> 0.0817606325 | F125: =SUM(F123:F124) -> 0 | G125: =SUM(G123:G124) -> 0 | H125: 0 | I125: 0
B127: Return of Asset (regulatory depreciation) | F127: =F$38 -> 0 | G127: 0 | H127: 0 | I127: 0
B128: Less Inflation | F128: =-F$37 -> 0 | G128: =-G$37 -> 0 | H128: 0 | I128: 0
B130: Free Cash | F130: =SUM(F120,F125,F127,F128) -> 0 | G130: =SUM(G120,G125,G127,G128) -> 0 | H130: 0 | I130: 0
B132: Operating and Maintenance (O&M) Expenditure | F132: =F$52 -> 0 | G132: =G$52 -> 0 | H132: 0 | I132: 0
B134: Tax Payable | F134: =F152 -> 0 | G134: =G152 -> 0 | H134: 0 | I134: 0
B135: Less Value of Imputation Credits | C135: ='1.1 General'!$F$21 -> 0.25 | F135: =$C$135*-F134 -> 0 | G135: =$C$135*-G134 -> 0 | H135: =$C$135*-H134 -> 0 | I135: =$C$135*-I134 -> 0
B137: Annual Building Block Revenue Requirement | F137: =SUM(F130:F136) -> 0 | G137: 0 | H137: 0 | I137: 0
B139: TAX EXPENSES
B140: - O&M | F140: =F132 -> 0 | G140: =G132 -> 0 | H140: 0 | I140: 0
B141: - Tax Depreciation | F141: =F46+F47 -> 0 | G141: =G46+G47 -> 0 | H141: =H46+H47 -> 0 | I141: =I46+I47 -> 0
B142: - Interest | F142: =F119+F124 -> 0 | G142: =G119+G124 -> 0 | H142: 0 | I142: 0
B143: Total Tax Expenses | F143: =SUM(F140:F142) -> 0 | G143: =SUM(G140:G142) -> 0 | H143: 0 | I143: 0
B145: TAX CALCULATION
B146: Corporate Tax Rate | F146: ='1.1 General'!$F$22 -> 0.3 | G146: ='1.1 General'!$F$22 -> 0.3 | H146: ='1.1 General'!$F$22 -> 0.3 | I146: ='1.1 General'!$F$22 -> 0.3
B147: Taxable Income | F147: =F148+E149 -> 0 | G147: 0 | H147: 0 | I147: 0
B148: - Pre-tax Income | F148: =F137-F143 -> 0 | G148: =G137-G143 -> 0 | H148: 0 | I148: 0
B149: - Tax Loss Carried Forward | E149: =VLOOKUP($B$9&$B$105,'1.1 General'!$B$44:$F$56,'1.1 General'!$B$42,FALSE) -> 0 | F149: =IF(F147<0,F147,0) -> 0 | G149: =IF(G147<0,G147,0) -> 0 | H149: 0 | I149: 0
B150: Tax Payable | C150: ='1.1 General'!$F$22 -> 0.3 | F150: =IF(F147>0,F146*F147,0) -> 0 | G150: =IF(G147>0,G146*G147,0) -> 0 | H150: 0 | I150: 0
B151: Value of Imputation Credits | C151: ='1.1 General'!$F$21 -> 0.25 | F151: =$C$151*F150 -> 0 | G151: =$C$151*G150 -> 0 | H151: =$C$151*H150 -> 0 | I151: =$C$151*I150 -> 0
B154: MOURA Building Blocks
B156: Non-Electric
B157: Return on Capital | F157: =SUM(F71,F76) -> 21481.74032 | G157: =SUM(G71,G76) -> 26081.97849 | H157: =SUM(H71,H76) -> 26617.05957 | I157: =SUM(I71,I76) -> 26656.95567
B158: Less Inflation | F158: =F79 -> -6568.485242 | G158: =G79 -> -7975.102961 | H158: =H79 -> -8138.715037 | I158: =I79 -> -8150.914093
B159: Plus Depreciation | F159: =F78 -> 11938.47399 | G159: =G78 -> 12731.44968 | H159: =H78 -> 15727.07617 | I159: =I78 -> 16636.4676
B160: Maintenance costs | F160: =F30 -> 13411.60304 | G160: 14676.85939 | H160: 13363.43932 | I160: 14488.77706
B161: Operating Costs | F161: 8276.242935 | G161: 8470.915895 | H161: 8124.549864 | I161: 8549.619946
B162: Gamma adjusted Tax | F162: =F85+F86 -> 3725.311557 | G162: =G85+G86 -> 3701.65414 | H162: =H85+H86 -> 4046.43453 | I162: =I85+I86 -> 4542.049059
B163: Total | F163: =SUM(F157:F162) -> 52264.8866 | G163: =SUM(G157:G162) -> 57687.75464 | H163: 59739.84441 | I163: 62722.95525
B165: Electric
B166: Return on Capital | F166: =F120+F125 -> 0 | G166: =G120+G125 -> 0 | H166: =H120+H125 -> 0 | I166: =I120+I125 -> 0
B167: Less Inflation | F167: =F128 -> 0 | G167: =G128 -> 0 | H167: =H128 -> 0 | I167: =I128 -> 0
B168: Plus Depreciation | F168: =F127 -> 0 | G168: =G127 -> 0 | H168: =H127 -> 0 | I168: =I127 -> 0
B169: Maintenance costs | F169: =F50 -> 0 | G169: =G50 -> 0 | H169: =H50 -> 0 | I169: =I50 -> 0
B170: Operating Costs
B171: Electric Connection Costs | F171: =F51 -> 0 | G171: =G51 -> 0 | H171: =H51 -> 0 | I171: =I51 -> 0
B172: Gamma adjusted Tax | F172: =F134+F135 -> 0 | G172: =G134+G135 -> 0 | H172: =H134+H135 -> 0 | I172: =I134+I135 -> 0
B173: Total | F173: =SUM(F166:F172) -> 0 | G173: =SUM(G166:G172) -> 0 | H173: =SUM(H166:H172) -> 0 | I173: =SUM(I166:I172) -> 0
B175: =CONCATENATE("TOTAL "&$B$9) -> TOTAL MOURA
B176: Return on Capital | F176: =F157+F166 -> 21481.74032 | G176: =G157+G166 -> 26081.97849 | H176: 26617.05957 | I176: 26656.95567
B177: Less Inflation | F177: =F158+F167 -> -6568.485242 | G177: =G158+G167 -> -7975.102961 | H177: -8138.715037 | I177: -8150.914093
B178: Plus Depreciation | F178: 11938.47399 | G178: =G159+G168 -> 12731.44968 | H178: 15727.07617 | I178: 16636.4676
B179: Maintenance costs | F179: 13411.60304 | G179: =G160+G169 -> 14676.85939 | H179: 13363.43932 | I179: 14488.77706
B180: Operating Costs | F180: 8276.242935 | G180: =G161+G170 -> 8470.915895 | H180: 8124.549864 | I180: 8549.619946
B181: Electric Connection Costs | F181: =F171 -> 0 | G181: =G171 -> 0 | H181: 0 | I181: 0
B182: Gamma adjusted Tax | F182: =F162+F172 -> 3725.311557 | G182: =G162+G172 -> 3701.65414 | H182: =H162+H172 -> 4046.43453 | I182: =I162+I172 -> 4542.049059
B183: Total | F183: =SUM(F176:F182) -> 52264.8866 | G183: =SUM(G176:G182) -> 57687.75464 | H183: =SUM(H176:H182) -> 59739.84441 | I183: =SUM(I176:I182) -> 62722.95525

Sheet 2.5 Newlands
A1: ='1.1 General'!$A$1 -> AURIZON NETWORK - UT4 "COAL SYSTEM AGGREGATE" MODEL
A3: =MID(CELL("FILENAME",A1:A1),(FIND("]",CELL("FILENAME",A1:A1))+1),(LEN(CELL("FILENAME",A1:A1))-FIND("]",CELL("FILENAME",A1:A1))+1)) -> 2.5 Newlands
C5: Period Start | F5: =MODEL_START -> 2013-07-01 | G5: =F6+1 -> 2014-07-01 | H5: =G6+1 -> 2015-07-01 | I5: 2016-07-01
B6: BY FINANCIAL YEAR | C6: Period End | F6: =EOMONTH(F5,11) -> 2014-06-30 | G6: 2015-06-30 | H6: 2016-06-30 | I6: 2017-06-30
C7: Financial Year | F7: =YEAR(F$5)&"/"&RIGHT(YEAR(F$6),2) -> 2013/14 | G7: =YEAR(G$5)&"/"&RIGHT(YEAR(G$6),2) -> 2014/15 | H7: 2015/16 | I7: 2016/17
B9: NEWLANDS | F9: 1 | G9: =F9+1 -> 2 | H9: =G9+1 -> 3 | I9: 4
B11: CPI | F11: ='1.1 General'!F$12 -> 0.025 | G11: ='1.1 General'!G$12 -> 0.025 | H11: ='1.1 General'!H$12 -> 0.025 | I11: ='1.1 General'!I$12 -> 0.025
B12: CUMULATIVE INFLATION INDEX | E12: ='1.1 General'!E$13 -> 1 | F12: ='1.1 General'!F$13 -> 1.025 | G12: ='1.1 General'!G$13 -> 1.050625 | H12: ='1.1 General'!H$13 -> 1.076890625 | I12: ='1.1 General'!I$13 -> 1.103812891
B14: NON-ELECTRIC | F14: =IF(SUM(F$15:F$18)<>0,1,0) -> 1 | G14: =IF(SUM(G$15:G$18)<>0,1,0) -> 1 | H14: 1 | I14: 1
B15: Opening | C15: $000's | F15: 202960.8107 | G15: 255327.6898 | H15: 255028.343 | I15: 256891.0969
B16: PLUS Capex | C16: $000's | F16: 10232.50923 | G16: 6649.262034 | H16: 9363.544655 | I16: 6691.810798
B17: PLUS Inflation | C17: $000's | F17: 5329.832999 | G17: 6549.423795 | H17: 6609.797192 | I17: 6589.572692
B18: LESS Depreciation | C18: $000's | F18: 11232.18838 | G18: 13498.0326 | H18: 14110.58798 | I18: 14891.0733
B19: Closing | C19: $000's | F19: =F15+F16+F17-F18 -> 207290.9646 | G19: =G15+G16+G17-G18 -> 255028.343 | H19: 256891.0969 | I19: 255281.4071
B21: NET DEPRECIATION (Depreciation - Inflation)
B22: Existing RAB | C22: $000's | F22: =(F18-F17)-F23 -> 6158.168107 | G22: =(G18-G17)-G23 -> 6947.027203 | H22: 7431.429365 | I22: 7951.683546
B23: Capex | C23: $000's | F23: -255.8127308 | G23: 1.58160056 | H23: 69.36142607 | I23: 349.8170575
B25: TAX DEPRECIATION
B26: Existing RAB | C26: $000's | F26: 655.974832 | G26: 562.9848724 | H26: 504.7088743 | I26: 460.4049092
B27: Capex | C27: $000's | F27: 4108.383128 | G27: 6701.961515 | H27: 6038.540399 | I27: 5479.738179
B29: OPERATING AND MAINTENANCE
B30: Maintenance Costs | C30: $000's | F30: 8863.361215 | G30: 9327.41517 | H30: 9683.356528 | I30: 10489.05479
B31: Operating Costs | C31: $000's | F31: 9162.983487 | G31: 9215.096156 | H31: 9485.583142 | I31: 10102.08976
B32: Total (Excluding Tax) | C32: $000's | F32: =SUM(F30:F31) -> 18026.3447 | G32: =SUM(G30:G31) -> 18542.51133 | H32: 19168.93967 | I32: 20591.14454
B34: ELECTRIC | F34: =IF(SUM(F$35:F$38)<>0,1,0) -> 0 | G34: =IF(SUM(G$35:G$38)<>0,1,0) -> 0 | H34: 0 | I34: 0
B35: Opening | C35: $000's | F35: 0 | G35: 0 | H35: 0 | I35: 0
B36: PLUS Capex | C36: $000's | F36: 0 | G36: 0 | H36: 0 | I36: 0
B37: PLUS Inflation | C37: $000's | F37: 0 | G37: 0 | H37: 0 | I37: 0
B38: LESS Depreciation | C38: $000's | F38: 0 | G38: 0 | H38: 0 | I38: 0
B39: Closing | C39: $000's | F39: =F35+F36+F37-F38 -> 0 | G39: =G35+G36+G37-G38 -> 0 | H39: 0 | I39: 0
B41: NET DEPRECIATION (Depreciation - Inflation)
B42: Existing RAB | C42: $000's | F42: =(F38-F37)-F43 -> 0 | G42: =(G38-G37)-G43 -> 0 | H42: 0 | I42: 0
B43: Capex | C43: $000's | F43: 0 | G43: 0 | H43: 0 | I43: 0
B45: TAX DEPRECIATION
B46: Existing RAB | C46: $000's | F46: 0 | G46: 0 | H46: 0 | I46: 0
B47: Capex | C47: $000's | F47: 0 | G47: 0 | H47: 0 | I47: 0
B49: OPERATING AND MAINTENANCE
B50: Maintenance Costs | C50: $000's | F50: 0 | G50: 0 | H50: 0 | I50: 0
B51: Operating Costs | C51: $000's | F51: 0 | G51: 0 | H51: 0 | I51: 0
B52: Total (Excluding Tax) | C52: $000's | F52: =SUM(F50:F51) -> 0 | G52: 0 | H52: 0 | I52: 0
A54: ANNUAL BUILDING BLOCKS ($000, NOMINAL)
B56: NON-ELECTRIC
B58: RAB | F58: =F$15 -> 202960.8107 | G58: =G$15 -> 255327.6898 | H58: 255028.343 | I58: 256891.0969
B59: - Equity | C59: ='1.1 General'!$F$16 -> 0.45 | F59: =$C59*F$58 -> 91332.36483 | G59: =$C59*G$58 -> 114897.4604 | H59: 114762.7544 | I59: 115600.9936
B60: - Debt | C60: ='1.1 General'!$F$17 -> 0.55 | F60: =$C60*F$58 -> 111628.4459 | G60: 140430.2294 | H60: 140265.5887 | I60: 141290.1033
B62: CAPEX | F62: =F$16 -> 10232.50923 | G62: =G$16 -> 6649.262034 | H62: 9363.544655 | I62: 6691.810798
B63: - Equity | C63: ='1.1 General'!$F$16 -> 0.45 | F63: =$C63*F$62 -> 4604.629155 | G63: =$C63*G$62 -> 2992.167915 | H63: 4213.595095 | I63: 3011.314859
B64: - Debt | C64: ='1.1 General'!$F$17 -> 0.55 | F64: =$C64*F$62 -> 5627.880078 | G64: 3657.094119 | H64: 5149.94956 | I64: 3680.495939
B66: REVENUE BUILDING BLOCKS
B68: Return on Asset - RAB
B69: - Return on Equity | C69: ='1.1 General'!$F$19 -> 0.1015369 | F69: =$C69*F59 -> 9273.605194 | G69: 11666.33195 | H69: 11652.65431 | I69: 11737.76653
B70: - Return on Debt | C70: ='1.1 General'!$F$20 -> 0.06558005 | F70: 7320.599064 | G70: 9209.421464 | H70: 9198.624318 | I70: 9265.812038
C71: ='1.1 General'!$F$18 -> 0.0817606325 | F71: =SUM(F69:F70) -> 16594.20426 | G71: 20875.75341 | H71: 20851.27863 | I71: 21003.57856
B73: Return on Asset - CAPEX
B74: - Return on Equity | C74: ='1.1 General'!$F$19 -> 0.1015369 | F74: =$C74*F63 -> 467.53977 | G74: =$C74*G63 -> 303.8154544 | H74: 427.8353838 | I74: 305.7595757
B75: - Return on Debt | C75: ='1.1 General'!$F$20 -> 0.06558005 | F75: =$C75*F64 -> 369.0766569 | G75: =$C75*G64 -> 239.8324152 | H75: 337.7339497 | I75: 241.3671077
C76: ='1.1 General'!$F$18 -> 0.0817606325 | F76: =SUM(F74:F75) -> 836.6164269 | G76: =SUM(G74:G75) -> 543.6478696 | H76: 765.5693334 | I76: 547.1266834
B78: Return of Asset (regulatory depreciation) | F78: =F$18 -> 11232.18838 | G78: =G$18 -> 13498.0326 | H78: 14110.58798 | I78: 14891.0733
B79: Less Inflation | F79: =-F$17 -> -5329.832999 | G79: -6549.423795 | H79: -6609.797192 | I79: -6589.572692
B81: Free Cash | F81: =SUM(F71,F76,F78,F79) -> 23333.17606 | G81: =SUM(G71,G76,G78,G79) -> 28368.01009 | H81: 29117.63875 | I81: 29852.20585
B83: Operating and Maintenance (O&M) Expenditure | F83: =F$32 -> 18026.3447 | G83: =G$32 -> 18542.51133 | H83: 19168.93967 | I83: 20591.14454
B85: Tax Payable | F85: =F101 -> 4211.280921 | G85: =G101 -> 4511.152188 | H85: 5046.979825 | I85: 5576.083981
B86: Less Value of Imputation Credits | C86: ='1.1 General'!$F$21 -> 0.25 | F86: =$C$86*-F85 -> -1052.82023 | G86: =$C$86*-G85 -> -1127.788047 | H86: -1261.744956 | I86: -1394.020995
B88: Annual Building Block Revenue Requirement | F88: =SUM(F81:F87) -> 44517.98145 | G88: 50293.88555 | H88: 52071.81329 | I88: 54625.41338
B90: TAX EXPENSES
B91: - O&M | F91: =F83 -> 18026.3447 | G91: =G83 -> 18542.51133 | H91: 19168.93967 | I91: 20591.14454
B92: - Tax Depreciation | F92: =F26+F27 -> 4764.35796 | G92: =G26+G27 -> 7264.946387 | H92: 6543.249273 | I92: 5940.143088
B93: - Interest | F93: =F70+F75 -> 7689.675721 | G93: =G70+G75 -> 9449.25388 | H93: 9536.358267 | I93: 9507.179146
B94: Total Tax Expenses | F94: =SUM(F91:F93) -> 30480.37838 | G94: =SUM(G91:G93) -> 35256.71159 | H94: 35248.54721 | I94: 36038.46678
B96: TAX CALCULATION
B97: Corporate Tax Rate | F97: ='1.1 General'!$F$22 -> 0.3 | G97: ='1.1 General'!$F$22 -> 0.3 | H97: ='1.1 General'!$F$22 -> 0.3 | I97: ='1.1 General'!$F$22 -> 0.3
B98: Taxable Income | F98: =F99+E100 -> 14037.60307 | G98: =G99+F100 -> 15037.17396 | H98: 16823.26608 | I98: 18586.9466
B99: - Pre-tax Income | F99: =F88-F94 -> 14037.60307 | G99: =G88-G94 -> 15037.17396 | H99: 16823.26608 | I99: 18586.9466
B100: - Tax Loss Carried Forward | E100: =VLOOKUP($B$9&$B$56,'1.1 General'!$B$44:$F$56,'1.1 General'!$B$42,FALSE) -> 0 | F100: =IF(F98<0,F98,0) -> 0 | G100: =IF(G98<0,G98,0) -> 0 | H100: 0 | I100: 0
B101: Tax Payable | C101: ='1.1 General'!$F$22 -> 0.3 | F101: 4211.280921 | G101: 4511.152188 | H101: 5046.979825 | I101: 5576.083981
B102: Value of Imputation Credits | C102: ='1.1 General'!$F$21 -> 0.25 | F102: =$C$102*F101 -> 1052.82023 | G102: =$C$102*G101 -> 1127.788047 | H102: 1261.744956 | I102: 1394.020995
B105: ELECTRIC
B107: RAB | F107: =F$35 -> 0 | G107: =G$35 -> 0 | H107: 0 | I107: 0
B108: - Equity | C108: ='1.1 General'!$F$16 -> 0.45 | F108: =$C108*F$107 -> 0 | G108: 0 | H108: 0 | I108: 0
B109: - Debt | C109: ='1.1 General'!$F$17 -> 0.55 | F109: 0 | G109: 0 | H109: 0 | I109: 0
B111: CAPEX | F111: =F$36 -> 0 | G111: =G$36 -> 0 | H111: 0 | I111: 0
B112: - Equity | C112: ='1.1 General'!$F$16 -> 0.45 | F112: =$C112*F$111 -> 0 | G112: 0 | H112: 0 | I112: 0
B113: - Debt | C113: ='1.1 General'!$F$17 -> 0.55 | F113: 0 | G113: 0 | H113: 0 | I113: 0
B115: REVENUE BUILDING BLOCKS
B117: Return on Asset - RAB
B118: - Return on Equity | C118: ='1.1 General'!$F$19 -> 0.1015369 | F118: =$C118*F108 -> 0 | G118: 0 | H118: 0 | I118: 0
B119: - Return on Debt | C119: ='1.1 General'!$F$20 -> 0.06558005 | F119: 0 | G119: 0 | H119: 0 | I119: 0
C120: ='1.1 General'!$F$18 -> 0.0817606325 | F120: =SUM(F118:F119) -> 0 | G120: 0 | H120: 0 | I120: 0
B122: Return on Asset - CAPEX
B123: - Return on Equity | C123: ='1.1 General'!$F$19 -> 0.1015369 | F123: =$C123*F112 -> 0 | G123: =$C123*G112 -> 0 | H123: 0 | I123: 0
B124: - Return on Debt | C124: ='1.1 General'!$F$20 -> 0.06558005 | F124: =$C124*F113 -> 0 | G124: =$C124*G113 -> 0 | H124: 0 | I124: 0
C125: ='1.1 General'!$F$18 -> 0.0817606325 | F125: =SUM(F123:F124) -> 0 | G125: =SUM(G123:G124) -> 0 | H125: 0 | I125: 0
B127: Return of Asset (regulatory depreciation) | F127: =F$38 -> 0 | G127: 0 | H127: 0 | I127: 0
B128: Less Inflation | F128: =-F$37 -> 0 | G128: =-G$37 -> 0 | H128: 0 | I128: 0
B130: Free Cash | F130: =SUM(F120,F125,F127,F128) -> 0 | G130: =SUM(G120,G125,G127,G128) -> 0 | H130: 0 | I130: 0
B132: Operating and Maintenance (O&M) Expenditure | F132: =F$52 -> 0 | G132: =G$52 -> 0 | H132: 0 | I132: 0
B134: Tax Payable | F134: =F152 -> 0 | G134: =G152 -> 0 | H134: 0 | I134: 0
B135: Less Value of Imputation Credits | C135: ='1.1 General'!$F$21 -> 0.25 | F135: =$C$135*-F134 -> 0 | G135: =$C$135*-G134 -> 0 | H135: =$C$135*-H134 -> 0 | I135: =$C$135*-I134 -> 0
B137: Annual Building Block Revenue Requirement | F137: =SUM(F130:F136) -> 0 | G137: 0 | H137: 0 | I137: 0
B139: TAX EXPENSES
B140: - O&M | F140: =F132 -> 0 | G140: =G132 -> 0 | H140: 0 | I140: 0
B141: - Tax Depreciation | F141: =F46+F47 -> 0 | G141: =G46+G47 -> 0 | H141: =H46+H47 -> 0 | I141: =I46+I47 -> 0
B142: - Interest | F142: =F119+F124 -> 0 | G142: =G119+G124 -> 0 | H142: 0 | I142: 0
B143: Total Tax Expenses | F143: =SUM(F140:F142) -> 0 | G143: =SUM(G140:G142) -> 0 | H143: 0 | I143: 0
B145: TAX CALCULATION
B146: Corporate Tax Rate | F146: ='1.1 General'!$F$22 -> 0.3 | G146: ='1.1 General'!$F$22 -> 0.3 | H146: ='1.1 General'!$F$22 -> 0.3 | I146: ='1.1 General'!$F$22 -> 0.3
B147: Taxable Income | F147: =F148+E149 -> 0 | G147: 0 | H147: 0 | I147: 0
B148: - Pre-tax Income | F148: =F137-F143 -> 0 | G148: =G137-G143 -> 0 | H148: 0 | I148: 0
B149: - Tax Loss Carried Forward | E149: =VLOOKUP($B$9&$B$105,'1.1 General'!$B$44:$F$56,'1.1 General'!$B$42,FALSE) -> 0 | F149: =IF(F147<0,F147,0) -> 0 | G149: =IF(G147<0,G147,0) -> 0 | H149: 0 | I149: 0
B150: Tax Payable | C150: ='1.1 General'!$F$22 -> 0.3 | F150: =IF(F147>0,F146*F147,0) -> 0 | G150: =IF(G147>0,G146*G147,0) -> 0 | H150: 0 | I150: 0
B151: Value of Imputation Credits | C151: ='1.1 General'!$F$21 -> 0.25 | F151: =$C$151*F150 -> 0 | G151: =$C$151*G150 -> 0 | H151: =$C$151*H150 -> 0 | I151: =$C$151*I150 -> 0
B154: NEWLANDS Building Blocks
B156: Non-Electric
B157: Return on Capital | F157: =SUM(F71,F76) -> 17430.82069 | G157: =SUM(G71,G76) -> 21419.40128 | H157: =SUM(H71,H76) -> 21616.84796 | I157: =SUM(I71,I76) -> 21550.70525
B158: Less Inflation | F158: =F79 -> -5329.832999 | G158: =G79 -> -6549.423795 | H158: =H79 -> -6609.797192 | I158: =I79 -> -6589.572692
B159: Plus Depreciation | F159: =F78 -> 11232.18838 | G159: =G78 -> 13498.0326 | H159: =H78 -> 14110.58798 | I159: =I78 -> 14891.0733
B160: Maintenance costs | F160: =F30 -> 8863.361215 | G160: 9327.41517 | H160: 9683.356528 | I160: 10489.05479
B161: Operating Costs | F161: 9162.983487 | G161: 9215.096156 | H161: 9485.583142 | I161: 10102.08976
B162: Gamma adjusted Tax | F162: =F85+F86 -> 3158.460691 | G162: =G85+G86 -> 3383.364141 | H162: =H85+H86 -> 3785.234869 | I162: =I85+I86 -> 4182.062986
B163: Total | F163: =SUM(F157:F162) -> 44517.98145 | G163: =SUM(G157:G162) -> 50293.88555 | H163: 52071.81329 | I163: 54625.41338
B165: Electric
B166: Return on Capital | F166: =F120+F125 -> 0 | G166: =G120+G125 -> 0 | H166: =H120+H125 -> 0 | I166: =I120+I125 -> 0
B167: Less Inflation | F167: =F128 -> 0 | G167: =G128 -> 0 | H167: =H128 -> 0 | I167: =I128 -> 0
B168: Plus Depreciation | F168: =F127 -> 0 | G168: =G127 -> 0 | H168: =H127 -> 0 | I168: =I127 -> 0
B169: Maintenance costs | F169: =F50 -> 0 | G169: =G50 -> 0 | H169: =H50 -> 0 | I169: =I50 -> 0
B170: Operating Costs
B171: Electric Connection Costs | F171: =F51 -> 0 | G171: =G51 -> 0 | H171: =H51 -> 0 | I171: =I51 -> 0
B172: Gamma adjusted Tax | F172: =F134+F135 -> 0 | G172: =G134+G135 -> 0 | H172: =H134+H135 -> 0 | I172: =I134+I135 -> 0
B173: Total | F173: =SUM(F166:F172) -> 0 | G173: =SUM(G166:G172) -> 0 | H173: =SUM(H166:H172) -> 0 | I173: =SUM(I166:I172) -> 0
B175: =CONCATENATE("TOTAL "&$B$9) -> TOTAL NEWLANDS
B176: Return on Capital | F176: =F157+F166 -> 17430.82069 | G176: =G157+G166 -> 21419.40128 | H176: 21616.84796 | I176: 21550.70525
B177: Less Inflation | F177: =F158+F167 -> -5329.832999 | G177: =G158+G167 -> -6549.423795 | H177: -6609.797192 | I177: -6589.572692
B178: Plus Depreciation | F178: 11232.18838 | G178: =G159+G168 -> 13498.0326 | H178: 14110.58798 | I178: 14891.0733
B179: Maintenance costs | F179: 8863.361215 | G179: =G160+G169 -> 9327.41517 | H179: 9683.356528 | I179: 10489.05479
B180: Operating Costs | F180: 9162.983487 | G180: =G161+G170 -> 9215.096156 | H180: 9485.583142 | I180: 10102.08976
B181: Electric Connection Costs | F181: =F171 -> 0 | G181: =G171 -> 0 | H181: 0 | I181: 0
B182: Gamma adjusted Tax | F182: =F162+F172 -> 3158.460691 | G182: =G162+G172 -> 3383.364141 | H182: =H162+H172 -> 3785.234869 | I182: =I162+I172 -> 4182.062986
B183: Total | F183: =SUM(F176:F182) -> 44517.98145 | G183: =SUM(G176:G182) -> 50293.88555 | H183: =SUM(H176:H182) -> 52071.81329 | I183: =SUM(I176:I182) -> 54625.41338

Sheet 3. Outputs >

Sheet 3.1 Revenue Smoothing
A1: ='1.1 General'!$A$1 -> AURIZON NETWORK - UT4 "COAL SYSTEM AGGREGATE" MODEL
A3: =MID(CELL("FILENAME",A1:A1),(FIND("]",CELL("FILENAME",A1:A1))+1),(LEN(CELL("FILENAME",A1:A1))-FIND("]",CELL("FILENAME",A1:A1))+1)) -> 3.1 Revenue Smoothing
C5: Period Start | F5: =MODEL_START -> 2013-07-01 | G5: =F6+1 -> 2014-07-01 | H5: =G6+1 -> 2015-07-01 | I5: 2016-07-01
B6: BY FINANCIAL YEAR | C6: Period End | F6: =EOMONTH(F5,11) -> 2014-06-30 | G6: 2015-06-30 | H6: 2016-06-30 | I6: 2017-06-30
C7: Financial Year | F7: =YEAR(F$5)&"/"&RIGHT(YEAR(F$6),2) -> 2013/14 | G7: =YEAR(G$5)&"/"&RIGHT(YEAR(G$6),2) -> 2014/15 | H7: 2015/16 | I7: 2016/17
B9: Regulatory Period Modelled | C9: =REG_PERIOD -> 4 | F9: 1 | G9: =F9+1 -> 2 | H9: =G9+1 -> 3 | I9: 4
B10: Revenue Units | C10: 1000
B12: Allowable Revenues
B14: NON-ELECTRIC ($000, Nominal)
B15: Annual Revenue Requirement - Unsmoothed | D15: Target NPV
B16: BLACKWATER | D16: =NPV(WACC,$F16:$I16)+'1.1 General'!$F28 -> 1294066.805 | F16: =IF(F$9>REG_PERIOD,0,'2.1 Blackwater'!F$88) -> 313355.9011 | G16: =IF(G$9>REG_PERIOD,0,'2.1 Blackwater'!G$88) -> 375194.5877 | H16: =IF(H$9>REG_PERIOD,0,'2.1 Blackwater'!H$88) -> 435703.1124 | I16: =IF(I$9>REG_PERIOD,0,'2.1 Blackwater'!I$88) -> 452573.9992
B17: GAPE | D17: =NPV(WACC,$F17:$I17)+'1.1 General'!$F29 -> 483340.9408 | F17: =IF(F$9>REG_PERIOD,0,'2.2 GAPE'!F$88)+IF(F$9>REG_PERIOD,0,'2.2 GAPE'!F$137) -> 142055.7024 | G17: =IF(G$9>REG_PERIOD,0,'2.2 GAPE'!G$88)+IF(G$9>REG_PERIOD,0,'2.2 GAPE'!G$137) -> 150126.4497 | H17: =IF(H$9>REG_PERIOD,0,'2.2 GAPE'!H$88)+IF(H$9>REG_PERIOD,0,'2.2 GAPE'!H$137) -> 154234.6605 | I17: =IF(I$9>REG_PERIOD,0,'2.2 GAPE'!I$88)+IF(I$9>REG_PERIOD,0,'2.2 GAPE'!I$137) -> 157620.5357
B18: GOONYELLA | D18: =NPV(WACC,$F18:$I18)+'1.1 General'!$F30 -> 1184767.137 | F18: =IF(F$9>REG_PERIOD,0,'2.3 Goonyella'!F$88) -> 340194.893 | G18: =IF(G$9>REG_PERIOD,0,'2.3 Goonyella'!G$88) -> 362685.1273 | H18: =IF(H$9>REG_PERIOD,0,'2.3 Goonyella'!H$88) -> 377037.1896 | I18: =IF(I$9>REG_PERIOD,0,'2.3 Goonyella'!I$88) -> 393996.0248
B19: MOURA | D19: =NPV(WACC,$F19:$I19)+'1.1 General'!$F31 -> 189816.2775 | F19: =IF(F$9>REG_PERIOD,0,'2.4 Moura'!F$88) -> 52264.8866 | G19: =IF(G$9>REG_PERIOD,0,'2.4 Moura'!G$88) -> 57687.75464 | H19: =IF(H$9>REG_PERIOD,0,'2.4 Moura'!H$88) -> 59739.84441 | I19: =IF(I$9>REG_PERIOD,0,'2.4 Moura'!I$88) -> 62722.95525
B20: NEWLANDS | D20: =NPV(WACC,$F20:$I20)+'1.1 General'!$F32 -> 167241.5124 | F20: =IF(F$9>REG_PERIOD,0,'2.5 Newlands'!F$88) -> 44517.98145 | G20: =IF(G$9>REG_PERIOD,0,'2.5 Newlands'!G$88) -> 50293.88555 | H20: =IF(H$9>REG_PERIOD,0,'2.5 Newlands'!H$88) -> 52071.81329 | I20: =IF(I$9>REG_PERIOD,0,'2.5 Newlands'!I$88) -> 54625.41338
B21: TOTAL UNSMOOTHED REVENUE - NON-ELECTRIC | F21: =SUM(F16:F20) -> 892389.3646 | G21: =SUM(G16:G20) -> 995987.8049 | H21: =SUM(H16:H20) -> 1078786.62 | I21: =SUM(I16:I20) -> 1121538.928
B23: Impact of Smoothing and allocation of Cross-System Revenue
B24: BLACKWATER | F24: 6511.554068 | G24: 19125.22971 | H24: -3031.180594 | I24: -39789.09078
B25: GAPE | F25: 1896.05041 | G25: 5564.108694 | H25: 5083.133494 | I25: 3681.716715
B26: GOONYELLA | F26: 1245.686045 | G26: 9737.471282 | H26: 9505.425593 | I26: 11269.82281
B27: MOURA | F27: 1995.893596 | G27: -2016.848364 | H27: -270.5965924 | I27: 1210.194246
B28: NEWLANDS | F28: 1983.826454 | G28: -296.0314476 | H28: -1900.294706 | I28: -2963.356619
B30: Maximum Allowed Revenue - Smoothed | D30: NPV | E30: NPV Variance
B31: BLACKWATER | D31: =NPV(WACC,$F31:$I31) -> 1294066.805 | E31: =D31-D16 -> 0.0005976322573 | F31: =F16-F24 -> 306844.347 | G31: =G16-G24 -> 356069.358 | H31: 438734.293 | I31: 492363.09
B32: GAPE | D32: =NPV(WACC,$F32:$I32) -> 483340.9402 | E32: =D32-D17 -> -0.0006141072372 | F32: =F17-F25 -> 140159.652 | G32: 144562.341 | H32: 149151.527 | I32: 153938.819
B33: GOONYELLA | D33: =NPV(WACC,$F33:$I33) -> 1184767.138 | E33: =D33-D18 -> 0.0008385365363 | F33: 338949.207 | G33: 352947.656 | H33: 367531.764 | I33: 382726.202
B34: MOURA | D34: =NPV(WACC,$F34:$I34) -> 189816.2774 | E34: =D34-D19 -> -0.0001443215297 | F34: 50268.993 | G34: 59704.603 | H34: 60010.441 | I34: 61512.761
B35: NEWLANDS | D35: =NPV(WACC,$F35:$I35) -> 167241.5128 | E35: =D35-D20 -> 0.0004677911056 | F35: 42534.155 | G35: 50589.917 | H35: 53972.108 | I35: 57588.77
B36: TOTAL SMOOTHED REVENUE - NON-ELECTRIC | F36: =SUM(F31:F35) -> 878756.354 | G36: =SUM(G31:G35) -> 963873.875 | H36: =SUM(H31:H35) -> 1069400.133 | I36: =SUM(I31:I35) -> 1148129.642
B38: ELECTRIC ($000, Nominal)
B39: Annual Revenue Requirement - Unsmoothed | D39: Target NPV
B40: BLACKWATER | D40: =NPV(WACC,$F40:$I40)+'1.1 General'!$F35 -> 316365.721 | F40: =IF(F$9>REG_PERIOD,0,'2.1 Blackwater'!F$137) -> 88480.7047 | G40: =IF(G$9>REG_PERIOD,0,'2.1 Blackwater'!G$137) -> 107131.813 | H40: =IF(H$9>REG_PERIOD,0,'2.1 Blackwater'!H$137) -> 119535.6572 | I40: =IF(I$9>REG_PERIOD,0,'2.1 Blackwater'!I$137) -> 103051.2322
B41: GAPE | D41: =NPV(WACC,$F41:$I41)+'1.1 General'!$F36 -> 0
B42: GOONYELLA | D42: =NPV(WACC,$F42:$I42)+'1.1 General'!$F37 -> 275938.2137 | F42: =IF(F$9>REG_PERIOD,0,'2.3 Goonyella'!F$137) -> 76082.28519 | G42: =IF(G$9>REG_PERIOD,0,'2.3 Goonyella'!G$137) -> 84254.8496 | H42: =IF(H$9>REG_PERIOD,0,'2.3 Goonyella'!H$137) -> 94554.83943 | I42: =IF(I$9>REG_PERIOD,0,'2.3 Goonyella'!I$137) -> 97912.01447
B43: MOURA | D43: =NPV(WACC,$F43:$I43)+'1.1 General'!$F38 -> 0 | F43: =IF(F$9>REG_PERIOD,0,'2.4 Moura'!F$137) -> 0 | G43: =IF(G$9>REG_PERIOD,0,'2.4 Moura'!G$137) -> 0 | H43: =IF(H$9>REG_PERIOD,0,'2.4 Moura'!H$137) -> 0 | I43: =IF(I$9>REG_PERIOD,0,'2.4 Moura'!I$137) -> 0
B44: NEWLANDS | D44: =NPV(WACC,$F44:$I44)+'1.1 General'!$F39 -> 0 | F44: =IF(F$9>REG_PERIOD,0,'2.5 Newlands'!F$137) -> 0 | G44: =IF(G$9>REG_PERIOD,0,'2.5 Newlands'!G$137) -> 0 | H44: =IF(H$9>REG_PERIOD,0,'2.5 Newlands'!H$137) -> 0 | I44: =IF(I$9>REG_PERIOD,0,'2.5 Newlands'!I$137) -> 0
B45: TOTAL UNSMOOTHED REVENUE - ELECTRIC | F45: =SUM(F40:F44) -> 164562.9899 | G45: =SUM(G40:G44) -> 191386.6626 | H45: =SUM(H40:H44) -> 214090.4966 | I45: =SUM(I40:I44) -> 200963.2467
B47: Impact of Smoothing, allocation of Cross-System Revenue and AT5 DAAU
B48: BLACKWATER | F48: 28222.3657 | G48: 28205.52298 | H48: 18867.30518 | I48: -9237.759768
B49: GAPE | F49: 0 | G49: 0 | H49: 0 | I49: 0
B50: GOONYELLA | F50: -982.0628122 | G50: 2677.743597 | H50: 8195.250432 | I50: 6483.991465
B51: MOURA | F51: 0 | G51: 0 | H51: 0 | I51: 0
B52: NEWLANDS | F52: 0 | G52: 0 | H52: 0 | I52: 0
B54: Maximum Allowed Revenue - Smoothed | D54: NPV | E54: NPV Variance
B55: BLACKWATER | D55: =NPV(WACC,$F55:$I55) -> 284674.4051 | E55: =D55-D40 -> -31691.31589 | F55: =F40-F48 -> 60258.339 | G55: =G40-G48 -> 78926.29 | H55: 100668.352 | I55: 112288.992
B56: GAPE | D56: =NPV(WACC,$F56:$I56) -> 0 | E56: =D56-D41 -> 0 | F56: =F41-F49 -> 0 | G56: 0 | H56: 0 | I56: 0
B57: GOONYELLA | D57: =NPV(WACC,$F57:$I57) -> 275938.2132 | E57: =D57-D42 -> -0.0004870750709 | F57: =F42-F50 -> 77064.348 | G57: 81577.106 | H57: 86359.589 | I57: 91428.023
B58: MOURA | D58: =NPV(WACC,$F58:$I58) -> 0 | E58: =D58-D43 -> 0 | F58: =F43-F51 -> 0 | G58: 0 | H58: 0 | I58: 0
B59: NEWLANDS | D59: =NPV(WACC,$F59:$I59) -> 0 | E59: =D59-D44 -> 0 | F59: =F44-F52 -> 0 | G59: 0 | H59: 0 | I59: 0
B60: TOTAL SMOOTHED REVENUE - ELECTRIC | F60: =SUM(F55:F59) -> 137322.687 | G60: =SUM(G55:G59) -> 160503.396 | H60: =SUM(H55:H59) -> 187027.941 | I60: =SUM(I55:I59) -> 203717.015
B64: Check NPV of Smoothed Revenue Stream = Unsmoothed Revenue Stream
B65: NON-ELECTRIC REVENUE | C65: =IF(ROUND(SUM($E$31:$E$35),0)=0,"OK","CHECK") -> OK
B66: ELECTRIC REVENUE | C66: =IF(ROUND(SUM($E$55:$E$59),0)=0,"OK","CHECK") -> CHECK | D66: <= Note: difference relates to the assumed impact of AT5 DAAU. Impact to be confirmed.
E70: Non-Electric ($m)
E71: Unsmoothed | F71: =F21/$C$10 -> 892.3893646 | G71: =G21/$C$10 -> 995.9878049 | H71: 1078.78662 | I71: 1121.538928
E72: Smoothed | F72: =F36/$C$10 -> 878.756354 | G72: =G36/$C$10 -> 963.873875 | H72: 1069.400133 | I72: 1148.129642
E74: Electric ($m)
E75: Unsmoothed | F75: =F45/$C$10 -> 164.5629899 | G75: =G45/$C$10 -> 191.3866626 | H75: 214.0904966 | I75: 200.9632467
E76: Smoothed | F76: =F60/$C$10 -> 137.322687 | G76: =G60/$C$10 -> 160.503396 | H76: 187.027941 | I76: 203.717015
E78: Total, Nominal ($m)
E79: Unsmoothed | F79: =F71+F75 -> 1056.952354 | G79: 1187.374467 | H79: 1292.877117 | I79: 1322.502175
E80: Smoothed | F80: 1016.079041 | G80: 1124.377271 | H80: 1256.428074 | I80: 1351.846657
E82: Total, Real ($m)
E83: Real Unsmoothed Revenue | F83: =F79/'1.1 General'!F$13 -> 1031.173029 | G83: =G79/'1.1 General'!G$13 -> 1130.160112 | H83: =H79/'1.1 General'!H$13 -> 1200.564929 | I83: =I79/'1.1 General'!I$13 -> 1198.121698
E84: Real Smoothed Revenue | F84: =F80/'1.1 General'!F$13 -> 991.2966254 | G84: =G80/'1.1 General'!G$13 -> 1070.198473 | H84: =H80/'1.1 General'!H$13 -> 1166.718369 | I84: =I80/'1.1 General'!I$13 -> 1224.706351

Sheet 3.2 CQCR Summary
A1: ='1.1 General'!$A$1 -> AURIZON NETWORK - UT4 "COAL SYSTEM AGGREGATE" MODEL
A3: =MID(CELL("FILENAME",A1:A1),(FIND("]",CELL("FILENAME",A1:A1))+1),(LEN(CELL("FILENAME",A1:A1))-FIND("]",CELL("FILENAME",A1:A1))+1)) -> 3.2 CQCR Summary
C5: Period Start | F5: =MODEL_START -> 2013-07-01 | G5: =F6+1 -> 2014-07-01 | H5: =G6+1 -> 2015-07-01 | I5: 2016-07-01
B6: BY FINANCIAL YEAR | C6: Period End | F6: =EOMONTH(F5,11) -> 2014-06-30 | G6: 2015-06-30 | H6: 2016-06-30 | I6: 2017-06-30
C7: Financial Year | F7: =YEAR(F$5)&"/"&RIGHT(YEAR(F$6),2) -> 2013/14 | G7: =YEAR(G$5)&"/"&RIGHT(YEAR(G$6),2) -> 2014/15 | H7: 2015/16 | I7: 2016/17
B9: UT4 RAB ROLL-FORWARD FOR PRICING PURPOSES
B11: NON-ELECTRIC ($000)
B12: Opening Asset Value | F12: =SUM('2.1 Blackwater'!F15,'2.2 GAPE'!F15,'2.3 Goonyella'!F15,'2.4 Moura'!F15,'2.5 Newlands'!F15) -> 4324898.778 | G12: =SUM('2.1 Blackwater'!G15,'2.2 GAPE'!G15,'2.3 Goonyella'!G15,'2.4 Moura'!G15,'2.5 Newlands'!G15) -> 4585336.81 | H12: =SUM('2.1 Blackwater'!H15,'2.2 GAPE'!H15,'2.3 Goonyella'!H15,'2.4 Moura'!H15,'2.5 Newlands'!H15) -> 5364852.728 | I12: =SUM('2.1 Blackwater'!I15,'2.2 GAPE'!I15,'2.3 Goonyella'!I15,'2.4 Moura'!I15,'2.5 Newlands'!I15) -> 5377086.042
B13: PLUS Capex | F13: =SUM('2.1 Blackwater'!F16,'2.2 GAPE'!F16,'2.3 Goonyella'!F16,'2.4 Moura'!F16,'2.5 Newlands'!F16) -> 320744.9452 | G13: =SUM('2.1 Blackwater'!G16,'2.2 GAPE'!G16,'2.3 Goonyella'!G16,'2.4 Moura'!G16,'2.5 Newlands'!G16) -> 887076.4895 | H13: =SUM('2.1 Blackwater'!H16,'2.2 GAPE'!H16,'2.3 Goonyella'!H16,'2.4 Moura'!H16,'2.5 Newlands'!H16) -> 161605.6932 | I13: =SUM('2.1 Blackwater'!I16,'2.2 GAPE'!I16,'2.3 Goonyella'!I16,'2.4 Moura'!I16,'2.5 Newlands'!I16) -> 115376.0482
B14: PLUS Inflation | F14: =SUM('2.1 Blackwater'!F17,'2.2 GAPE'!F17,'2.3 Goonyella'!F17,'2.4 Moura'!F17,'2.5 Newlands'!F17) -> 116141.0931 | G14: =SUM('2.1 Blackwater'!G17,'2.2 GAPE'!G17,'2.3 Goonyella'!G17,'2.4 Moura'!G17,'2.5 Newlands'!G17) -> 136810.3325 | H14: =SUM('2.1 Blackwater'!H17,'2.2 GAPE'!H17,'2.3 Goonyella'!H17,'2.4 Moura'!H17,'2.5 Newlands'!H17) -> 138161.4605 | I14: =SUM('2.1 Blackwater'!I17,'2.2 GAPE'!I17,'2.3 Goonyella'!I17,'2.4 Moura'!I17,'2.5 Newlands'!I17) -> 137311.5523
B15: LESS Depreciation | F15: =SUM('2.1 Blackwater'!F18,'2.2 GAPE'!F18,'2.3 Goonyella'!F18,'2.4 Moura'!F18,'2.5 Newlands'!F18) -> 224484.7323 | G15: =SUM('2.1 Blackwater'!G18,'2.2 GAPE'!G18,'2.3 Goonyella'!G18,'2.4 Moura'!G18,'2.5 Newlands'!G18) -> 244370.904 | H15: =SUM('2.1 Blackwater'!H18,'2.2 GAPE'!H18,'2.3 Goonyella'!H18,'2.4 Moura'!H18,'2.5 Newlands'!H18) -> 287533.8393 | I15: =SUM('2.1 Blackwater'!I18,'2.2 GAPE'!I18,'2.3 Goonyella'!I18,'2.4 Moura'!I18,'2.5 Newlands'!I18) -> 300967.1202
B16: Closing Asset Value | F16: =SUM(F12:F14)-F15 -> 4537300.084 | G16: =SUM(G12:G14)-G15 -> 5364852.728 | H16: 5377086.042 | I16: 5328806.522
B18: ELECTRIC ($000)
B19: Opening Asset Value | F19: =SUM('2.1 Blackwater'!F35,'2.2 GAPE'!F35,'2.3 Goonyella'!F35,'2.4 Moura'!F35,'2.5 Newlands'!F35) -> 516698.7739 | G19: =SUM('2.1 Blackwater'!G35,'2.2 GAPE'!G35,'2.3 Goonyella'!G35,'2.4 Moura'!G35,'2.5 Newlands'!G35) -> 495077.9394 | H19: =SUM('2.1 Blackwater'!H35,'2.2 GAPE'!H35,'2.3 Goonyella'!H35,'2.4 Moura'!H35,'2.5 Newlands'!H35) -> 830670.8152 | I19: =SUM('2.1 Blackwater'!I35,'2.2 GAPE'!I35,'2.3 Goonyella'!I35,'2.4 Moura'!I35,'2.5 Newlands'!I35) -> 849019.2574
B20: PLUS Capex | F20: =SUM('2.1 Blackwater'!F36,'2.2 GAPE'!F36,'2.3 Goonyella'!F36,'2.4 Moura'!F36,'2.5 Newlands'!F36) -> 10409.06954 | G20: =SUM('2.1 Blackwater'!G36,'2.2 GAPE'!G36,'2.3 Goonyella'!G36,'2.4 Moura'!G36,'2.5 Newlands'!G36) -> 360942.4773 | H20: =SUM('2.1 Blackwater'!H36,'2.2 GAPE'!H36,'2.3 Goonyella'!H36,'2.4 Moura'!H36,'2.5 Newlands'!H36) -> 55126.63295 | I20: =SUM('2.1 Blackwater'!I36,'2.2 GAPE'!I36,'2.3 Goonyella'!I36,'2.4 Moura'!I36,'2.5 Newlands'!I36) -> 40304.69952
B21: PLUS Inflation | F21: =SUM('2.1 Blackwater'!F37,'2.2 GAPE'!F37,'2.3 Goonyella'!F37,'2.4 Moura'!F37,'2.5 Newlands'!F37) -> 13177.69609 | G21: =SUM('2.1 Blackwater'!G37,'2.2 GAPE'!G37,'2.3 Goonyella'!G37,'2.4 Moura'!G37,'2.5 Newlands'!G37) -> 21400.51042 | H21: =SUM('2.1 Blackwater'!H37,'2.2 GAPE'!H37,'2.3 Goonyella'!H37,'2.4 Moura'!H37,'2.5 Newlands'!H37) -> 22144.9362 | I21: =SUM('2.1 Blackwater'!I37,'2.2 GAPE'!I37,'2.3 Goonyella'!I37,'2.4 Moura'!I37,'2.5 Newlands'!I37) -> 22233.09892
B22: LESS Depreciation | F22: =SUM('2.1 Blackwater'!F38,'2.2 GAPE'!F38,'2.3 Goonyella'!F38,'2.4 Moura'!F38,'2.5 Newlands'!F38) -> 45207.60017 | G22: =SUM('2.1 Blackwater'!G38,'2.2 GAPE'!G38,'2.3 Goonyella'!G38,'2.4 Moura'!G38,'2.5 Newlands'!G38) -> 46750.11195 | H22: =SUM('2.1 Blackwater'!H38,'2.2 GAPE'!H38,'2.3 Goonyella'!H38,'2.4 Moura'!H38,'2.5 Newlands'!H38) -> 58923.12691 | I22: =SUM('2.1 Blackwater'!I38,'2.2 GAPE'!I38,'2.3 Goonyella'!I38,'2.4 Moura'!I38,'2.5 Newlands'!I38) -> 47620.28759
B23: Closing Asset Value | F23: =SUM(F19:F21)-F22 -> 495077.9394 | G23: =SUM(G19:G21)-G22 -> 830670.8152 | H23: 849019.2574 | I23: 863936.7683
B25: TOTAL ($000)
B26: Opening Asset Value | F26: =SUM(F12,F19) -> 4841597.552 | G26: =SUM(G12,G19) -> 5080414.749 | H26: 6195523.543 | I26: 6226105.299
B27: PLUS Capex | F27: =SUM(F13,F20) -> 331154.0147 | G27: 1248018.967 | H27: 216732.3262 | I27: 155680.7478
B28: PLUS Inflation | F28: 129318.7892 | G28: 158210.8429 | H28: 160306.3967 | I28: 159544.6512
B29: LESS Depreciation | F29: 269692.3325 | G29: 291121.016 | H29: 346456.9662 | I29: 348587.4078
B30: Closing Asset Value | F30: =SUM(F26:F28)-F29 -> 5032378.024 | G30: =SUM(G26:G28)-G29 -> 6195523.543 | H30: =SUM(H26:H28)-H29 -> 6226105.299 | I30: =SUM(I26:I28)-I29 -> 6192743.291
B34: Summary for 'Equity Raising Cost' worksheet
B36: Tax Payable
B37: Non-Electric
B38: BLACKWATER | F38: ='2.1 Blackwater'!F$85 -> 24582.02291 | G38: ='2.1 Blackwater'!G$85 -> 24336.56659 | H38: ='2.1 Blackwater'!H$85 -> 31353.98233 | I38: ='2.1 Blackwater'!I$85 -> 38436.36808
B39: GAPE | F39: ='2.2 GAPE'!F$85 -> 3375.802678 | G39: ='2.2 GAPE'!G$85 -> 5656.203013 | H39: ='2.2 GAPE'!H$85 -> 7746.983174 | I39: ='2.2 GAPE'!I$85 -> 9728.810666
B40: GOONYELLA | F40: ='2.3 Goonyella'!F$85 -> 21705.27834 | G40: ='2.3 Goonyella'!G$85 -> 22104.7692 | H40: ='2.3 Goonyella'!H$85 -> 25464.44927 | I40: ='2.3 Goonyella'!I$85 -> 28882.60359
B41: MOURA | F41: ='2.4 Moura'!F$85 -> 4967.082075 | G41: ='2.4 Moura'!G$85 -> 4935.538853 | H41: ='2.4 Moura'!H$85 -> 5395.246039 | I41: ='2.4 Moura'!I$85 -> 6056.065412
B42: NEWLANDS | F42: ='2.5 Newlands'!F$85 -> 4211.280921 | G42: ='2.5 Newlands'!G$85 -> 4511.152188 | H42: ='2.5 Newlands'!H$85 -> 5046.979825 | I42: ='2.5 Newlands'!I$85 -> 5576.083981
B43: =$B$36&" - "&$B$37 -> Tax Payable - Non-Electric | F43: =SUM(F38:F42) -> 58841.46693 | G43: =SUM(G38:G42) -> 61544.22985 | H43: =SUM(H38:H42) -> 75007.64064 | I43: =SUM(I38:I42) -> 88679.93173
B45: Electric
B46: BLACKWATER | F46: ='2.1 Blackwater'!F$134 -> 7986.704598 | G46: ='2.1 Blackwater'!G$134 -> 8430.457581 | H46: ='2.1 Blackwater'!H$134 -> 9271.016297 | I46: ='2.1 Blackwater'!I$134 -> 3659.790696
B47: GAPE | F47: ='2.2 GAPE'!F$134 -> 2.907032676 | G47: ='2.2 GAPE'!G$134 -> 6.726018338 | H47: ='2.2 GAPE'!H$134 -> 10.08709614 | I47: ='2.2 GAPE'!I$134 -> 13.32963433
B48: GOONYELLA | F48: ='2.3 Goonyella'!F$134 -> 6882.369078 | G48: ='2.3 Goonyella'!G$134 -> 6618.546931 | H48: ='2.3 Goonyella'!H$134 -> 7927.238518 | I48: ='2.3 Goonyella'!I$134 -> 7985.469842
B49: MOURA | F49: ='2.4 Moura'!F$134 -> 0 | G49: ='2.4 Moura'!G$134 -> 0 | H49: ='2.4 Moura'!H$134 -> 0 | I49: ='2.4 Moura'!I$134 -> 0
B50: NEWLANDS | F50: ='2.5 Newlands'!F$134 -> 0 | G50: ='2.5 Newlands'!G$134 -> 0 | H50: ='2.5 Newlands'!H$134 -> 0 | I50: ='2.5 Newlands'!I$134 -> 0
B51: =$B$36&" - "&$B$45 -> Tax Payable - Electric | F51: =SUM(F46:F50) -> 14871.98071 | G51: =SUM(G46:G50) -> 15055.73053 | H51: =SUM(H46:H50) -> 17208.34191 | I51: =SUM(I46:I50) -> 11658.59017
B53: TOTAL TAX PAYABLE - CQCR | F53: =SUM(F43,F51) -> 73713.44764 | G53: =SUM(G43,G51) -> 76599.96038 | H53: =SUM(H43,H51) -> 92215.98255 | I53: =SUM(I43,I51) -> 100338.5219
B55: Interest
B56: Non-Electric
B57: BLACKWATER | F57: =SUM('2.1 Blackwater'!F$70,'2.1 Blackwater'!F$75) -> 53522.10349 | G57: =SUM('2.1 Blackwater'!G$70,'2.1 Blackwater'!G$75) -> 79718.97283 | H57: =SUM('2.1 Blackwater'!H$70,'2.1 Blackwater'!H$75) -> 81356.17488 | I57: =SUM('2.1 Blackwater'!I$70,'2.1 Blackwater'!I$75) -> 81000.44313
B58: GAPE | F58: =SUM('2.2 GAPE'!F$70,'2.2 GAPE'!F$75) -> 40194.53892 | G58: =SUM('2.2 GAPE'!G$70,'2.2 GAPE'!G$75) -> 39573.9034 | H58: =SUM('2.2 GAPE'!H$70,'2.2 GAPE'!H$75) -> 38870.30025 | I58: =SUM('2.2 GAPE'!I$70,'2.2 GAPE'!I$75) -> 38106.78326
B59: GOONYELLA | F59: =SUM('2.3 Goonyella'!F$70,'2.3 Goonyella'!F$75) -> 56680.7781 | G59: =SUM('2.3 Goonyella'!G$70,'2.3 Goonyella'!G$75) -> 57136.32735 | H59: =SUM('2.3 Goonyella'!H$70,'2.3 Goonyella'!H$75) -> 57828.92589 | I59: =SUM('2.3 Goonyella'!I$70,'2.3 Goonyella'!I$75) -> 57733.53885
B60: MOURA | F60: =SUM('2.4 Moura'!F$70,'2.4 Moura'!F$75) -> 9476.754993 | G60: =SUM('2.4 Moura'!G$70,'2.4 Moura'!G$75) -> 11506.16832 | H60: =SUM('2.4 Moura'!H$70,'2.4 Moura'!H$75) -> 11742.22146 | I60: =SUM('2.4 Moura'!I$70,'2.4 Moura'!I$75) -> 11759.82178
B61: NEWLANDS | F61: =SUM('2.5 Newlands'!F$70,'2.5 Newlands'!F$75) -> 7689.675721 | G61: =SUM('2.5 Newlands'!G$70,'2.5 Newlands'!G$75) -> 9449.25388 | H61: =SUM('2.5 Newlands'!H$70,'2.5 Newlands'!H$75) -> 9536.358267 | I61: =SUM('2.5 Newlands'!I$70,'2.5 Newlands'!I$75) -> 9507.179146
B62: =$B$55&" - "&$B$56 -> Interest - Non-Electric | F62: =SUM(F57:F61) -> 167563.8512 | G62: =SUM(G57:G61) -> 197384.6258 | H62: 199333.9808 | I62: 198107.7662
B64: Electric
B65: BLACKWATER | F65: =SUM('2.1 Blackwater'!F$119,'2.1 Blackwater'!F$124) -> 10487.67447 | G65: =SUM('2.1 Blackwater'!G$119,'2.1 Blackwater'!G$124) -> 20810.64912 | H65: =SUM('2.1 Blackwater'!H$119,'2.1 Blackwater'!H$124) -> 21245.63695 | I65: =SUM('2.1 Blackwater'!I$119,'2.1 Blackwater'!I$124) -> 21231.45086
B66: GAPE | F66: =SUM('2.2 GAPE'!F$119,'2.2 GAPE'!F$124) -> 139.1622707 | G66: =SUM('2.2 GAPE'!G$119,'2.2 GAPE'!G$124) -> 140.0637983 | H66: =SUM('2.2 GAPE'!H$119,'2.2 GAPE'!H$124) -> 137.7170988 | I66: =SUM('2.2 GAPE'!I$119,'2.2 GAPE'!I$124) -> 135.1655245
B67: GOONYELLA | F67: =SUM('2.3 Goonyella'!F$119,'2.3 Goonyella'!F$124) -> 8385.430556 | G67: =SUM('2.3 Goonyella'!G$119,'2.3 Goonyella'!G$124) -> 9925.111027 | H67: =SUM('2.3 Goonyella'!H$119,'2.3 Goonyella'!H$124) -> 10566.49847 | I67: =SUM('2.3 Goonyella'!I$119,'2.3 Goonyella'!I$124) -> 10710.43387
B68: MOURA | F68: =SUM('2.4 Moura'!F$119,'2.4 Moura'!F$124) -> 0 | G68: =SUM('2.4 Moura'!G$119,'2.4 Moura'!G$124) -> 0 | H68: =SUM('2.4 Moura'!H$119,'2.4 Moura'!H$124) -> 0 | I68: =SUM('2.4 Moura'!I$119,'2.4 Moura'!I$124) -> 0
B69: NEWLANDS | F69: =SUM('2.5 Newlands'!F$119,'2.5 Newlands'!F$124) -> 0 | G69: =SUM('2.5 Newlands'!G$119,'2.5 Newlands'!G$124) -> 0 | H69: =SUM('2.5 Newlands'!H$119,'2.5 Newlands'!H$124) -> 0 | I69: =SUM('2.5 Newlands'!I$119,'2.5 Newlands'!I$124) -> 0
B70: =$B$55&" - "&$B$64 -> Interest - Electric | F70: =SUM(F65:F69) -> 19012.2673 | G70: =SUM(G65:G69) -> 30875.82395 | H70: 31949.85252 | I70: 32077.05026
B72: TOTAL INTEREST - CQCR | F72: =SUM(F62,F70) -> 186576.1185 | G72: =SUM(G62,G70) -> 228260.4497 | H72: 231283.8333 | I72: 230184.8164
B74: Operating and Maintenance Costs
B75: Non-Electric
B76: BLACKWATER | F76: ='2.1 Blackwater'!F$83 -> 133095.4588 | G76: ='2.1 Blackwater'!G$83 -> 148329.6279 | H76: ='2.1 Blackwater'!H$83 -> 165643.0132 | I76: ='2.1 Blackwater'!I$83 -> 171479.4508
B77: GAPE | F77: ='2.2 GAPE'!F$83 -> 30912.06289 | G77: ='2.2 GAPE'!G$83 -> 36284.14606 | H77: ='2.2 GAPE'!H$83 -> 38755.21695 | I77: ='2.2 GAPE'!I$83 -> 40650.92592
B78: GOONYELLA | F78: ='2.3 Goonyella'!F$83 -> 156069.5072 | G78: ='2.3 Goonyella'!G$83 -> 168149.4277 | H78: ='2.3 Goonyella'!H$83 -> 175866.1345 | I78: ='2.3 Goonyella'!I$83 -> 186153.266
B79: MOURA | F79: ='2.4 Moura'!F$83 -> 21687.84598 | G79: ='2.4 Moura'!G$83 -> 23147.77528 | H79: ='2.4 Moura'!H$83 -> 21487.98918 | I79: ='2.4 Moura'!I$83 -> 23038.39701
B80: NEWLANDS | F80: ='2.5 Newlands'!F$83 -> 18026.3447 | G80: ='2.5 Newlands'!G$83 -> 18542.51133 | H80: ='2.5 Newlands'!H$83 -> 19168.93967 | I80: ='2.5 Newlands'!I$83 -> 20591.14454
B81: =$B$74&" - "&$B$75 -> Operating and Maintenance Costs - Non-Electric | F81: =SUM(F76:F80) -> 359791.2196 | G81: =SUM(G76:G80) -> 394453.4883 | H81: =SUM(H76:H80) -> 420921.2936 | I81: =SUM(I76:I80) -> 441913.1843
B83: Electric
B84: BLACKWATER | F84: ='2.1 Blackwater'!F$132 -> 41563.59486 | G84: ='2.1 Blackwater'!G$132 -> 42900.79425 | H84: ='2.1 Blackwater'!H$132 -> 44877.43367 | I84: ='2.1 Blackwater'!I$132 -> 46019.77981
B85: GAPE | F85: ='2.2 GAPE'!F$132 -> 0 | G85: ='2.2 GAPE'!G$132 -> 0 | H85: ='2.2 GAPE'!H$132 -> 0 | I85: ='2.2 GAPE'!I$132 -> 0
B86: GOONYELLA | F86: ='2.3 Goonyella'!F$132 -> 37011.47106 | G86: ='2.3 Goonyella'!G$132 -> 42243.2982 | H86: ='2.3 Goonyella'!H$132 -> 47495.73761 | I86: ='2.3 Goonyella'!I$132 -> 48493.69925
B87: MOURA | F87: ='2.4 Moura'!F$132 -> 0 | G87: ='2.4 Moura'!G$132 -> 0 | H87: ='2.4 Moura'!H$132 -> 0 | I87: ='2.4 Moura'!I$132 -> 0
B88: NEWLANDS | F88: ='2.5 Newlands'!F$132 -> 0 | G88: ='2.5 Newlands'!G$132 -> 0 | H88: ='2.5 Newlands'!H$132 -> 0 | I88: ='2.5 Newlands'!I$132 -> 0
B89: =$B$74&" - "&$B$83 -> Operating and Maintenance Costs - Electric | F89: =SUM(F84:F88) -> 78575.06592 | G89: =SUM(G84:G88) -> 85144.09244 | H89: =SUM(H84:H88) -> 92373.17128 | I89: =SUM(I84:I88) -> 94513.47906
B91: TOTAL OPEX - CQCR | F91: =SUM(F81,F89) -> 438366.2855 | G91: =SUM(G81,G89) -> 479597.5807 | H91: =SUM(H81,H89) -> 513294.4649 | I91: =SUM(I81,I89) -> 536426.6633
B93: Return on Capital
B94: Non-Electric
B95: BLACKWATER | F95: ='2.1 Blackwater'!F$71+'2.1 Blackwater'!F$76 -> 121322.9559 | G95: ='2.1 Blackwater'!G$71+'2.1 Blackwater'!G$76 -> 180705.5552 | H95: ='2.1 Blackwater'!H$71+'2.1 Blackwater'!H$76 -> 184416.7358 | I95: ='2.1 Blackwater'!I$71+'2.1 Blackwater'!I$76 -> 183610.3694
B96: GAPE | F96: ='2.2 GAPE'!F$71+'2.2 GAPE'!F$76 -> 91112.26869 | G96: ='2.2 GAPE'!G$71+'2.2 GAPE'!G$76 -> 89705.4231 | H96: ='2.2 GAPE'!H$71+'2.2 GAPE'!H$76 -> 88110.50795 | I96: ='2.2 GAPE'!I$71+'2.2 GAPE'!I$76 -> 86379.78116
B97: GOONYELLA | F97: ='2.3 Goonyella'!F$71+'2.3 Goonyella'!F$76 -> 128482.9836 | G97: ='2.3 Goonyella'!G$71+'2.3 Goonyella'!G$76 -> 129515.6145 | H97: ='2.3 Goonyella'!H$71+'2.3 Goonyella'!H$76 -> 131085.5847 | I97: ='2.3 Goonyella'!I$71+'2.3 Goonyella'!I$76 -> 130869.363
B98: MOURA | F98: ='2.4 Moura'!F$71+'2.4 Moura'!F$76 -> 21481.74032 | G98: ='2.4 Moura'!G$71+'2.4 Moura'!G$76 -> 26081.97849 | H98: ='2.4 Moura'!H$71+'2.4 Moura'!H$76 -> 26617.05957 | I98: ='2.4 Moura'!I$71+'2.4 Moura'!I$76 -> 26656.95567
B99: NEWLANDS | F99: ='2.5 Newlands'!F$71+'2.5 Newlands'!F$76 -> 17430.82069 | G99: ='2.5 Newlands'!G$71+'2.5 Newlands'!G$76 -> 21419.40128 | H99: ='2.5 Newlands'!H$71+'2.5 Newlands'!H$76 -> 21616.84796 | I99: ='2.5 Newlands'!I$71+'2.5 Newlands'!I$76 -> 21550.70525
B100: =$B$93&" - "&$B$37 -> Return on Capital - Non-Electric | F100: =SUM(F95:F99) -> 379830.7692 | G100: =SUM(G95:G99) -> 447427.9726 | H100: =SUM(H95:H99) -> 451846.736 | I100: =SUM(I95:I99) -> 449067.1745
B102: Electric
B103: BLACKWATER | F103: ='2.1 Blackwater'!F$120+'2.1 Blackwater'!F$125 -> 23773.27469 | G103: ='2.1 Blackwater'!G$120+'2.1 Blackwater'!G$125 -> 47173.21073 | H103: ='2.1 Blackwater'!H$120+'2.1 Blackwater'!H$125 -> 48159.23342 | I103: ='2.1 Blackwater'!I$120+'2.1 Blackwater'!I$125 -> 48127.07665
B104: GAPE | F104: ='2.2 GAPE'!F$120+'2.2 GAPE'!F$125 -> 315.4505696 | G104: ='2.2 GAPE'!G$120+'2.2 GAPE'!G$125 -> 317.4941365 | H104: ='2.2 GAPE'!H$120+'2.2 GAPE'!H$125 -> 312.1746797 | I104: ='2.2 GAPE'!I$120+'2.2 GAPE'!I$125 -> 306.3908163
B105: GOONYELLA | F105: ='2.3 Goonyella'!F$120+'2.3 Goonyella'!F$125 -> 19007.94542 | G105: ='2.3 Goonyella'!G$120+'2.3 Goonyella'!G$125 -> 22498.06583 | H105: ='2.3 Goonyella'!H$120+'2.3 Goonyella'!H$125 -> 23951.95152 | I105: ='2.3 Goonyella'!I$120+'2.3 Goonyella'!I$125 -> 24278.22175
B106: MOURA | F106: ='2.4 Moura'!F$120+'2.4 Moura'!F$125 -> 0 | G106: ='2.4 Moura'!G$120+'2.4 Moura'!G$125 -> 0 | H106: ='2.4 Moura'!H$120+'2.4 Moura'!H$125 -> 0 | I106: ='2.4 Moura'!I$120+'2.4 Moura'!I$125 -> 0
B107: NEWLANDS | F107: ='2.5 Newlands'!F$120+'2.5 Newlands'!F$125 -> 0 | G107: ='2.5 Newlands'!G$120+'2.5 Newlands'!G$125 -> 0 | H107: ='2.5 Newlands'!H$120+'2.5 Newlands'!H$125 -> 0 | I107: ='2.5 Newlands'!I$120+'2.5 Newlands'!I$125 -> 0
B108: =$B$93&" - "&$B$45 -> Return on Capital - Electric | F108: =SUM(F103:F107) -> 43096.67068 | G108: =SUM(G103:G107) -> 69988.7707 | H108: =SUM(H103:H107) -> 72423.35962 | I108: =SUM(I103:I107) -> 72711.68922
B110: TOTAL RETURN ON CAPITAL - CQCR | F110: =SUM(F100,F108) -> 422927.4399 | G110: =SUM(G100,G108) -> 517416.7433 | H110: =SUM(H100,H108) -> 524270.0956 | I110: =SUM(I100,I108) -> 521778.8637
F114: UNSMOOTHED REVENUE: (excluding NPV Adjustments)
B115: UT4 REVENUE BUILDING BLOCKS - CQCR ($000) | F115: =F7 -> 2013/14 | G115: =G7 -> 2014/15 | H115: =H7 -> 2015/16 | I115: =I7 -> 2016/17
B116: Return on Capital | F116: =F110 -> 422927.4399 | G116: =G110 -> 517416.7433 | H116: =H110 -> 524270.0956 | I116: =I110 -> 521778.8637
B117: Plus Depreciation | F117: =F29 -> 269692.3325 | G117: =G29 -> 291121.016 | H117: =H29 -> 346456.9662 | I117: =I29 -> 348587.4078
B118: Less Inflation | F118: =-F28 -> -129318.7892 | G118: =-G28 -> -158210.8429 | H118: =-H28 -> -160306.3967 | I118: =-I28 -> -159544.6512
B119: Maintenance Costs | F119: ='2.1 Blackwater'!F30+'2.1 Blackwater'!F50+'2.2 GAPE'!F30+'2.2 GAPE'!F50+'2.3 Goonyella'!F30+'2.3 Goonyella'!F50+'2.4 Moura'!F30+'2.4 Moura'!F50+'2.5 Newlands'!F30+'2.5 Newlands'!F50 -> 232695.7223 | G119: ='2.1 Blackwater'!G30+'2.1 Blackwater'!G50+'2.2 GAPE'!G30+'2.2 GAPE'!G50+'2.3 Goonyella'!G30+'2.3 Goonyella'!G50+'2.4 Moura'!G30+'2.4 Moura'!G50+'2.5 Newlands'!G30+'2.5 Newlands'!G50 -> 261536.4855 | H119: ='2.1 Blackwater'!H30+'2.1 Blackwater'!H50+'2.2 GAPE'!H30+'2.2 GAPE'!H50+'2.3 Goonyella'!H30+'2.3 Goonyella'!H50+'2.4 Moura'!H30+'2.4 Moura'!H50+'2.5 Newlands'!H30+'2.5 Newlands'!H50 -> 279006.8295 | I119: ='2.1 Blackwater'!I30+'2.1 Blackwater'!I50+'2.2 GAPE'!I30+'2.2 GAPE'!I50+'2.3 Goonyella'!I30+'2.3 Goonyella'!I50+'2.4 Moura'!I30+'2.4 Moura'!I50+'2.5 Newlands'!I30+'2.5 Newlands'!I50 -> 294793.0386
B120: Operating Costs | F120: ='2.1 Blackwater'!F31+'2.1 Blackwater'!F51+'2.2 GAPE'!F31+'2.2 GAPE'!F51+'2.3 Goonyella'!F31+'2.3 Goonyella'!F51+'2.4 Moura'!F31+'2.4 Moura'!F51+'2.5 Newlands'!F31+'2.5 Newlands'!F51 -> 205670.5632 | G120: ='2.1 Blackwater'!G31+'2.1 Blackwater'!G51+'2.2 GAPE'!G31+'2.2 GAPE'!G51+'2.3 Goonyella'!G31+'2.3 Goonyella'!G51+'2.4 Moura'!G31+'2.4 Moura'!G51+'2.5 Newlands'!G31+'2.5 Newlands'!G51 -> 218061.0952 | H120: ='2.1 Blackwater'!H31+'2.1 Blackwater'!H51+'2.2 GAPE'!H31+'2.2 GAPE'!H51+'2.3 Goonyella'!H31+'2.3 Goonyella'!H51+'2.4 Moura'!H31+'2.4 Moura'!H51+'2.5 Newlands'!H31+'2.5 Newlands'!H51 -> 234287.6353 | I120: ='2.1 Blackwater'!I31+'2.1 Blackwater'!I51+'2.2 GAPE'!I31+'2.2 GAPE'!I51+'2.3 Goonyella'!I31+'2.3 Goonyella'!I51+'2.4 Moura'!I31+'2.4 Moura'!I51+'2.5 Newlands'!I31+'2.5 Newlands'!I51 -> 241633.6247
B121: Tax | F121: =F53 -> 73713.44764 | G121: =G53 -> 76599.96038 | H121: =H53 -> 92215.98255 | I121: =I53 -> 100338.5219
B122: Less Value of Imputation Credits | F122: =SUM('2.1 Blackwater'!F86,'2.2 GAPE'!F86,'2.3 Goonyella'!F86,'2.4 Moura'!F86,'2.5 Newlands'!F86)+SUM('2.1 Blackwater'!F135,'2.2 GAPE'!F135,'2.3 Goonyella'!F135,'2.4 Moura'!F135,'2.5 Newlands'!F135) -> -18428.36191 | G122: =SUM('2.1 Blackwater'!G86,'2.2 GAPE'!G86,'2.3 Goonyella'!G86,'2.4 Moura'!G86,'2.5 Newlands'!G86)+SUM('2.1 Blackwater'!G135,'2.2 GAPE'!G135,'2.3 Goonyella'!G135,'2.4 Moura'!G135,'2.5 Newlands'!G135) -> -19149.99009 | H122: =SUM('2.1 Blackwater'!H86,'2.2 GAPE'!H86,'2.3 Goonyella'!H86,'2.4 Moura'!H86,'2.5 Newlands'!H86)+SUM('2.1 Blackwater'!H135,'2.2 GAPE'!H135,'2.3 Goonyella'!H135,'2.4 Moura'!H135,'2.5 Newlands'!H135) -> -23053.99564 | I122: =SUM('2.1 Blackwater'!I86,'2.2 GAPE'!I86,'2.3 Goonyella'!I86,'2.4 Moura'!I86,'2.5 Newlands'!I86)+SUM('2.1 Blackwater'!I135,'2.2 GAPE'!I135,'2.3 Goonyella'!I135,'2.4 Moura'!I135,'2.5 Newlands'!I135) -> -25084.63048
B123: Unsmoothed Allowable Revenue ($000) | F123: =SUM(F116:F122) -> 1056952.354 | G123: =SUM(G116:G122) -> 1187374.467 | H123: 1292877.117 | I123: 1322502.175
B125: Check | F125: =F123-SUM('3.1 Revenue Smoothing'!F21,'3.1 Revenue Smoothing'!F45) -> 0 | G125: =G123-SUM('3.1 Revenue Smoothing'!G21,'3.1 Revenue Smoothing'!G45) -> 0 | H125: =H123-SUM('3.1 Revenue Smoothing'!H21,'3.1 Revenue Smoothing'!H45) -> 0 | I125: =I123-SUM('3.1 Revenue Smoothing'!I21,'3.1 Revenue Smoothing'!I45) -> 0
F127: SMOOTHED REVENUE: (including NPV Adjustments)
B128: UT4 REVENUE BUILDING BLOCKS - CQCR ($000) | F128: =F7 -> 2013/14 | G128: =G7 -> 2014/15 | H128: =H7 -> 2015/16 | I128: =I7 -> 2016/17
B129: Return on Capital | F129: =(F116/F$123)*F$136 -> 406572.4493 | G129: 489964.743 | H129: 509489.7712 | I129: 533356.4102 | L129: =F$128 -> 2013/14 | M129: =G$128 -> 2014/15 | N129: =H$128 -> 2015/16 | O129: =I$128 -> 2016/17
B130: Plus Depreciation | F130: 259263.0835 | G130: 275675.3345 | H130: 336689.5841 | I130: 356322.077 | K130: Return on Capital | L130: =F129/'3.1 Revenue Smoothing'!$C$10 -> 406.5724493 | M130: =G129/'3.1 Revenue Smoothing'!$C$10 -> 489.964743 | N130: =H129/'3.1 Revenue Smoothing'!$C$10 -> 509.4897712 | O130: =I129/'3.1 Revenue Smoothing'!$C$10 -> 533.3564102
B131: Less Inflation | F131: -124317.9134 | G131: -149816.8275 | H131: -155787.0076 | I131: -163084.7249 | K131: Net Depreciation | L131: =SUM(F130:F131)/'3.1 Revenue Smoothing'!$C$10 -> 134.9451701 | M131: =SUM(G130:G131)/'3.1 Revenue Smoothing'!$C$10 -> 125.858507 | N131: =SUM(H130:H131)/'3.1 Revenue Smoothing'!$C$10 -> 180.9025764 | O131: =SUM(I130:I131)/'3.1 Revenue Smoothing'!$C$10 -> 193.2373522
B132: Maintenance Costs | F132: 223697.1661 | G132: 247660.4373 | H132: 271141.0148 | I132: 301334.0857 | K132: Maintenance | L132: =F132/'3.1 Revenue Smoothing'!$C$10 -> 223.6971661 | M132: =G132/'3.1 Revenue Smoothing'!$C$10 -> 247.6604373 | N132: =H132/'3.1 Revenue Smoothing'!$C$10 -> 271.1410148 | O132: =I132/'3.1 Revenue Smoothing'!$C$10 -> 301.3340857
B133: Operating Costs | F133: 197717.0945 | G133: 206491.6721 | H133: 227682.5528 | I133: 246995.1384 | K133: Operating Costs | L133: =F133/'3.1 Revenue Smoothing'!$C$10 -> 197.7170945 | M133: =G133/'3.1 Revenue Smoothing'!$C$10 -> 206.4916721 | N133: =H133/'3.1 Revenue Smoothing'!$C$10 -> 227.6825528 | O133: =I133/'3.1 Revenue Smoothing'!$C$10 -> 246.9951384
B134: Tax | F134: 70862.88126 | G134: 72535.88212 | H134: 89616.21166 | I134: 102564.894 | K134: Net Tax | L134: =SUM(F134:F135)/'3.1 Revenue Smoothing'!$C$10 -> 53.14716094 | M134: =SUM(G134:G135)/'3.1 Revenue Smoothing'!$C$10 -> 54.40191159 | N134: =SUM(H134:H135)/'3.1 Revenue Smoothing'!$C$10 -> 67.21215874 | O134: =SUM(I134:I135)/'3.1 Revenue Smoothing'!$C$10 -> 76.9236705
B135: Less Value of Imputation Credits | F135: -17715.72031 | G135: -18133.97053 | H135: -22404.05291 | I135: -25641.2235
B136: Smoothed Allowable Revenue ($000) | F136: ='3.1 Revenue Smoothing'!F36+'3.1 Revenue Smoothing'!F60 -> 1016079.041 | G136: ='3.1 Revenue Smoothing'!G36+'3.1 Revenue Smoothing'!G60 -> 1124377.271 | H136: ='3.1 Revenue Smoothing'!H36+'3.1 Revenue Smoothing'!H60 -> 1256428.074 | I136: ='3.1 Revenue Smoothing'!I36+'3.1 Revenue Smoothing'!I60 -> 1351846.657
B138: Check | F138: =F136-SUM('3.1 Revenue Smoothing'!F36,'3.1 Revenue Smoothing'!F60) -> 0 | G138: =G136-SUM('3.1 Revenue Smoothing'!G36,'3.1 Revenue Smoothing'!G60) -> 0 | H138: =H136-SUM('3.1 Revenue Smoothing'!H36,'3.1 Revenue Smoothing'!H60) -> 0 | I138: =I136-SUM('3.1 Revenue Smoothing'!I36,'3.1 Revenue Smoothing'!I60) -> 0

Sheet 3.3 Tariffs
A1: ='1.1 General'!$A$1 -> AURIZON NETWORK - UT4 "COAL SYSTEM AGGREGATE" MODEL
A3: =MID(CELL("FILENAME",A1:A1),(FIND("]",CELL("FILENAME",A1:A1))+1),(LEN(CELL("FILENAME",A1:A1))-FIND("]",CELL("FILENAME",A1:A1))+1)) -> 3.3 Tariffs
C5: Period Start | F5: =MODEL_START -> 2013-07-01 | G5: =F6+1 -> 2014-07-01 | H5: =G6+1 -> 2015-07-01 | I5: 2016-07-01
B6: BY FINANCIAL YEAR | C6: Period End | F6: =EOMONTH(F5,11) -> 2014-06-30 | G6: 2015-06-30 | H6: 2016-06-30 | I6: 2017-06-30
C7: Financial Year | F7: =YEAR(F$5)&"/"&RIGHT(YEAR(F$6),2) -> 2013/14 | G7: =YEAR(G$5)&"/"&RIGHT(YEAR(G$6),2) -> 2014/15 | H7: 2015/16 | I7: 2016/17
B9: SMOOTHED REVENUE ($) | F9: =F$7 -> 2013/14 | G9: =G$7 -> 2014/15 | H9: 2015/16 | I9: 2016/17
B10: Blackwater | F10: =SUM('3.1 Revenue Smoothing'!F31,'3.1 Revenue Smoothing'!F55)*'3.1 Revenue Smoothing'!$C$10 -> 367102686 | G10: =SUM('3.1 Revenue Smoothing'!G31,'3.1 Revenue Smoothing'!G55)*'3.1 Revenue Smoothing'!$C$10 -> 434995648 | H10: =SUM('3.1 Revenue Smoothing'!H31,'3.1 Revenue Smoothing'!H55)*'3.1 Revenue Smoothing'!$C$10 -> 539402645 | I10: =SUM('3.1 Revenue Smoothing'!I31,'3.1 Revenue Smoothing'!I55)*'3.1 Revenue Smoothing'!$C$10 -> 604652082
B11: GAPE | F11: =SUM('3.1 Revenue Smoothing'!F32,'3.1 Revenue Smoothing'!F56)*'3.1 Revenue Smoothing'!$C$10 -> 140159652 | G11: =SUM('3.1 Revenue Smoothing'!G32,'3.1 Revenue Smoothing'!G56)*'3.1 Revenue Smoothing'!$C$10 -> 144562341 | H11: =SUM('3.1 Revenue Smoothing'!H32,'3.1 Revenue Smoothing'!H56)*'3.1 Revenue Smoothing'!$C$10 -> 149151527 | I11: =SUM('3.1 Revenue Smoothing'!I32,'3.1 Revenue Smoothing'!I56)*'3.1 Revenue Smoothing'!$C$10 -> 153938819
B12: Goonyella | F12: =SUM('3.1 Revenue Smoothing'!F33,'3.1 Revenue Smoothing'!F57)*'3.1 Revenue Smoothing'!$C$10 -> 416013555 | G12: =SUM('3.1 Revenue Smoothing'!G33,'3.1 Revenue Smoothing'!G57)*'3.1 Revenue Smoothing'!$C$10 -> 434524762 | H12: =SUM('3.1 Revenue Smoothing'!H33,'3.1 Revenue Smoothing'!H57)*'3.1 Revenue Smoothing'!$C$10 -> 453891353 | I12: =SUM('3.1 Revenue Smoothing'!I33,'3.1 Revenue Smoothing'!I57)*'3.1 Revenue Smoothing'!$C$10 -> 474154225
B13: Moura | F13: =SUM('3.1 Revenue Smoothing'!F34,'3.1 Revenue Smoothing'!F58)*'3.1 Revenue Smoothing'!$C$10 -> 50268993 | G13: =SUM('3.1 Revenue Smoothing'!G34,'3.1 Revenue Smoothing'!G58)*'3.1 Revenue Smoothing'!$C$10 -> 59704603 | H13: =SUM('3.1 Revenue Smoothing'!H34,'3.1 Revenue Smoothing'!H58)*'3.1 Revenue Smoothing'!$C$10 -> 60010441 | I13: =SUM('3.1 Revenue Smoothing'!I34,'3.1 Revenue Smoothing'!I58)*'3.1 Revenue Smoothing'!$C$10 -> 61512761
B14: Newlands | F14: =SUM('3.1 Revenue Smoothing'!F35,'3.1 Revenue Smoothing'!F59)*'3.1 Revenue Smoothing'!$C$10 -> 42534155 | G14: =SUM('3.1 Revenue Smoothing'!G35,'3.1 Revenue Smoothing'!G59)*'3.1 Revenue Smoothing'!$C$10 -> 50589917 | H14: =SUM('3.1 Revenue Smoothing'!H35,'3.1 Revenue Smoothing'!H59)*'3.1 Revenue Smoothing'!$C$10 -> 53972108 | I14: =SUM('3.1 Revenue Smoothing'!I35,'3.1 Revenue Smoothing'!I59)*'3.1 Revenue Smoothing'!$C$10 -> 57588770
B15: TOTAL | F15: =SUM(F10:F14) -> 1016079041 | G15: =SUM(G10:G14) -> 1124377271 | H15: 1256428074 | I15: 1351846657
B17: NET TONNES | F17: =F$7 -> 2013/14 | G17: =G$7 -> 2014/15 | H17: 2015/16 | I17: 2016/17
B18: Blackwater | F18: ='3.4 Volumes'!F10 -> 53715685 | G18: ='3.4 Volumes'!G10 -> 60281022 | H18: ='3.4 Volumes'!H10 -> 66836386 | I18: ='3.4 Volumes'!I10 -> 72811524
B19: GAPE | F19: ='3.4 Volumes'!F14 -> 20610000 | G19: ='3.4 Volumes'!G14 -> 25387979 | H19: ='3.4 Volumes'!H14 -> 27105931 | I19: ='3.4 Volumes'!I14 -> 29042414
B20: Goonyella | F20: ='3.4 Volumes'!F11 -> 97981695 | G20: ='3.4 Volumes'!G11 -> 107043752 | H20: ='3.4 Volumes'!H11 -> 112600172 | I20: ='3.4 Volumes'!I11 -> 117505227
B21: Moura | F21: ='3.4 Volumes'!F12 -> 12534746 | G21: ='3.4 Volumes'!G12 -> 13607712 | H21: ='3.4 Volumes'!H12 -> 12963015 | I21: ='3.4 Volumes'!I12 -> 14079834
B22: Newlands | F22: ='3.4 Volumes'!F13 -> 14802749 | G22: ='3.4 Volumes'!G13 -> 15831664 | H22: ='3.4 Volumes'!H13 -> 16956732 | I22: ='3.4 Volumes'!I13 -> 18668976
B23: TOTAL | F23: =SUM(F18:F22) -> 199644875 | G23: =SUM(G18:G22) -> 222152129 | H23: 236462236 | I23: 252107975
B25: AVERAGE SMOOTHED REVENUE PER NET TONNE | F25: =F$7 -> 2013/14 | G25: =G$7 -> 2014/15 | H25: 2015/16 | I25: 2016/17
B26: Blackwater | F26: =F10/F18 -> 6.834180482 | G26: =G10/G18 -> 7.216129282 | H26: 8.070493892 | I26: 8.304345916
B27: GAPE | F27: =F11/F19 -> 6.800565357 | G27: 5.694125594 | H27: 5.502542119 | I27: 5.300482908
B28: Goonyella | F28: 4.245829336 | G28: 4.05931924 | H28: 4.03100053 | I28: 4.035175601
B29: Moura | F29: 4.010371889 | G29: 4.387556336 | H29: 4.629358294 | I29: 4.368855556
B30: Newlands | F30: 2.873395678 | G30: 3.195489558 | H30: 3.182931003 | I30: 3.084731053
B31: TOTAL (Nominal) | F31: 5.089432128 | G31: 5.06129415 | H31: 5.313440722 | I31: 5.362173319
B33: Proposed UT4 Reference Tariffs
B35: Blackwater | F35: 2013/14 | G35: 2014/15 | H35: 2015/16 | I35: 2016/17
B36: AT1 | C36: $ per '000 GTK | F36: 0.9391 | G36: 0.9626 | H36: 0.9866 | I36: 1.0113
B37: AT2 | C37: $ per Train Path | F37: 5030.05 | G37: 5155.8 | H37: 5284.7 | I37: 5416.82
B38: AT3 | C38: $ per '000 NTK | F38: 5.84 | G38: 5.81 | H38: 6.49 | I38: 6.58
B39: AT4 | C39: $ per Net Tonne | F39: 1.96 | G39: 1.97 | H39: 2.18 | I39: 2.2
B40: AT5 | C40: $ per '000 eGTK | F40: 2.89 | G40: 2.97 | H40: 3.04 | I40: 3.12
B42: GAPE | F42: 2013/14 | G42: 2014/15 | H42: 2015/16 | I42: 2016/17
B43: AT1 | C43: $ per '000 GTK | F43: 1.4641 | G43: 1.5007 | H43: 1.5382 | I43: 1.5767
B44: AT2 | C44: $ per Train Path | F44: 6975.84 | G44: 7150.24 | H44: 7328.99 | I44: 7512.22
B45: AT3 | C45: $ per '000 NTK | F45: 1.61 | G45: 1.42 | H45: 1.36 | I45: 1.35
B46: AT4 | C46: $ per Net Tonne | F46: 3.48 | G46: 2.41 | H46: 2.14 | I46: 1.86
B47: AT5 | C47: $ per '000 eGTK | F47: N/A | G47: N/A | H47: N/A | I47: N/A
B49: Goonyella | F49: 2013/14 | G49: 2014/15 | H49: 2015/16 | I49: 2016/17
B50: AT1 | C50: $ per '000 GTK | F50: 0.6502 | G50: 0.6665 | H50: 0.6831 | I50: 0.7002
B51: AT2 | C51: $ per Train Path | F51: 2487.76 | G51: 2549.96 | H51: 2613.7 | I51: 2679.05
B52: AT3 | C52: $ per '000 NTK | F52: 6.35 | G52: 5.95 | H52: 5.83 | I52: 5.77
B53: AT4 | C53: $ per Net Tonne | F53: 1.33 | G53: 1.25 | H53: 1.22 | I53: 1.21
B54: AT5 | C54: $ per '000 eGTK | F54: 2.35 | G54: 2.28 | H54: 2.3 | I54: 2.33
B56: Moura | F56: 2013/14 | G56: 2014/15 | H56: 2015/16 | I56: 2016/17
B57: AT1 | C57: $ per '000 GTK | F57: 1.7458 | G57: 1.7894 | H57: 1.8342 | I57: 1.88
B58: AT2 | C58: $ per Train Path | F58: 612.39 | G58: 627.7 | H58: 643.39 | I58: 659.47
B59: AT3 | C59: $ per '000 NTK | F59: 10.13 | G59: 10.85 | H59: 11.51 | I59: 10.64
B60: AT4 | C60: $ per Net Tonne | F60: 1.67 | G60: 1.85 | H60: 1.96 | I60: 1.81
B61: AT5 | C61: $ per '000 eGTK | F61: N/A | G61: N/A | H61: N/A | I61: N/A
B63: Newlands | F63: 2013/14 | G63: 2014/15 | H63: 2015/16 | I63: 2016/17
B64: AT1 | C64: $ per '000 GTK | F64: 1.818 | G64: 1.8635 | H64: 1.91 | I64: 1.9578
B65: AT2 | C65: $ per Train Path | F65: 6975.84 | G65: 7150.24 | H65: 7328.99 | I65: 7512.22
B66: AT3 | C66: $ per '000 NTK | F66: 3.2 | G66: 5.25 | H66: 4.83 | I66: 3.63
B67: AT4 | C67: $ per Net Tonne | F67: 0 | G67: 0 | H67: 0 | I67: 0
B68: AT5 | C68: $ per '000 eGTK | F68: N/A | G68: N/A | H68: N/A | I68: N/A
E72: Real Price Path | F72: =F31/'1.1 General'!F13 -> 4.965299637 | G72: =G31/'1.1 General'!G13 -> 4.817412636 | H72: =H31/'1.1 General'!H13 -> 4.934057924 | I72: =I31/'1.1 General'!I13 -> 4.857864376

Sheet 3.4 Volumes
A1: ='1.1 General'!$A$1 -> AURIZON NETWORK - UT4 "COAL SYSTEM AGGREGATE" MODEL
A3: =MID(CELL("FILENAME",A1:A1),(FIND("]",CELL("FILENAME",A1:A1))+1),(LEN(CELL("FILENAME",A1:A1))-FIND("]",CELL("FILENAME",A1:A1))+1)) -> 3.4 Volumes
C5: Period Start | F5: =MODEL_START -> 2013-07-01 | G5: =F6+1 -> 2014-07-01 | H5: =G6+1 -> 2015-07-01 | I5: 2016-07-01
B6: BY FINANCIAL YEAR | C6: Period End | F6: =EOMONTH(F5,11) -> 2014-06-30 | G6: 2015-06-30 | H6: 2016-06-30 | I6: 2017-06-30
C7: Financial Year | F7: =YEAR(F$5)&"/"&RIGHT(YEAR(F$6),2) -> 2013/14 | G7: =YEAR(G$5)&"/"&RIGHT(YEAR(G$6),2) -> 2014/15 | H7: 2015/16 | I7: 2016/17
B9: NET TONNES | F9: =F$7 -> 2013/14 | G9: =G$7 -> 2014/15 | H9: 2015/16 | I9: 2016/17
B10: Blackwater | F10: 53715685 | G10: 60281022 | H10: 66836386 | I10: 72811524
B11: Goonyella | F11: 97981695 | G11: 107043752 | H11: 112600172 | I11: 117505227
B12: Moura | F12: 12534746 | G12: 13607712 | H12: 12963015 | I12: 14079834
B13: Newlands | F13: 14802749 | G13: 15831664 | H13: 16956732 | I13: 18668976
B14: GAPE | F14: 20610000 | G14: 25387979 | H14: 27105931 | I14: 29042414
B15: TOTAL | F15: =SUM(F10:F14) -> 199644875 | G15: =SUM(G10:G14) -> 222152129 | H15: 236462236 | I15: 252107975
B17: GROSS TONNE KILOMETRES (GTK '000) | F17: =F$7 -> 2013/14 | G17: =G$7 -> 2014/15 | H17: 2015/16 | I17: 2016/17
B18: Blackwater | F18: 30117969 | G18: 33985924 | H18: 37876747 | I18: 41168179
B19: Goonyella | F19: 32649600 | G19: 35622580 | H19: 37444831 | I19: 39077779
B20: Moura | F20: 3438649 | G20: 3832505 | H20: 3653129 | I20: 3965176
B21: Newlands | F21: 3255724 | G21: 3413741 | H21: 3596255 | I21: 3950946
B22: GAPE | F22: 11051057 | G22: 13317088 | H22: 14432770 | I22: 15512057
B23: TOTAL | F23: =SUM(F18:F22) -> 80512999 | G23: =SUM(G18:G22) -> 90171838 | H23: 97003732 | I23: 103674137
B25: NET TONNE KILOMETRES (NTK '000) | F25: =F$7 -> 2013/14 | G25: =G$7 -> 2014/15 | H25: 2015/16 | I25: 2016/17
B26: Blackwater | F26: 18744387 | G26: 21168783 | H26: 23597744 | I26: 25713180
B27: Goonyella | F27: 20823411 | G27: 22725075 | H27: 23884802 | I27: 24920016
B28: Moura | F28: 2063689 | G28: 2314473 | H28: 2205539 | I28: 2395556
B29: Newlands | F29: 2041177 | G29: 2139084 | H29: 2254247 | I29: 2477041
B30: GAPE | F30: 6927806 | G30: 8348494 | H30: 9048391 | I30: 9724946
B31: TOTAL | F31: =SUM(F26:F30) -> 50600470 | G31: =SUM(G26:G30) -> 56695909 | H31: 60990723 | I31: 65230739
B33: ELECTRIC GROSS TONNE KILOMETRES (eGTK '000) | F33: =F$7 -> 2013/14 | G33: =G$7 -> 2014/15 | H33: 2015/16 | I33: 2016/17
B34: Blackwater | F34: 20821711 | G34: 26607072 | H34: 33108879 | I34: 36030048
B35: Goonyella | F35: 32638320 | G35: 35622580 | H35: 37433551 | I35: 39063680
B36: Moura | F36: -- | G36: -- | H36: -- | I36: --
B37: Newlands | F37: -- | G37: -- | H37: -- | I37: --
B38: GAPE | F38: -- | G38: -- | H38: -- | I38: --
B39: TOTAL | F39: =SUM(F34:F38) -> 53460031 | G39: =SUM(G34:G38) -> 62229652 | H39: 70542430 | I39: 75093728

Sheet 4. Charts >

Sheet 5. Tools >

Sheet Pricing
A1: ='1.1 General'!$A$1 -> AURIZON NETWORK - UT4 "COAL SYSTEM AGGREGATE" MODEL
N2: Legend: | R2: Blackwater | S2: Goonyella | T2: Moura | U2: Newlands | V2: GAPE
A3: PRICING TOOL (Indicative price for a Single Return Train Service) | N3: INPUTS | Q3: AT1 | R3: ='3.3 Tariffs'!F36 -> 0.9391 | S3: ='3.3 Tariffs'!F50 -> 0.6502 | T3: ='3.3 Tariffs'!F57 -> 1.7458 | U3: ='3.3 Tariffs'!F64 -> 1.818 | V3: ='3.3 Tariffs'!F43 -> 1.4641
A4: Element | D4: Input/Calculation | E4: Selection | N4: CALCULATION | Q4: AT2 | R4: ='3.3 Tariffs'!F37 -> 5030.05 | S4: ='3.3 Tariffs'!F51 -> 2487.76 | T4: ='3.3 Tariffs'!F58 -> 612.39 | U4: ='3.3 Tariffs'!F65 -> 6975.84 | V4: ='3.3 Tariffs'!F44 -> 6975.84
N5: LINKED CELL | Q5: AT3 | R5: ='3.3 Tariffs'!F38 -> 5.84 | S5: ='3.3 Tariffs'!F52 -> 6.35 | T5: ='3.3 Tariffs'!F59 -> 10.13 | U5: ='3.3 Tariffs'!F66 -> 3.2 | V5: ='3.3 Tariffs'!F45 -> 1.61
A6: SELECT SYSTEM -----------------------------> | D6: Blackwater | N6: SELECTION | Q6: AT4 | R6: ='3.3 Tariffs'!F39 -> 1.96 | S6: ='3.3 Tariffs'!F53 -> 1.33 | T6: ='3.3 Tariffs'!F60 -> 1.67 | U6: ='3.3 Tariffs'!F67 -> 0 | V6: ='3.3 Tariffs'!F46 -> 3.48
A8: ENTER PAYLOAD (TONNAGE) ----------> | D8: 10000 | E8: A
A10: ENTER DISTANCE (Mine to Port) -----> | D10: 172 | E10: B
A12: TARE WEIGHT (TONNAGE) --------------> | D12: 3000 | E12: C
A14: DISTANCE CONVERSIONS
A15: Net Tonnes (NT) | D15: =Payload -> 10000 | E15: A
A16: Gross Tonne Kilometres (GTK) | D16: =(((Payload+Tare)+Tare)*Distance)/1000 -> 2752 | E16: ((A+C) + C) x B
A17: Net Tonne Kilometres (NTK) | D17: =(Payload*Distance)/1000 -> 1720 | E17: A x B
A19: INDICATIVE COST
A20: Tariff | B20: Element | D20: Rate | E20: Cost
A21: AT1 | B21: $ per '000 GTK | D21: =HLOOKUP(System,$Q$2:$V$6,2,FALSE) -> 0.9391 | E21: =D16*D21 -> 2584.4032
A22: AT2 | B22: $ per Train Path | D22: =HLOOKUP(System,$Q$2:$V$6,3,FALSE) -> 5030.05 | E22: =D22*2 -> 10060.1
A23: AT3 | B23: $ per '000 NTK | D23: =HLOOKUP(System,$Q$2:$V$6,4,FALSE) -> 5.84 | E23: =D17*D23 -> 10044.8
A24: AT4 | B24: $ per Net Tonne | D24: =HLOOKUP(System,$Q$2:$V$6,5,FALSE) -> 1.96 | E24: =D15*D24 -> 19600
D26: TOTAL INDICATIVE COST | E26: =SUM(E21:E24) -> 42289.3032
D27: COST/NT | E27: =E26/Payload -> 4.22893032

Sheet A.1 Lists
A1: ='1.1 General'!$A$1 -> AURIZON NETWORK - UT4 "COAL SYSTEM AGGREGATE" MODEL
A3: =MID(CELL("FILENAME",A1:A1),(FIND("]",CELL("FILENAME",A1:A1))+1),(LEN(CELL("FILENAME",A1:A1))-FIND("]",CELL("FILENAME",A1:A1))+1)) -> A.1 Lists
C6: DATE | D6: FIN_YEAR_2 | E6: QUARTER | F6: LEAP YEAR? | H6: YEAR | I6: YEAR_2 | K6: YEAR | L6: CPI | N6: YESNO
C7: 00:00:00 | D7: 0000 | H7: 2000 | I7: 1999/00 | K7: =$I7 -> 1999/00 | L7: 0.01639344262 | N7: Yes
C8: 2008-07-01 | D8: 2008/09 | E8: 1 | F8: 365 | H8: 2001 | I8: 2000/01 | K8: =$I8 -> 2000/01 | L8: 0.02764976959 | N8: No
C9: 2008-07-02 | D9: 2008/09 | E9: 1 | F9: 365 | H9: 2002 | I9: 2001/02 | K9: 2001/02 | L9: 0.029
C10: 2008-07-03 | D10: 2008/09 | E10: 1 | F10: 365 | H10: 2003 | I10: 2002/03 | K10: 2002/03 | L10: 0.031
C11: 2008-07-04 | D11: 2008/09 | E11: 1 | F11: 365 | H11: 2004 | I11: 2003/04 | K11: 2003/04 | L11: 0.024
C12: 2008-07-05 | D12: 2008/09 | E12: 1 | F12: 365 | H12: 2005 | I12: 2004/05 | K12: 2004/05 | L12: 0.025
C13: 2008-07-06 | D13: 2008/09 | E13: 1 | F13: 365 | H13: 2006 | I13: 2005/06 | K13: 2005/06 | L13: 0.04133333333
C14: 2008-07-07 | D14: 2008/09 | E14: 1 | F14: 365 | H14: 2007 | I14: 2006/07 | K14: 2006/07 | L14: 0.02560819462
C15: 2008-07-08 | D15: 2008/09 | E15: 1 | F15: 365 | H15: 2008 | I15: 2007/08 | K15: 2007/08 | L15: 0.05118601748
C16: 2008-07-09 | D16: 2008/09 | E16: 1 | F16: 365 | H16: 2009 | I16: 2008/09 | K16: 2008/09 | L16: 0.02019002375
C17: 2008-07-10 | D17: 2008/09 | E17: 1 | F17: 365 | H17: 2010 | I17: 2009/10 | K17: 2009/10 | L17: 0.03201396973
C18: 2008-07-11 | D18: 2008/09 | E18: 1 | F18: 365 | H18: 2011 | I18: 2010/11 | K18: 2010/11 | L18: 0.03835307389
C19: 2008-07-12 | D19: 2008/09 | E19: 1 | F19: 365 | H19: 2012 | I19: 2011/12 | K19: 2011/12 | L19: 0.009234111896
C20: 2008-07-13 | D20: 2008/09 | E20: 1 | F20: 365 | H20: 2013 | I20: 2012/13 | K20: 2012/13 | L20: 0.025
C21: 2008-07-14 | D21: 2008/09 | E21: 1 | F21: 365 | H21: 2014 | I21: 2013/14 | K21: 2013/14 | L21: 0.025
C22: 2008-07-15 | D22: 2008/09 | E22: 1 | F22: 365 | H22: 2015 | I22: 2014/15 | K22: 2014/15 | L22: 0.025
C23: 2008-07-16 | D23: 2008/09 | E23: 1 | F23: 365 | H23: 2016 | I23: 2015/16 | K23: 2015/16 | L23: 0.025
C24: 2008-07-17 | D24: 2008/09 | E24: 1 | F24: 365 | H24: 2017 | I24: 2016/17 | K24: 2016/17 | L24: 0.025
C25: 2008-07-18 | D25: 2008/09 | E25: 1 | F25: 365 | H25: 2018 | I25: 2017/18 | K25: 2017/18 | L25: 0.025
C26: 2008-07-19 | D26: 2008/09 | E26: 1 | F26: 365 | H26: 2019 | I26: 2018/19 | K26: 2018/19 | L26: 0.025
C27: 2008-07-20 | D27: 2008/09 | E27: 1 | F27: 365 | H27: 2020 | I27: 2019/20 | K27: 2019/20 | L27: 0.025
C28: 2008-07-21 | D28: 2008/09 | E28: 1 | F28: 365 | H28: 2021 | I28: 2020/21 | K28: 2020/21 | L28: 0.025
C29: 2008-07-22 | D29: 2008/09 | E29: 1 | F29: 365 | H29: 2022 | I29: 2021/22 | K29: 2021/22 | L29: 0.025
C30: 2008-07-23 | D30: 2008/09 | E30: 1 | F30: 365 | H30: 2023 | I30: 2022/23 | K30: 2022/23 | L30: 0.025
C31: 2008-07-24 | D31: 2008/09 | E31: 1 | F31: 365 | H31: 2024 | I31: 2023/24 | K31: 2023/24 | L31: 0.025
C32: 2008-07-25 | D32: 2008/09 | E32: 1 | F32: 365 | H32: 2025 | I32: 2024/25 | K32: 2024/25 | L32: 0.025
C33: 2008-07-26 | D33: 2008/09 | E33: 1 | F33: 365 | H33: 2026 | I33: 2025/26 | K33: 2025/26 | L33: 0.025
C34: 2008-07-27 | D34: 2008/09 | E34: 1 | F34: 365 | H34: 2027 | I34: 2026/27 | K34: 2026/27 | L34: 0.025
C35: 2008-07-28 | D35: 2008/09 | E35: 1 | F35: 365 | H35: 2028 | I35: 2027/28 | K35: 2027/28 | L35: 0.025
C36: 2008-07-29 | D36: 2008/09 | E36: 1 | F36: 365 | H36: 2029 | I36: 2028/29 | K36: 2028/29 | L36: 0.025
C37: 2008-07-30 | D37: 2008/09 | E37: 1 | F37: 365 | H37: 2030 | I37: 2029/30 | K37: 2029/30 | L37: 0.025
C38: 2008-07-31 | D38: 2008/09 | E38: 1 | F38: 365 | H38: 2031 | I38: 2030/31 | K38: 2030/31 | L38: 0.025
C39: 2008-08-01 | D39: 2008/09 | E39: 1 | F39: 365 | H39: 2032 | I39: 2031/32 | K39: 2031/32 | L39: 0.025
C40: 2008-08-02 | D40: 2008/09 | E40: 1 | F40: 365 | H40: 2033 | I40: 2032/33 | K40: 2032/33 | L40: 0.025
C41: 2008-08-03 | D41: 2008/09 | E41: 1 | F41: 365 | H41: 2034 | I41: 2033/34 | K41: 2033/34 | L41: 0.025
C42: 2008-08-04 | D42: 2008/09 | E42: 1 | F42: 365 | H42: 2035 | I42: 2034/35 | K42: 2034/35 | L42: 0.025
C43: 2008-08-05 | D43: 2008/09 | E43: 1 | F43: 365 | H43: 2036 | I43: 2035/36 | K43: 2035/36 | L43: 0.025
C44: 2008-08-06 | D44: 2008/09 | E44: 1 | F44: 365 | H44: 2037 | I44: 2036/37 | K44: 2036/37 | L44: 0.025
C45: 2008-08-07 | D45: 2008/09 | E45: 1 | F45: 365 | H45: 2038 | I45: 2037/38 | K45: 2037/38 | L45: 0.025
C46: 2008-08-08 | D46: 2008/09 | E46: 1 | F46: 365 | H46: 2039 | I46: 2038/39 | K46: 2038/39 | L46: 0.025
C47: 2008-08-09 | D47: 2008/09 | E47: 1 | F47: 365 | H47: 2040 | I47: 2039/40 | K47: 2039/40 | L47: 0.025
C48: 2008-08-10 | D48: 2008/09 | E48: 1 | F48: 365 | H48: 2041 | I48: 2040/41 | K48: 2040/41 | L48: 0.025
C49: 2008-08-11 | D49: 2008/09 | E49: 1 | F49: 365 | H49: 2042 | I49: 2041/42 | K49: 2041/42 | L49: 0.025
C50: 2008-08-12 | D50: 2008/09 | E50: 1 | F50: 365 | H50: 2043 | I50: 2042/43 | K50: 2042/43 | L50: 0.025
C51: 2008-08-13 | D51: 2008/09 | E51: 1 | F51: 365 | H51: 2044 | I51: 2043/44 | K51: 2043/44 | L51: 0.025
C52: 2008-08-14 | D52: 2008/09 | E52: 1 | F52: 365 | H52: 2045 | I52: 2044/45 | K52: 2044/45 | L52: 0.025
C53: 2008-08-15 | D53: 2008/09 | E53: 1 | F53: 365 | H53: 2046 | I53: 2045/46 | K53: 2045/46 | L53: 0.025
C54: 2008-08-16 | D54: 2008/09 | E54: 1 | F54: 365 | H54: 2047 | I54: 2046/47 | K54: 2046/47 | L54: 0.025
C55: 2008-08-17 | D55: 2008/09 | E55: 1 | F55: 365 | H55: 2048 | I55: 2047/48 | K55: 2047/48 | L55: 0.025
C56: 2008-08-18 | D56: 2008/09 | E56: 1 | F56: 365 | H56: 2049 | I56: 2048/49 | K56: 2048/49 | L56: 0.025
C57: 2008-08-19 | D57: 2008/09 | E57: 1 | F57: 365 | H57: 2050 | I57: 2049/50 | K57: 2049/50 | L57: 0.025
C58: 2008-08-20 | D58: 2008/09 | E58: 1 | F58: 365 | H58: 2051 | I58: 2050/51 | K58: 2050/51 | L58: 0.025
C59: 2008-08-21 | D59: 2008/09 | E59: 1 | F59: 365 | H59: 2052 | I59: 2051/52 | K59: 2051/52 | L59: 0.025
C60: 2008-08-22 | D60: 2008/09 | E60: 1 | F60: 365 | H60: 2053 | I60: 2052/53 | K60: 2052/53 | L60: 0.025
C61: 2008-08-23 | D61: 2008/09 | E61: 1 | F61: 365 | H61: 2054 | I61: 2053/54 | K61: 2053/54 | L61: 0.025
C62: 2008-08-24 | D62: 2008/09 | E62: 1 | F62: 365 | H62: 2055 | I62: 2054/55 | K62: 2054/55 | L62: 0.025
C63: 2008-08-25 | D63: 2008/09 | E63: 1 | F63: 365 | H63: 2056 | I63: 2055/56 | K63: 2055/56 | L63: 0.025
C64: 2008-08-26 | D64: 2008/09 | E64: 1 | F64: 365 | H64: 2057 | I64: 2056/57 | K64: 2056/57 | L64: 0.025
C65: 2008-08-27 | D65: 2008/09 | E65: 1 | F65: 365 | H65: 2058 | I65: 2057/58 | K65: 2057/58 | L65: 0.025
C66: 2008-08-28 | D66: 2008/09 | E66: 1 | F66: 365 | H66: 2059 | I66: 2058/59 | K66: 2058/59 | L66: 0.025
C67: 2008-08-29 | D67: 2008/09 | E67: 1 | F67: 365 | H67: 2060 | I67: 2059/60 | K67: 2059/60 | L67: 0.025
C68: 2008-08-30 | D68: 2008/09 | E68: 1 | F68: 365 | H68: 2061 | I68: 2060/61 | K68: 2060/61 | L68: 0.025
C69: 2008-08-31 | D69: 2008/09 | E69: 1 | F69: 365 | H69: 2062 | I69: 2061/62 | K69: 2061/62 | L69: 0.025
C70: 2008-09-01 | D70: 2008/09 | E70: 1 | F70: 365 | H70: 2063 | I70: 2062/63 | K70: 2062/63 | L70: 0.025
C71: 2008-09-02 | D71: 2008/09 | E71: 1 | F71: 365 | H71: 2064 | I71: 2063/64 | K71: 2063/64 | L71: 0.025
C72: 2008-09-03 | D72: 2008/09 | E72: 1 | F72: 365 | H72: 2065 | I72: 2064/65 | K72: =$I72 -> 2064/65 | L72: 0.025
C73: 2008-09-04 | D73: 2008/09 | E73: 1 | F73: 365 | K73: 0 | L73: 0.025
C74: 2008-09-05 | D74: 2008/09 | E74: 1 | F74: 365 | K74: 0 | L74: 0.025
C75: 2008-09-06 | D75: 2008/09 | E75: 1 | F75: 365 | K75: 0 | L75: 0
C76: 2008-09-07 | D76: 2008/09 | E76: 1 | F76: 365 | K76: 0 | L76: 0
C77: 2008-09-08 | D77: 2008/09 | E77: 1 | F77: 365 | K77: 0 | L77: 0
C78: 2008-09-09 | D78: 2008/09 | E78: 1 | F78: 365
C79: 2008-09-10 | D79: 2008/09 | E79: 1 | F79: 365
C80: 2008-09-11 | D80: 2008/09 | E80: 1 | F80: 365
C81: 2008-09-12 | D81: 2008/09 | E81: 1 | F81: 365
C82: 2008-09-13 | D82: 2008/09 | E82: 1 | F82: 365
C83: 2008-09-14 | D83: 2008/09 | E83: 1 | F83: 365
C84: 2008-09-15 | D84: 2008/09 | E84: 1 | F84: 365
C85: 2008-09-16 | D85: 2008/09 | E85: 1 | F85: 365
C86: 2008-09-17 | D86: 2008/09 | E86: 1 | F86: 365
C87: 2008-09-18 | D87: 2008/09 | E87: 1 | F87: 365
C88: 2008-09-19 | D88: 2008/09 | E88: 1 | F88: 365
C89: 2008-09-20 | D89: 2008/09 | E89: 1 | F89: 365
C90: 2008-09-21 | D90: 2008/09 | E90: 1 | F90: 365
C91: 2008-09-22 | D91: 2008/09 | E91: 1 | F91: 365
C92: 2008-09-23 | D92: 2008/09 | E92: 1 | F92: 365
C93: 2008-09-24 | D93: 2008/09 | E93: 1 | F93: 365
C94: 2008-09-25 | D94: 2008/09 | E94: 1 | F94: 365
C95: 2008-09-26 | D95: 2008/09 | E95: 1 | F95: 365
C96: 2008-09-27 | D96: 2008/09 | E96: 1 | F96: 365
C97: 2008-09-28 | D97: 2008/09 | E97: 1 | F97: 365
C98: 2008-09-29 | D98: 2008/09 | E98: 1 | F98: 365
C99: 2008-09-30 | D99: 2008/09 | E99: 1 | F99: 365
C100: 2008-10-01 | D100: 2008/09 | E100: 2 | F100: 365
C101: 2008-10-02 | D101: 2008/09 | E101: 2 | F101: 365
C102: 2008-10-03 | D102: 2008/09 | E102: 2 | F102: 365
C103: 2008-10-04 | D103: 2008/09 | E103: 2 | F103: 365
C104: 2008-10-05 | D104: 2008/09 | E104: 2 | F104: 365
C105: 2008-10-06 | D105: 2008/09 | E105: 2 | F105: 365
C106: 2008-10-07 | D106: 2008/09 | E106: 2 | F106: 365
C107: 2008-10-08 | D107: 2008/09 | E107: 2 | F107: 365
C108: 2008-10-09 | D108: 2008/09 | E108: 2 | F108: 365
C109: 2008-10-10 | D109: 2008/09 | E109: 2 | F109: 365
C110: 2008-10-11 | D110: 2008/09 | E110: 2 | F110: 365
C111: 2008-10-12 | D111: 2008/09 | E111: 2 | F111: 365
C112: 2008-10-13 | D112: 2008/09 | E112: 2 | F112: 365
C113: 2008-10-14 | D113: 2008/09 | E113: 2 | F113: 365
C114: 2008-10-15 | D114: 2008/09 | E114: 2 | F114: 365
C115: 2008-10-16 | D115: 2008/09 | E115: 2 | F115: 365
C116: 2008-10-17 | D116: 2008/09 | E116: 2 | F116: 365
C117: 2008-10-18 | D117: 2008/09 | E117: 2 | F117: 365
C118: 2008-10-19 | D118: 2008/09 | E118: 2 | F118: 365
C119: 2008-10-20 | D119: 2008/09 | E119: 2 | F119: 365
C120: 2008-10-21 | D120: 2008/09 | E120: 2 | F120: 365
C121: 2008-10-22 | D121: 2008/09 | E121: 2 | F121: 365
C122: 2008-10-23 | D122: 2008/09 | E122: 2 | F122: 365
C123: 2008-10-24 | D123: 2008/09 | E123: 2 | F123: 365
C124: 2008-10-25 | D124: 2008/09 | E124: 2 | F124: 365
C125: 2008-10-26 | D125: 2008/09 | E125: 2 | F125: 365
C126: 2008-10-27 | D126: 2008/09 | E126: 2 | F126: 365
C127: 2008-10-28 | D127: 2008/09 | E127: 2 | F127: 365
C128: 2008-10-29 | D128: 2008/09 | E128: 2 | F128: 365
C129: 2008-10-30 | D129: 2008/09 | E129: 2 | F129: 365
C130: 2008-10-31 | D130: 2008/09 | E130: 2 | F130: 365
C131: 2008-11-01 | D131: 2008/09 | E131: 2 | F131: 365
C132: 2008-11-02 | D132: 2008/09 | E132: 2 | F132: 365
C133: 2008-11-03 | D133: 2008/09 | E133: 2 | F133: 365
C134: 2008-11-04 | D134: 2008/09 | E134: 2 | F134: 365
C135: 2008-11-05 | D135: 2008/09 | E135: 2 | F135: 365
C136: 2008-11-06 | D136: 2008/09 | E136: 2 | F136: 365
C137: 2008-11-07 | D137: 2008/09 | E137: 2 | F137: 365
C138: 2008-11-08 | D138: 2008/09 | E138: 2 | F138: 365
C139: 2008-11-09 | D139: 2008/09 | E139: 2 | F139: 365
C140: 2008-11-10 | D140: 2008/09 | E140: 2 | F140: 365
C141: 2008-11-11 | D141: 2008/09 | E141: 2 | F141: 365
C142: 2008-11-12 | D142: 2008/09 | E142: 2 | F142: 365
C143: 2008-11-13 | D143: 2008/09 | E143: 2 | F143: 365
C144: 2008-11-14 | D144: 2008/09 | E144: 2 | F144: 365
C145: 2008-11-15 | D145: 2008/09 | E145: 2 | F145: 365
C146: 2008-11-16 | D146: 2008/09 | E146: 2 | F146: 365
C147: 2008-11-17 | D147: 2008/09 | E147: 2 | F147: 365
C148: 2008-11-18 | D148: 2008/09 | E148: 2 | F148: 365
C149: 2008-11-19 | D149: 2008/09 | E149: 2 | F149: 365
C150: 2008-11-20 | D150: 2008/09 | E150: 2 | F150: 365
C151: 2008-11-21 | D151: 2008/09 | E151: 2 | F151: 365
C152: 2008-11-22 | D152: 2008/09 | E152: 2 | F152: 365
C153: 2008-11-23 | D153: 2008/09 | E153: 2 | F153: 365
C154: 2008-11-24 | D154: 2008/09 | E154: 2 | F154: 365
C155: 2008-11-25 | D155: 2008/09 | E155: 2 | F155: 365
C156: 2008-11-26 | D156: 2008/09 | E156: 2 | F156: 365
C157: 2008-11-27 | D157: 2008/09 | E157: 2 | F157: 365
C158: 2008-11-28 | D158: 2008/09 | E158: 2 | F158: 365
C159: 2008-11-29 | D159: 2008/09 | E159: 2 | F159: 365
C160: 2008-11-30 | D160: 2008/09 | E160: 2 | F160: 365
C161: 2008-12-01 | D161: 2008/09 | E161: 2 | F161: 365
C162: 2008-12-02 | D162: 2008/09 | E162: 2 | F162: 365
C163: 2008-12-03 | D163: 2008/09 | E163: 2 | F163: 365
C164: 2008-12-04 | D164: 2008/09 | E164: 2 | F164: 365
C165: 2008-12-05 | D165: 2008/09 | E165: 2 | F165: 365
C166: 2008-12-06 | D166: 2008/09 | E166: 2 | F166: 365
C167: 2008-12-07 | D167: 2008/09 | E167: 2 | F167: 365
C168: 2008-12-08 | D168: 2008/09 | E168: 2 | F168: 365
C169: 2008-12-09 | D169: 2008/09 | E169: 2 | F169: 365
C170: 2008-12-10 | D170: 2008/09 | E170: 2 | F170: 365
C171: 2008-12-11 | D171: 2008/09 | E171: 2 | F171: 365
C172: 2008-12-12 | D172: 2008/09 | E172: 2 | F172: 365
C173: 2008-12-13 | D173: 2008/09 | E173: 2 | F173: 365
C174: 2008-12-14 | D174: 2008/09 | E174: 2 | F174: 365
C175: 2008-12-15 | D175: 2008/09 | E175: 2 | F175: 365
C176: 2008-12-16 | D176: 2008/09 | E176: 2 | F176: 365
C177: 2008-12-17 | D177: 2008/09 | E177: 2 | F177: 365
C178: 2008-12-18 | D178: 2008/09 | E178: 2 | F178: 365
C179: 2008-12-19 | D179: 2008/09 | E179: 2 | F179: 365
C180: 2008-12-20 | D180: 2008/09 | E180: 2 | F180: 365
C181: 2008-12-21 | D181: 2008/09 | E181: 2 | F181: 365
C182: 2008-12-22 | D182: 2008/09 | E182: 2 | F182: 365
C183: 2008-12-23 | D183: 2008/09 | E183: 2 | F183: 365
C184: 2008-12-24 | D184: 2008/09 | E184: 2 | F184: 365
C185: 2008-12-25 | D185: 2008/09 | E185: 2 | F185: 365
C186: 2008-12-26 | D186: 2008/09 | E186: 2 | F186: 365
C187: 2008-12-27 | D187: 2008/09 | E187: 2 | F187: 365
C188: 2008-12-28 | D188: 2008/09 | E188: 2 | F188: 365
C189: 2008-12-29 | D189: 2008/09 | E189: 2 | F189: 365
C190: 2008-12-30 | D190: 2008/09 | E190: 2 | F190: 365
C191: 2008-12-31 | D191: 2008/09 | E191: 2 | F191: 365
C192: 2009-01-01 | D192: 2008/09 | E192: 3 | F192: 365
C193: 2009-01-02 | D193: 2008/09 | E193: 3 | F193: 365
C194: 2009-01-03 | D194: 2008/09 | E194: 3 | F194: 365
C195: 2009-01-04 | D195: 2008/09 | E195: 3 | F195: 365
C196: 2009-01-05 | D196: 2008/09 | E196: 3 | F196: 365
C197: 2009-01-06 | D197: 2008/09 | E197: 3 | F197: 365
C198: 2009-01-07 | D198: 2008/09 | E198: 3 | F198: 365
C199: 2009-01-08 | D199: 2008/09 | E199: 3 | F199: 365
C200: 2009-01-09 | D200: 2008/09 | E200: 3 | F200: 365
C201: 2009-01-10 | D201: 2008/09 | E201: 3 | F201: 365
C202: 2009-01-11 | D202: 2008/09 | E202: 3 | F202: 365
C203: 2009-01-12 | D203: 2008/09 | E203: 3 | F203: 365
... 4297 more rows
